Workbook

Sheet RIVN_Chart
B2: Rivian Automotive (RIVN) Valuation Summary
B4: Valuation date | C4: 2025-11-18
B5: Current share price | C5: =RIVN_DCF!C4 -> 14.68
B8: Data for graph | J8: Inputs
B9: Methodology | F9: Low | G9: Dif. | H9: High | J9: Low | K9: High | M9: Current share price
B10: ="Public Comps (Elec. Growth) with EV/Sales Range "&TEXT(J10,"0.0x")&"-"&TEXT(K10,"0.0x") -> Public Comps (Elec. Growth) with EV/Sales Range 2.6x-4.5x | F10: =RIVN_Comps!D31 -> 14.2386349 | G10: =H10-F10 -> 9.263342871 | H10: =RIVN_Comps!D32 -> 23.50197778 | J10: =RIVN_Comps!H31 -> 2.6 | K10: =RIVN_Comps!H32 -> 4.5 | M10: =$C$5 -> 14.68
B11: ="Public Comps (Legacy) with EV/Sales Range "&TEXT(J11,"0.0x")&"-"&TEXT(K11,"0.0x") -> Public Comps (Legacy) with EV/Sales Range 0.2x-1.3x | F11: =RIVN_Comps_Legacy!D26 -> 2.537570225 | G11: 5.362987978 | H11: =RIVN_Comps_Legacy!D27 -> 7.900558203 | J11: =RIVN_Comps_Legacy!H26 -> 0.2 | K11: =RIVN_Comps_Legacy!H27 -> 1.3 | M11: 14.68
B12: DCF w/ low to moderate growth scenario with PG | F12: ='Scenario Summary'!F30 -> 8.945370583 | G12: 7.215972885 | H12: ='Scenario Summary'!E30 -> 16.16134347 | M12: 14.68
B13: ="DCF w/ perpetuity growth range "&TEXT(J13,"0.0%")&"-"&TEXT(K13,"0.0%") -> DCF w/ perpetuity growth range 0.5%-5.0% | F13: =RIVN_DCF!H176 -> 34.03651322 | G13: 31.03358583 | H13: =RIVN_DCF!H185 -> 65.07009906 | J13: =RIVN_DCF!C176 -> 0.005 | K13: =RIVN_DCF!C185 -> 0.05 | M13: 14.68
B14: ="DCF w/ exit multiple growth range "&TEXT(J14,"0.0x")&"-"&TEXT(K14,"0.0x") -> DCF w/ exit multiple growth range 5.2x-13.2x | F14: =RIVN_DCF!D169 -> 31.75885739 | G14: 40.88083611 | H14: =RIVN_DCF!L169 -> 72.63969351 | J14: =RIVN_DCF!D168 -> 5.2 | K14: =RIVN_DCF!L168 -> 13.2 | M14: 14.68
B15: 52 week high-low | F15: 9.9 | G15: 8.4 | H15: 18.3 | M15: 14.68

Sheet Possible_Comps
B2: Industry | C2: Automobile Manufacturers
B4: Source | C4: Peers
B5: Proxy Statement | C5: Airbnb Aptiv Cummins DoorDash eBay Ford General Motors Lucid Group, Inc. Mobileye PACCAR Pinterest Shopify Snap Spotify Stellantis TE Connectivity Tesla Uber Technologies
B6: RIVN 10K (comp) | C6: Non-listed
B7: Industry (SIC code: 3711) | C7: 123 firms
B8: Seeking Alpha | C8: Subaru Corporation NIO Inc Porsche Automobil Holding SE Li Auto Inc XPeng Inc
B9: Mergent | C9: Tesla Inc Toyota Motor Ferrari General Motors Ford Motor Honda Motor Stellantis Xpeng Li Auto NIO
B10: Capital IQ | C10: Tesla Inc General Motors Lucid Group Jiangling Motors Ford Motor Anhui Jianghuai Automobile Group Ferrari NIO Beiqi Foton Motor Zhejiang Leapmotor Technology Co
B11: Morningstar | C11: Zhejiang CF Moto Power Co Ltd LiveWire Group ACV Auctions
B12: Financial Times | C12: Harley-Davidson Inc Polaris Inc Lucid Group Inc Zeekr Intellignt Tchnlgy Hldng Ltd (ADR) VinFast Auto Ltd Ford Motor Co
B13: ChatGPT | C13: A. Pure-play high-growth EV manufacturers Lucid Group (LCID) NIO Inc. (NIO) Polestar (PSNY) B. Large legacy OEMs with EV programs Ford Motor Company (F) General Motors (GM) C. Commercial / fleet EV specialists (most relevant to Rivian’s RCV/commercial van business) Nikola Corporation (NKLA) D. Other public EV challengers / peer-set to broaden the sample Tesla, Inc. (TSLA) Fisker Inc. (FSR)

Sheet Selecting_Comps
E1: Business Description
B2: List of Possible Competitors | C2: Ticker | D2: Source | F2: Exchange | G2: Include (Y/N) | H2: Design | I2: Manufacture | J2: Electric | K2: Software | L2: Service | M2: Charge | N2: Sport | O2: Direct | P2: International | Q2: Total | R2: LTM Gross Margin % | S2: LTM EBITDA Margin % | T2: LTM EBIT Margin % | U2: LTM SG&A Margin % | V2: LTM R&D Margin % | W2: LTM Total Revenues, 1 Yr Growth % | X2: LTM Total Revenues, 2 Yr CAGR % | Y2: LTM Total Revenues, 3 Yr CAGR % | Z2: Est. Annual Revenue Growth - 1 Yr % (Capital IQ) | AA2: Est. Annual Revenue Growth - 2 Yr % (Capital IQ)
B3: Anhui Jianghuai Automobile Group Corp.,Ltd. | C3: 600418 | D3: Capital IQ | E3: Anhui Jianghuai Automobile Group Corp.,Ltd. engages in the research, development, manufacture, and sale of commercial and passenger vehicles. The company offers trucks, MPVs, SUVs, sedans, and buses, van, electric vehicle, pickup vehicles, and chassis, and other core component. It also provides spare parts and accessories; mobility solutions; and automotive financial services. The company was formerly known as Anhui Jianghuai Automobile Co., Ltd. and changed its name to Anhui Jianghuai Automobile Group Corp.,Ltd. in November 2016. Anhui Jianghuai Automobile Group Corp.,Ltd. was founded in 1964 and is based in Hefei, China. | F3: SHSE | G3: Y | H3: =IFERROR(IF(SEARCH(H$2,$E3)>0,"Y","N"),"N") -> N | I3: =IFERROR(IF(SEARCH(I$2,$E3)>0,"Y","N"),"N") -> Y | J3: Y | K3: N | L3: Y | M3: N | N3: N | O3: N | P3: N | Q3: =COUNTIF(H3:O3,"Y")+COUNTIF(P3,"N") -> 4 | R3: 0.092 | S3: -0.031 | T3: -0.064 | U3: 0.0901 | V3: 0.04126939351 | W3: -0.0839 | X3: -0.0111 | Y3: 0.041 | Z3: 0.266 | AA3: 0.353
B4: Beiqi Foton Motor Co.,Ltd. | C4: 600166 | D4: Capital IQ | E4: Beiqi Foton Motor Co.,Ltd. engages in the manufacture and sale of commercial vehicles worldwide. It offers passenger vehicles, such as heavy trucks, light trucks, pickup trucks, VANs, and buses. The company was founded in 1996 and is headquartered in Beijing, China. | F4: SHSE | G4: N | H4: =IFERROR(IF(SEARCH(H$2,$E4)>0,"Y","N"),"N") -> N | I4: Y | J4: N | K4: N | L4: N | M4: N | N4: N | O4: N | P4: N | Q4: =COUNTIF(H4:O4,"Y")+COUNTIF(P4,"N") -> 2 | R4: 0.112 | S4: 0.02 | T4: 0.009 | U4: 0.0665 | V4: 0.03187919023 | W4: 0.0562 | X4: 0.0189 | Y4: 0.054 | Z4: 0.283 | AA4: 0.221
B5: Ferrari N.V. | C5: RACE | D5: Capital IQ, Mergent | E5: Ferrari N.V., through its subsidiaries, engages in design, engineering, production, and sale of luxury performance sports cars worldwide. The company offers sports, track, one-off, and road cars, as well as supercars. It also provides spare parts and engines, as well as after sales, repair, maintenance, and restoration services for cars; and licenses its Ferrari brand to various producers and retailers of luxury and lifestyle goods. In addition, the company operates Ferrari museums in Modena and Maranello; Il Cavallino restaurant in Maranello; and theme parks in Abu Dhabi and Spain. Further, it provides direct or indirect finance and leasing services; range of financial and ancillary services; special financing arrangements; and operates franchised and owned Ferrari stores. The company was founded in 1947 and is headquartered in Maranello, Italy. | F5: BIT | G5: N | H5: Y | I5: N | J5: N | K5: N | L5: Y | M5: N | N5: Y | O5: Y | P5: N | Q5: 5 | R5: 0.512 | S5: 0.334 | T5: 0.291 | U5: 0.0867 | V5: 0.1316945413 | W5: 0.0934 | X5: 0.1227 | Y5: 0.14 | Z5: 0.065 | AA5: 0.082
B6: Ford Motor Company | C6: F | D6: Capital IQ, Mergent, Financial Times, Proxy, ChatGPT | E6: Ford Motor Company develops, delivers, and services Ford trucks, sport utility vehicles, commercial vans and cars, and Lincoln luxury vehicles worldwide. It operates through Ford Blue, Ford Model e, Ford Pro, and Ford Credit segments. The company sells Ford and Lincoln internal combustion engine and hybrid vehicles, electric vehicles, service parts, accessories, and digital services for retail customers, as well as develops software. It also sells Ford and Lincoln vehicles, service parts, and accessories through distributors and dealers, as well as through dealerships to commercial fleet customers, daily rental car companies, and governments. In addition, it engages in the vehicle-related financing and leasing activities to and through automotive dealers. Further, the company provides retail installment sale contracts for new and used vehicles; and direct financing leases for new vehicles to retail and commercial customers, such as leasing companies, government entities, daily rental companies, and fleet customers. Additionally, it offers wholesale loans to dealers to finance the purchase of vehicle inventory; and loans to dealers to finance working capital and enhance dealership facilities, purchase dealership real estate, and other dealer vehicle programs. The company was incorporated in 1903 and is based in Dearborn, Michigan. | F6: NYSE | G6: N | H6: N | I6: N | J6: Y | K6: Y | L6: Y | M6: N | N6: Y | O6: Y | P6: N | Q6: 6 | R6: 0.076 | S6: 0.051 | T6: 0.021 | U6: 0.0549 | V6: 0 | W6: 0.0375 | X6: 0.0431 | Y6: 0.077 | Z6: 0.009 | AA6: 0.004
B7: General Motors Company | C7: GM | D7: Capital IQ, Mergent, Proxy, ChatGPT | E7: General Motors Company designs, builds, and sells trucks, crossovers, cars, and automobile parts worldwide. The company operates through GM North America, GM International, Cruise, and GM Financial segments. It markets its vehicles primarily under the Buick, Cadillac, Chevrolet, GMC, Baojun, and Wuling brand names. In addition, the company sells trucks, crossovers, cars, and automobile parts through retail dealers, distributors and dealers, as well as to fleet customers, including daily rental car companies, commercial fleet customers, leasing companies, and governments. Further, it offers software-enabled services and subscriptions; and various range of after-sale services through dealer network, such as maintenance, light repairs, collision repairs, vehicle accessories, and extended service warranties. Additionally, the company provides automotive financing; and software-enabled services and subscriptions. General Motors Company was founded in 1908 and is headquartered in Detroit, Michigan. | F7: NYSE | G7: N | H7: Y | I7: N | J7: N | K7: Y | L7: Y | M7: N | N7: N | O7: N | P7: Y | Q7: 3 | R7: 0.101 | S7: 0.084 | T7: 0.05 | U7: 0.0511 | V7: 0 | W7: 0.0258 | X7: 0.044 | Y7: 0.084 | Z7: -0.009 | AA7: -0.004
B8: Harley-Davidson, Inc. | C8: HOG | D8: Financial Times | E8: Harley-Davidson, Inc. manufactures and sells motorcycles in the United States and internationally. The company operates in three segments: Harley-Davidson Motor Company, LiveWire, and Harley-Davidson Financial Services. The Harley-Davidson Motor Company segment designs, manufactures, and sells motorcycles, including cruiser, trike, touring, standard, sportbike, adventure, and dual sport, as well as motorcycle parts, accessories, and apparel, as well as licenses its trademarks and related services. This segment sells its products to retail customers through a network of independent dealers, as well as e-commerce channels. The LiveWire segment sells electric motorcycles, balance bikes for kids, parts and accessories, apparel, and related parts and services. The Harley-Davidson Financial Services segment provides wholesale financing services, such as floorplan and open account financing of motorcycles, and parts and accessories; and retail financing services, such as installment lending for the purchase of new and used Harley-Davidson motorcycles, as well as point-of-sale insurance and voluntary protection products. This segment also licenses third-party financial institutions that issue credit cards bearing the Harley-Davidson brand. Harley-Davidson, Inc. was founded in 1903 and is based in Milwaukee, Wisconsin. | F8: NYSE | G8: N | H8: Y | I8: Y | J8: Y | K8: N | L8: Y | M8: N | N8: Y | O8: N | P8: Y | Q8: 5 | R8: 0.249 | S8: 0.091 | T8: 0.055 | U8: 0.1939 | V8: 0 | W8: -0.2481 | X8: -0.1382 | Y8: -0.058 | Z8: -0.104 | AA8: -0.034
B9: Honda Motor Co., Ltd. | C9: 7267 | D9: Mergent | E9: Honda Motor Co., Ltd. develops, manufactures, and distributes motorcycles, automobiles, and power products in Japan, North America, Europe, Asia, and internationally. It operates through four segments: Motorcycle Business, Automobile Business, Financial Services Business, and Power Product and Other Businesses. The Motorcycle Business segment produces motorcycles, including sports, business, and commuter models; and various off-road vehicles, such as all-terrain vehicles and side-by-sides. The Automobile Business segment offers passenger cars, light trucks, and mini vehicles. The Financial Services Business segment provides various financial services, including retail lending and leasing services to customers, as well as wholesale financing services to dealers. The Power Product and Other Businesses manufactures and sells power products, such as general-purpose engines, lawn mowers, generators, water pumps, brush cutters, and tillers. This segment also offers HondaJet aircraft. The company also sells spare parts; and provides after-sales services through retail dealers directly, as well as through independent distributors and licensees. Honda Motor Co., Ltd. was founded in 1946 and is headquartered in Tokyo, Japan. | F9: TSE | G9: N | H9: N | I9: Y | J9: N | K9: N | L9: Y | M9: N | N9: Y | O9: Y | P9: Y | Q9: 4 | R9: 0.21 | S9: 0.066 | T9: 0.045 | U9: 0.1105 | V9: 0.05440866475 | W9: 0.0196 | X9: 0.1052 | Y9: 0.135 | Z9: -0.015 | AA9: 0.003
B10: Jiangling Motors Corporation, Ltd. | C10: 000550 | D10: Capital IQ | E10: Jiangling Motors Corporation, Ltd., together with its subsidiaries, engages in the production and sale of automobiles and automobile parts in China and internationally. It offers commercial vehicles, passenger sport utility vehicles (SUVs), and related components, which include JMC light trucks, pickups, light buses, Ford-branded light buses, multi-purpose passenger vehicles, and other commercial vehicles and passenger SUV products. The company also provides engines, frames, axles, and other components. It offers its products and services to distributors or end customers. The company was founded in 1992 and is headquartered in Nanchang, China. | F10: SZSE | G10: N | H10: N | I10: N | J10: N | K10: N | L10: Y | M10: N | N10: Y | O10: N | P10: Y | Q10: 2 | R10: 0.141 | S10: 0.071 | T10: 0.033 | U10: 0.0453 | V10: 0.03751801052 | W10: 0.0145 | X10: 0.096 | Y10: 0.061 | Z10: 0.074 | AA10: 0.063
B11: Li Auto Inc. | C11: LI | D11: Seeking Alpha, Mergent | E11: Li Auto Inc. operates in the energy vehicle market in the People’s Republic of China. It designs, develops, manufactures, and sells premium smart electric vehicles. The company’s product line comprises multi-purpose vehicles and sport utility vehicles. It offers sales and after sales management, and technology development and corporate management services, as well as manufacturing equipment. The company offers its products through online and offline channels. The company was formerly known as Leading Ideal Inc. and changed its name to Li Auto Inc. in July 2020. Li Auto Inc. was founded in 2015 and is headquartered in Beijing, the People’s Republic of China. | F11: NASDAQ | G11: Y | H11: Y | I11: Y | J11: Y | K11: N | L11: Y | M11: N | N11: Y | O11: N | P11: N | Q11: 6 | R11: 0.206 | S11: 0.082 | T11: 0.058 | U11: 0.0815 | V11: 0.07199924721 | W11: 0.0718 | X11: 0.3876 | Y11: 0.575 | Z11: -0.108 | AA11: 0.117
B12: Lucid Group, Inc. | C12: LCID | D12: Capital IQ, Financial Times, Proxy, ChatGPT | E12: Lucid Group, Inc., a technology company, designs, engineers, manufactures, and sells electric vehicles (EV), EV powertrains, and battery systems. It also designs and develops proprietary software in-house for Lucid vehicles. The company sells vehicles directly to consumers through its retail sales network and direct online sales, including Lucid Financial Services. The company is headquartered in Newark, California. Lucid Group, Inc. is a subsidiary of Ayar Third Investment Company. | F12: NASDAQ | G12: Y | H12: Y | I12: Y | J12: Y | K12: Y | L12: Y | M12: N | N12: N | O12: Y | P12: N | Q12: 7 | R12: -0.993 | S12: -2.83 | T12: - | U12: 1.0189 | V12: 1.216081808 | W12: 0.3901 | X12: 0.1104 | Y12: 0.723 | Z12: 0.598 | AA12: 0.765
B13: Nikola Corporation | C13: NKLA | D13: ChatGPT | E13: Nikola Corporation operates as a technology innovator and integrator that develops energy and transportation solutions in the United States and internationally. The company operates in Truck and Energy units. It commercializes battery electric vehicles (BEV) and hydrogen fuel cell electric vehicles (FCEV) to the trucking sector. The company also develops a network of hydrogen fueling stations; and offers BEV charging solutions for its FCEV and BEV customers, as well as other third-party customers. In addition, its products include Nikola Tre Class 8 truck and the Nikola's Class 8 FCEV. Further, the company assembles, integrates, and commissions its vehicles in collaboration with its business partners and suppliers. Nikola Corporation was founded in 2015 and is headquartered in Phoenix, Arizona. On February 19, 2025, Nikola Corporation, along with its affiliates, filed a voluntary petition for reorganization under Chapter 11 in the U.S. Bankruptcy Court for the District of Delaware. The plan was later approved as Chapter 11 liquidation on September 12, 2025. | F13: OTCPK | G13: N | H13: N | I13: N | J13: Y | K13: N | L13: N | M13: N | N13: Y | O13: N | P13: Y | Q13: 2 | R13: - | S13: - | T13: - | U13: 2.7767 | V13: 2.294049347 | W13: 0.9214 | X13: 0.1768 | Y13: - | Z13: - | AA13: -
B14: NIO Inc. | C14: NIO | D14: Capital IQ, Mergent, Seeking Alpha, ChatGPT | E14: NIO Inc. designs, develops, manufactures, and sells smart electric vehicles in China, Europe, and internationally. It offers five and six-seater electric SUVs, as well as smart electric sedans. The company also offers power solutions, including Power Home, a home charging solution; Power Swap, a battery-swapping service; Power Charger and Destination Charger; Power Mobile, a mobile charging service through charging vans; Power Map, an application that provides access to a network of public chargers and their real-time information; and One Click for power valet service. In addition, it provides repair, maintenance, and bodywork services through its service centers and authorized third-party service centers; statutory and third-party liability insurance, and vehicle damage insurance through third-party insurers; repair and maintenance; courtesy vehicle; data packages; and auto financing and financial leasing services. Further, the company is involved in the provision of energy and service packages to its users; design and technology development activities; manufacture of electric powertrains, battery packs, and components; and sales and after-sales management activities. The company was formerly known as NextEV Inc. and changed its name to NIO Inc. in July 2017. NIO Inc. was incorporated in 2014 and is based in Shanghai, China. | F14: NYSE | G14: Y | H14: Y | I14: Y | J14: Y | K14: N | L14: Y | M14: Y | N14: N | O14: N | P14: Y | Q14: 5 | R14: 0.103 | S14: -0.229 | T14: -0.326 | U14: 0.2477 | V14: 0.1857141396 | W14: 0.0928 | X14: 0.1962 | Y14: 0.203 | Z14: 0.365 | AA14: 0.391
B15: Polaris Inc. | C15: PII | D15: Financial Times | E15: Polaris Inc. designs, engineers, manufactures, and markets powersports vehicles in the United States, Canada, and internationally. It operates through three segments: Off-Road, On-Road, and Marine. The company offers off-road vehicles (ORVs), including all-terrain vehicles and side-by-side vehicles; military and commercial ORVs; snowmobiles; motorcycles; and moto-roadsters, quadricycles, and boats. It also provides ORV accessories comprising winches, bumper/brushguards, plows, racks, wheels and tires, pull-behinds, cab systems, lighting and audio systems, cargo box accessories, and tracks; snowmobile accessories, which include covers, traction products, reverse kits, electric starters, tracks, bags, windshields, replacement parts, and lubricants; and motorcycle accessories, such as saddle bags, handlebars, backrests, exhausts, windshields, seats, oil, and various chrome accessories. In addition, the company offers light duty hauling and passenger vehicles; gear and apparel, such as helmets, goggles, jackets, gloves, boots, bibs, hats, and pants; and pontoon and deck boats. It provides its products through dealers and distributors, and online; and retail and e-commerce marketplaces. The company was formerly known as Polaris Industries Inc. Polaris Inc. was founded in 1945 and is headquartered in Medina, Minnesota. | F15: NYSE | G15: N | H15: Y | I15: Y | J15: Y | K15: N | L15: N | M15: N | N15: Y | O15: N | P15: Y | Q15: 4 | R15: 0.203 | S15: 0.061 | T15: 0.019 | U15: 0.1352 | V15: 0.04864192646 | W15: -0.0932 | X15: -0.1192 | Y15: -0.049 | Z15: -0.025 | AA15: -0.008
B16: Polestar Automotive Holding UK PLC | C16: PSNY | D16: ChatGPT | E16: Polestar Automotive Holding UK PLC engages in the research and development, marketing, commercialization, and sale of battery electric vehicles and related technology solutions. The company offers battery electric vehicles, including Polestar 2 (PS2), a fast-back sedan; Polestar 3 (PS3), an aero sport-utility vehicle; Polestar 4 (PS4), a sport utility vehicle; Polestar 5 (PS5), a sport grand-touring sedan; and Polestar 6 (PS6), a roadster. It also provides vehicle accessories; software and performance engineered kits; and carbon credits, as well as vehicle leasing. The company was founded in 2017 and is headquartered in Gothenburg, Sweden. | F16: NASDAQ | G16: Y | H16: N | I16: N | J16: Y | K16: Y | L16: N | M16: N | N16: Y | O16: N | P16: N | Q16: 4 | R16: -0.327 | S16: -0.667 | T16: -0.672 | U16: 0.3421 | V16: 0.01778144136 | W16: 0.2482 | X16: -0.0169 | Y16: 0.114 | Z16: 0.511 | AA16: 0.481
B17: Stellantis N.V. | C17: STLAM | D17: Mergent, Proxy | E17: Stellantis N.V. engages in the design, engineering, manufacturing, distribution, and sale of automobiles and light commercial vehicles, engines, transmission systems, metallurgical products, mobility services, and production systems worldwide. It provides luxury and premium vehicles; global sport utility vehicles; American and European brand vehicles, as well as parts and accessories. The company also provides contract services; retail and dealer financing services; and leasing and rental services. It offers its products under the Abarth, Alfa Romeo, Chrysler, Citroën, DS, Dodge, FIAT, Jeep, Maserati, Ram, Opel, Lancia, Vauxhall, Peugeot, and Comau brand names through distributors and dealers. Stellantis N.V. was founded in 1899 and is based in Hoofddorp, the Netherlands. | F17: BIT | G17: N | H17: Y | I17: N | J17: N | K17: N | L17: Y | M17: N | N17: Y | O17: N | P17: N | Q17: 4 | R17: 0.082 | S17: 0.015 | T17: -0.015 | U17: 0.0624 | V17: 0.0339579 | W17: -0.1707 | X17: -0.1229 | Y17: -0.039 | Z17: -0.028 | AA17: 0.015
B18: Subaru Corporation | C18: 7270 | D18: Seeking Alpha | E18: Subaru Corporation manufactures and sells automobiles and aerospace products in Japan, Rest of Asia, North America, Europe, and Internationally. It operates through three segments: Automotive, Aerospace, and Others. The company manufactures, sells, and repairs automobiles and related components, aircraft, space-related devices, and the parts; and rents and manages real estate properties. It also involved in the shipping, land freight, and warehousing of vehicles; leasing and rental of vehicles; credit and financing of vehicles; inspection, service, and maintenance of aircraft. In addition, the company engages in the leasing of production, tools such as molds, and network equipment and devices, as well as for real estate such as stores, company-owned houses and warehouses for the automotive business. The company was formerly known as Fuji Heavy Industries Ltd. and changed its name to Subaru Corporation in April 2017. Subaru Corporation was founded in 1917 and is headquartered in Tokyo, Japan. | F18: TSE | G18: N | H18: N | I18: Y | J18: N | K18: N | L18: Y | M18: N | N18: N | O18: N | P18: Y | Q18: 2 | R18: 0.204 | S18: 0.13 | T18: 0.081 | U18: 0.0878 | V18: 0.03198526273 | W18: 0.0201 | X18: 0.0933 | Y18: - | Z18: -0.016 | AA18: 0.018
B19: Tesla, Inc. | C19: TSLA | D19: Capital IQ, Mergent, Proxy, ChatGPT | E19: Tesla, Inc. designs, develops, manufactures, leases, and sells electric vehicles, and energy generation and storage systems in the United States, China, and internationally. The company operates in two segments, Automotive; and Energy Generation and Storage. The Automotive segment offers electric vehicles, as well as sells automotive regulatory credits; and non-warranty after-sales vehicle, used vehicles, body shop and parts, supercharging, retail merchandise, and vehicle insurance services. This segment also provides sedans and sport utility vehicles through direct and used vehicle sales, a network of Tesla Superchargers, and in-app upgrades; purchase financing and leasing services; services for electric vehicles through its company-owned service locations and Tesla mobile service technicians; and vehicle limited warranties and extended service plans. The Energy Generation and Storage segment engages in the design, manufacture, installation, sale, and leasing of solar energy generation and energy storage products, and related services to residential, commercial, and industrial customers and utilities through its website, stores, and galleries, as well as through a network of channel partners. This segment also provides services and repairs to its energy product customers, including under warranty; and various financing options to its residential customers. The company was formerly known as Tesla Motors, Inc. and changed its name to Tesla, Inc. in February 2017. Tesla, Inc. was incorporated in 2003 and is headquartered in Austin, Texas. | F19: NASDAQ | G19: Y | H19: Y | I19: Y | J19: Y | K19: N | L19: Y | M19: Y | N19: Y | O19: Y | P19: Y | Q19: 7 | R19: 0.17 | S19: 0.113 | T19: 0.05 | U19: 0.0574 | V19: 0.06173601163 | W19: -0.0156 | X19: -0.0015 | Y19: 0.085 | Z19: -0.029 | AA19: 0.059
B20: THOR Industries, Inc. | C20: THO | D20: None | E20: THOR Industries, Inc. designs, manufactures, and sells recreational vehicles (RVs), and related parts and accessories in the United States, Germany, rest of Europe, Canada, and internationally. The company offers travel trailers; gasoline and diesel Class A, Class B, and Class C motorhomes; conventional travel trailers and fifth wheels; conventional motorhomes; luxury fifth wheels; and motorcaravans, campervans, urban vehicles, and caravans, as well as other RV-related products and services. It also provides aluminum extrusion and specialized component products to RV and other manufacturers. The company sells its products to independent and non-franchise dealers. THOR Industries, Inc. was founded in 1980 and is based in Elkhart, Indiana. | F20: NYSE | G20: N | H20: Y | I20: Y | J20: N | K20: N | L20: Y | M20: N | N20: N | O20: N | P20: Y | Q20: 3 | R20: 0.14 | S20: 0.06 | T20: 0.032 | U20: 0.0956 | V20: 0 | W20: -0.0462 | X20: -0.0719 | Y20: -0.163 | Z20: -0.01 | AA20: 0.023
B21: Toyota Motor Corporation | C21: 7203 | D21: Mergent | E21: Toyota Motor Corporation designs, manufactures, assembles, and sells passenger vehicles, minivans and commercial vehicles, and related parts and accessories in Japan, North America, Europe, Asia, Central and South America, Oceania, Africa, and the Middle East. It operates through Automotive, Financial Services, and All Other segments. The company offers subcompact and compact cars; mini-vehicles; mid-size, luxury, sports, and specialty cars; recreational and sport-utility vehicles; pickup trucks; minivans; trucks; and buses. It also develops and sells battery electric vehicles and batteries. In addition, the company provides financial services, such as retail financing and leasing, wholesale financing, insurance, and credit cards. Further, it operates GAZOO.com, a web portal for automobile information, as well as engages in telecommunications and other businesses. It offers vehicles under the Toyota and Lexus brand names. Toyota Motor Corporation was founded in 1933 and is headquartered in Toyota, Japan. | F21: TSE | G21: N | H21: Y | I21: Y | J21: Y | K21: N | L21: Y | M21: N | N21: Y | O21: N | P21: N | Q21: 6 | R21: 0.175 | S21: 0.142 | T21: 0.096 | U21: 0.0796 | V21: 0 | W21: 0.0445 | X21: 0.1116 | Y21: 0.149 | Z21: 0.035 | AA21: 0.034
B22: VinFast Auto Ltd. | C22: VFS | D22: Financial Times | E22: VinFast Auto Ltd. engages in the design and manufacture of electric vehicles (EV), e-scooters, and e-buses in Vietnam, Canada, and the United States. The company operates through three segments: namely Car, E-scooters and Ebus. It offers the design, development, manufacturing and sales of e-scooters and related battery lease and battery charging service for cars, e-scooters, and Ebus. The company also offers electric SUV, mini car EV, mid-size pickup electric truck, 7-seater MPV, E-bus, E-scooter, electric bike, and battery technology and solutions. VinFast Auto Ltd. is based in Hai Phong City, Vietnam. VinFast Auto Ltd. operates as a subsidiary of Vingroup Joint Stock Company. | F22: NASDAQ | G22: Y | H22: Y | I22: Y | J22: Y | K22: N | L22: Y | M22: N | N22: N | O22: N | P22: N | Q22: 5 | R22: -0.463 | S22: -0.73 | T22: -0.904 | U22: 0.2777 | V22: 0.1477324118 | W22: 0.8603 | X22: 0.875 | Y22: - | Z22: 0.796 | AA22: 0.583
B23: Volkswagen AG | C23: VOW3 | D23: None | E23: Volkswagen AG manufactures and sells automobiles in Germany, other European countries, North America, South America, the Asia-Pacific, and internationally. It operates through four segments: Passenger Cars and Light Commercial Vehicles, Commercial Vehicles, Power Engineering, and Financial Services. The Passenger Cars and Light Commercial Vehicles segment engages in the development of vehicles, engines, motors, vehicle software, and batteries; produces and sells passenger cars and light commercial vehicles, and related parts; and offers motorcycles. The Commercial Vehicles segment develops vehicles, engines, motors, vehicle; develops, produces, and sells trucks and buses; and offers parts and related services. The Power Engineering segment offers large-bore diesel engines, turbomachinery, and propulsion components. The Financial Services segment provides dealership and customer financing, leasing, direct banking and insurance, fleet management, and mobility services. The company sells its products under the Volkswagen Passenger Cars, Škoda, SEAT/CUPRA, Volkswagen Commercial Vehicles, Audi, Lamborghini, Bentley, Ducati, Porsche, Scania, MAN, Volkswagen Truck & Bus, International commercial vehicles, TRATON, and Bugatti Rimac brands. Volkswagen AG was founded in 1937 and is headquartered in Wolfsburg, Germany. Volkswagen AG is a subsidiary of Porsche Automobil Holding SE | F23: XTRA | G23: N | H23: N | I23: Y | J23: N | K23: Y | L23: Y | M23: N | N23: N | O23: Y | P23: Y | Q23: 4 | R23: 0.163 | S23: 0.082 | T23: 0.063 | U23: 0.0974 | V23: 0 | W23: -0.0019 | X23: 0.0343 | Y23: 0.087 | Z23: -0.004 | AA23: 0.008
B24: Winnebago Industries, Inc. | C24: WGO | D24: None | E24: Winnebago Industries, Inc. manufactures and sells recreation outdoor lifestyle products primarily for use in leisure travel and outdoor recreation activities. It operates through three segments: Towable RV, Motorhome RV, and Marine. The company provides towable products that are non-motorized vehicles to be towed by automobiles, pickup trucks, SUVs, or vans for use as temporary living quarters, such as conventional travel trailers, fifth wheels, folding camper trailers, truck campers, and park models under the Winnebago and Grand Design brand names. It also offers motorhome RV, a self-propelled mobile dwelling used primarily as temporary living quarters during vacation and camping trips, or to support active and mobile lifestyles under the Winnebago, Newmar, and Grand Design brand names. In addition, the company offers other specialty commercial vehicles for law enforcement command centers, mobile medical clinics, and mobile office spaces; commercial vehicles as bare shells to third-party up fitters, as well as manufactures and sells recreational boats under the Chris-Craft and Barletta brand names. Further, it is involved in the original equipment manufacturing of parts for other manufacturers and commercial vehicles. The company sells its products primarily through independent dealers in the United States, Canada, and internationally. Winnebago Industries, Inc. was incorporated in 1958 and is based in Eden Prairie, Minnesota. | F24: NYSE | G24: N | H24: Y | I24: Y | J24: N | K24: N | L24: N | M24: N | N24: N | O24: N | P24: Y | Q24: 2 | R24: 0.13 | S24: 0.042 | T24: 0.02 | U24: 0.1021 | V24: 0 | W24: -0.059 | X24: -0.1047 | Y24: -0.174 | Z24: 0.024 | AA24: 0.042
B25: XPeng Inc. | C25: XPEV | D25: Seeking Alpha, Mergent | E25: XPeng Inc. designs, develops, manufactures, and markets smart electric vehicles (EVs) in the People’s Republic of China. The company offers P7 and P7i, a four-door sports sedan; G9, a smart EV and a mid- to large-sized sport utility vehicle (SUV); G6, a smart EV and a coupe SUV; X9, Smart EV and a large seven-seater multi-purpose vehicle (MPV); MONA M03, an all-electric hatchback coupe; and P7+, smart EV of XPeng series. It also provides XOS Tianji, smart in-car operating system; Powertrain; and SEPA 2.0, a smart electric platform architecture. In addition, the company offers various services, including services embedded in a sales contract, supercharging, maintenance, technical support, technical research and development, and second-hand vehicle sales services; and insurance technology support, and automotive loan referral and auto financing services. XPeng Inc. was founded in 2015 and is headquartered in Guangzhou, the People’s Republic of China. | F25: NYSE | G25: Y | H25: Y | I25: Y | J25: Y | K25: N | L25: Y | M25: N | N25: Y | O25: N | P25: N | Q25: 6 | R25: 0.16 | S25: -0.048 | T25: -0.086 | U25: 0.1331 | V25: 0.1298085753 | W25: 0.6637 | X25: 0.692 | Y25: 0.274 | Z25: 0.962 | AA25: 0.682
B26: Zhejiang Leapmotor Technology Co., Ltd. | C26: 9863 | D26: Capital IQ | E26: Zhejiang Leapmotor Technology Co., Ltd. engages in the research and development, production, and sale of new energy vehicles in Mainland China and internationally. The company offers C01, a smart electric sedan; C11, a smart electric SUV; T03, a smart battery electric vehicle; and C10, a globalized strategic model. It is also involved in the manufacture and sale of electric vehicles and components; providing electric vehicle charging operation and aftersales services; new energy vehicle retail; technical service and development; and warehousing and sorting. The company was incorporated in 2015 and is headquartered in Hangzhou, China. | F26: SEHK | G26: Y | H26: N | I26: Y | J26: Y | K26: N | L26: Y | M26: N | N26: N | O26: N | P26: Y | Q26: 3 | R26: 0.127 | S26: -0.01 | T26: -0.022 | U26: 0.0869 | V26: 0.07503767701 | W26: 1.405 | X26: 0.9044 | Y26: 0.865 | Z26: 1.07 | AA26: 0.768
G27: =COUNTIF(G3:G26,"Y") -> 9
E28: Rivian Automotive, Inc., together with its subsidiaries, designs, develops, manufactures, and sells electric vehicles and accessories. The company offers consumer vehicles, including a two-row, five-passenger pickup truck under the R1T brand, a three-row, seven-passenger sport utility vehicle under the R1S name. It provides software and services, such as remarketing, vehicle repair and maintenance services, and vehicle electrical architecture and software development services. In addition, the company designs, develops, manufactures, and operates the Rivian Adventure Network Direct Current fast chargers, and offers access to Combined Charging Standard, as well as FleetOS, a proprietary, end-to-end centralized fleet management subscription platform. Further, it offers Rivian Commercial Van platform for Electric Delivery Van with collaboration with Amazon.com, Inc. It sells its products directly to customers in the consumer and commercial markets. Rivian Automotive, Inc. was founded in 2009 and is based in Irvine, California. | H28: Y | I28: Y | J28: Y | K28: Y | L28: Y | M28: Y | N28: Y | O28: Y | P28: N | Q28: 9 | R28: -0.043 | S28: -0.529 | T28: -0.699 | U28: 0.3615 | V28: 0.2941176471 | W28: 0.0273 | X28: 0.3145 | Y28: 1.156 | Z28: 0.067 | AA28: 0.186
Z29: 0.013 | AA29: 0.528

Sheet Selecting_Comps_Legacy
E1: Business Description | H1: 10K
B2: List of Possible Competitors | C2: Ticker | D2: Source | F2: Exchange | G2: Include (Y/N) | H2: Design | I2: Manufacture | J2: Electric | K2: Software | L2: Service | M2: Charge | N2: Sport | O2: Direct | P2: International | Q2: Total | R2: LTM Gross Margin % | S2: LTM EBITDA Margin % | T2: LTM EBIT Margin % | U2: LTM SG&A Margin % | V2: LTM R&D Margin % | W2: LTM Total Revenues, 1 Yr Growth % | X2: LTM Total Revenues, 2 Yr CAGR % | Y2: LTM Total Revenues, 3 Yr CAGR % | Z2: Est. Annual Revenue Growth - 1 Yr % (Capital IQ) | AA2: Est. Annual Revenue Growth - 2 Yr % (Capital IQ)
B3: Anhui Jianghuai Automobile Group Corp.,Ltd. | C3: 600418 | D3: Capital IQ | E3: Anhui Jianghuai Automobile Group Corp.,Ltd. engages in the research, development, manufacture, and sale of commercial and passenger vehicles. The company offers trucks, MPVs, SUVs, sedans, and buses, van, electric vehicle, pickup vehicles, and chassis, and other core component. It also provides spare parts and accessories; mobility solutions; and automotive financial services. The company was formerly known as Anhui Jianghuai Automobile Co., Ltd. and changed its name to Anhui Jianghuai Automobile Group Corp.,Ltd. in November 2016. Anhui Jianghuai Automobile Group Corp.,Ltd. was founded in 1964 and is based in Hefei, China. | F3: NYSE | G3: N | H3: =IFERROR(IF(SEARCH(H$2,$E3)>0,"Y","N"),"N") -> N | I3: =IFERROR(IF(SEARCH(I$2,$E3)>0,"Y","N"),"N") -> Y | J3: Y | K3: N | L3: Y | M3: N | N3: N | O3: N | P3: N | Q3: =COUNTIF(H3:O3,"Y")+COUNTIF(P3,"N") -> 4 | R3: 0.092 | S3: -0.031 | T3: -0.064 | U3: 0.0901 | V3: 0.04126939351 | W3: -0.0839 | X3: -0.0111 | Y3: 0.041 | Z3: 0.266 | AA3: 0.353
B4: Beiqi Foton Motor Co.,Ltd. | C4: 600166 | D4: Capital IQ | E4: Beiqi Foton Motor Co.,Ltd. engages in the manufacture and sale of commercial vehicles worldwide. It offers passenger vehicles, such as heavy trucks, light trucks, pickup trucks, VANs, and buses. The company was founded in 1996 and is headquartered in Beijing, China. | F4: NYSE | G4: N | H4: =IFERROR(IF(SEARCH(H$2,$E4)>0,"Y","N"),"N") -> N | I4: Y | J4: N | K4: N | L4: N | M4: N | N4: N | O4: N | P4: N | Q4: =COUNTIF(H4:O4,"Y")+COUNTIF(P4,"N") -> 2 | R4: 0.112 | S4: 0.02 | T4: 0.009 | U4: 0.0665 | V4: 0.03187919023 | W4: 0.0562 | X4: 0.0189 | Y4: 0.054 | Z4: 0.283 | AA4: 0.221
B5: Ferrari N.V. | C5: RACE | D5: Capital IQ, Mergent | E5: Ferrari N.V., through its subsidiaries, engages in design, engineering, production, and sale of luxury performance sports cars worldwide. The company offers sports, track, one-off, and road cars, as well as supercars. It also provides spare parts and engines, as well as after sales, repair, maintenance, and restoration services for cars; and licenses its Ferrari brand to various producers and retailers of luxury and lifestyle goods. In addition, the company operates Ferrari museums in Modena and Maranello; Il Cavallino restaurant in Maranello; and theme parks in Abu Dhabi and Spain. Further, it provides direct or indirect finance and leasing services; range of financial and ancillary services; special financing arrangements; and operates franchised and owned Ferrari stores. The company was founded in 1947 and is headquartered in Maranello, Italy. | F5: NYSE | G5: N | H5: Y | I5: N | J5: N | K5: N | L5: Y | M5: N | N5: Y | O5: Y | P5: N | Q5: 5 | R5: 0.512 | S5: 0.334 | T5: 0.291 | U5: 0.0867 | V5: 0.1316945413 | W5: 0.0934 | X5: 0.1227 | Y5: 0.14 | Z5: 0.065 | AA5: 0.082
B6: Ford Motor Company | C6: F | D6: Capital IQ, Mergent, Financial Times, Proxy, ChatGPT | E6: Ford Motor Company develops, delivers, and services Ford trucks, sport utility vehicles, commercial vans and cars, and Lincoln luxury vehicles worldwide. It operates through Ford Blue, Ford Model e, Ford Pro, and Ford Credit segments. The company sells Ford and Lincoln internal combustion engine and hybrid vehicles, electric vehicles, service parts, accessories, and digital services for retail customers, as well as develops software. It also sells Ford and Lincoln vehicles, service parts, and accessories through distributors and dealers, as well as through dealerships to commercial fleet customers, daily rental car companies, and governments. In addition, it engages in the vehicle-related financing and leasing activities to and through automotive dealers. Further, the company provides retail installment sale contracts for new and used vehicles; and direct financing leases for new vehicles to retail and commercial customers, such as leasing companies, government entities, daily rental companies, and fleet customers. Additionally, it offers wholesale loans to dealers to finance the purchase of vehicle inventory; and loans to dealers to finance working capital and enhance dealership facilities, purchase dealership real estate, and other dealer vehicle programs. The company was incorporated in 1903 and is based in Dearborn, Michigan. | F6: NYSE | G6: Y | H6: N | I6: N | J6: Y | K6: Y | L6: Y | M6: N | N6: Y | O6: Y | P6: N | Q6: 6 | R6: 0.076 | S6: 0.051 | T6: 0.021 | U6: 0.0549 | V6: 0 | W6: 0.0375 | X6: 0.0431 | Y6: 0.077 | Z6: 0.009 | AA6: 0.004
B7: General Motors Company | C7: GM | D7: Capital IQ, Mergent, Proxy, ChatGPT | E7: General Motors Company designs, builds, and sells trucks, crossovers, cars, and automobile parts worldwide. The company operates through GM North America, GM International, Cruise, and GM Financial segments. It markets its vehicles primarily under the Buick, Cadillac, Chevrolet, GMC, Baojun, and Wuling brand names. In addition, the company sells trucks, crossovers, cars, and automobile parts through retail dealers, distributors and dealers, as well as to fleet customers, including daily rental car companies, commercial fleet customers, leasing companies, and governments. Further, it offers software-enabled services and subscriptions; and various range of after-sale services through dealer network, such as maintenance, light repairs, collision repairs, vehicle accessories, and extended service warranties. Additionally, the company provides automotive financing; and software-enabled services and subscriptions. General Motors Company was founded in 1908 and is headquartered in Detroit, Michigan. | F7: NYSE | G7: Y | H7: Y | I7: N | J7: N | K7: Y | L7: Y | M7: N | N7: N | O7: N | P7: Y | Q7: 3 | R7: 0.101 | S7: 0.084 | T7: 0.05 | U7: 0.0511 | V7: 0 | W7: 0.0258 | X7: 0.044 | Y7: 0.084 | Z7: -0.009 | AA7: -0.004
B8: Harley-Davidson, Inc. | C8: HOG | D8: Financial Times | E8: Harley-Davidson, Inc. manufactures and sells motorcycles in the United States and internationally. The company operates in three segments: Harley-Davidson Motor Company, LiveWire, and Harley-Davidson Financial Services. The Harley-Davidson Motor Company segment designs, manufactures, and sells motorcycles, including cruiser, trike, touring, standard, sportbike, adventure, and dual sport, as well as motorcycle parts, accessories, and apparel, as well as licenses its trademarks and related services. This segment sells its products to retail customers through a network of independent dealers, as well as e-commerce channels. The LiveWire segment sells electric motorcycles, balance bikes for kids, parts and accessories, apparel, and related parts and services. The Harley-Davidson Financial Services segment provides wholesale financing services, such as floorplan and open account financing of motorcycles, and parts and accessories; and retail financing services, such as installment lending for the purchase of new and used Harley-Davidson motorcycles, as well as point-of-sale insurance and voluntary protection products. This segment also licenses third-party financial institutions that issue credit cards bearing the Harley-Davidson brand. Harley-Davidson, Inc. was founded in 1903 and is based in Milwaukee, Wisconsin. | F8: NYSE | G8: N | H8: Y | I8: Y | J8: Y | K8: N | L8: Y | M8: N | N8: Y | O8: N | P8: Y | Q8: 5 | R8: 0.249 | S8: 0.091 | T8: 0.055 | U8: 0.1939 | V8: 0 | W8: -0.2481 | X8: -0.1382 | Y8: -0.058 | Z8: -0.104 | AA8: -0.034
B9: Honda Motor Co., Ltd. | C9: 7267 | D9: Mergent | E9: Honda Motor Co., Ltd. develops, manufactures, and distributes motorcycles, automobiles, and power products in Japan, North America, Europe, Asia, and internationally. It operates through four segments: Motorcycle Business, Automobile Business, Financial Services Business, and Power Product and Other Businesses. The Motorcycle Business segment produces motorcycles, including sports, business, and commuter models; and various off-road vehicles, such as all-terrain vehicles and side-by-sides. The Automobile Business segment offers passenger cars, light trucks, and mini vehicles. The Financial Services Business segment provides various financial services, including retail lending and leasing services to customers, as well as wholesale financing services to dealers. The Power Product and Other Businesses manufactures and sells power products, such as general-purpose engines, lawn mowers, generators, water pumps, brush cutters, and tillers. This segment also offers HondaJet aircraft. The company also sells spare parts; and provides after-sales services through retail dealers directly, as well as through independent distributors and licensees. Honda Motor Co., Ltd. was founded in 1946 and is headquartered in Tokyo, Japan. | F9: NYSE | G9: Y | H9: N | I9: Y | J9: N | K9: N | L9: Y | M9: N | N9: Y | O9: Y | P9: Y | Q9: 4 | R9: 0.21 | S9: 0.066 | T9: 0.045 | U9: 0.1105 | V9: 0.05440866475 | W9: 0.0196 | X9: 0.1052 | Y9: 0.135 | Z9: -0.015 | AA9: 0.003
B10: Jiangling Motors Corporation, Ltd. | C10: 000550 | D10: Capital IQ | E10: Jiangling Motors Corporation, Ltd., together with its subsidiaries, engages in the production and sale of automobiles and automobile parts in China and internationally. It offers commercial vehicles, passenger sport utility vehicles (SUVs), and related components, which include JMC light trucks, pickups, light buses, Ford-branded light buses, multi-purpose passenger vehicles, and other commercial vehicles and passenger SUV products. The company also provides engines, frames, axles, and other components. It offers its products and services to distributors or end customers. The company was founded in 1992 and is headquartered in Nanchang, China. | F10: NYSE | G10: N | H10: N | I10: N | J10: N | K10: N | L10: Y | M10: N | N10: Y | O10: N | P10: Y | Q10: 2 | R10: 0.141 | S10: 0.071 | T10: 0.033 | U10: 0.0453 | V10: 0.03751801052 | W10: 0.0145 | X10: 0.096 | Y10: 0.061 | Z10: 0.074 | AA10: 0.063
B11: Li Auto Inc. | C11: LI | D11: Seeking Alpha, Mergent | E11: Li Auto Inc. operates in the energy vehicle market in the People’s Republic of China. It designs, develops, manufactures, and sells premium smart electric vehicles. The company’s product line comprises multi-purpose vehicles and sport utility vehicles. It offers sales and after sales management, and technology development and corporate management services, as well as manufacturing equipment. The company offers its products through online and offline channels. The company was formerly known as Leading Ideal Inc. and changed its name to Li Auto Inc. in July 2020. Li Auto Inc. was founded in 2015 and is headquartered in Beijing, the People’s Republic of China. | F11: NYSE | G11: N | H11: Y | I11: Y | J11: Y | K11: N | L11: Y | M11: N | N11: Y | O11: N | P11: N | Q11: 6 | R11: 0.206 | S11: 0.082 | T11: 0.058 | U11: 0.0815 | V11: 0.07199924721 | W11: 0.0718 | X11: 0.3876 | Y11: 0.575 | Z11: -0.108 | AA11: 0.117
B12: Lucid Group, Inc. | C12: LCID | D12: Capital IQ, Financial Times, Proxy, ChatGPT | E12: Lucid Group, Inc., a technology company, designs, engineers, manufactures, and sells electric vehicles (EV), EV powertrains, and battery systems. It also designs and develops proprietary software in-house for Lucid vehicles. The company sells vehicles directly to consumers through its retail sales network and direct online sales, including Lucid Financial Services. The company is headquartered in Newark, California. Lucid Group, Inc. is a subsidiary of Ayar Third Investment Company. | F12: NYSE | G12: N | H12: Y | I12: Y | J12: Y | K12: Y | L12: Y | M12: N | N12: N | O12: Y | P12: N | Q12: 7 | R12: -0.993 | S12: -2.83 | T12: - | U12: 1.0189 | V12: 1.216081808 | W12: 0.3901 | X12: 0.1104 | Y12: 0.723 | Z12: 0.598 | AA12: 0.765
B13: Nikola Corporation | C13: NKLA | D13: ChatGPT | E13: Nikola Corporation operates as a technology innovator and integrator that develops energy and transportation solutions in the United States and internationally. The company operates in Truck and Energy units. It commercializes battery electric vehicles (BEV) and hydrogen fuel cell electric vehicles (FCEV) to the trucking sector. The company also develops a network of hydrogen fueling stations; and offers BEV charging solutions for its FCEV and BEV customers, as well as other third-party customers. In addition, its products include Nikola Tre Class 8 truck and the Nikola's Class 8 FCEV. Further, the company assembles, integrates, and commissions its vehicles in collaboration with its business partners and suppliers. Nikola Corporation was founded in 2015 and is headquartered in Phoenix, Arizona. On February 19, 2025, Nikola Corporation, along with its affiliates, filed a voluntary petition for reorganization under Chapter 11 in the U.S. Bankruptcy Court for the District of Delaware. The plan was later approved as Chapter 11 liquidation on September 12, 2025. | F13: NYSE | G13: N | H13: N | I13: N | J13: Y | K13: N | L13: N | M13: N | N13: Y | O13: N | P13: Y | Q13: 2 | R13: - | S13: - | T13: - | U13: 2.7767 | V13: 2.294049347 | W13: 0.9214 | X13: 0.1768 | Y13: - | Z13: - | AA13: -
B14: NIO Inc. | C14: NIO | D14: Capital IQ, Mergent, Seeking Alpha, ChatGPT | E14: NIO Inc. designs, develops, manufactures, and sells smart electric vehicles in China, Europe, and internationally. It offers five and six-seater electric SUVs, as well as smart electric sedans. The company also offers power solutions, including Power Home, a home charging solution; Power Swap, a battery-swapping service; Power Charger and Destination Charger; Power Mobile, a mobile charging service through charging vans; Power Map, an application that provides access to a network of public chargers and their real-time information; and One Click for power valet service. In addition, it provides repair, maintenance, and bodywork services through its service centers and authorized third-party service centers; statutory and third-party liability insurance, and vehicle damage insurance through third-party insurers; repair and maintenance; courtesy vehicle; data packages; and auto financing and financial leasing services. Further, the company is involved in the provision of energy and service packages to its users; design and technology development activities; manufacture of electric powertrains, battery packs, and components; and sales and after-sales management activities. The company was formerly known as NextEV Inc. and changed its name to NIO Inc. in July 2017. NIO Inc. was incorporated in 2014 and is based in Shanghai, China. | F14: NYSE | G14: N | H14: Y | I14: Y | J14: Y | K14: N | L14: Y | M14: Y | N14: N | O14: N | P14: Y | Q14: 5 | R14: 0.103 | S14: -0.229 | T14: -0.326 | U14: 0.2477 | V14: 0.1857141396 | W14: 0.0928 | X14: 0.1962 | Y14: 0.203 | Z14: 0.365 | AA14: 0.391
B15: Polaris Inc. | C15: PII | D15: Financial Times | E15: Polaris Inc. designs, engineers, manufactures, and markets powersports vehicles in the United States, Canada, and internationally. It operates through three segments: Off-Road, On-Road, and Marine. The company offers off-road vehicles (ORVs), including all-terrain vehicles and side-by-side vehicles; military and commercial ORVs; snowmobiles; motorcycles; and moto-roadsters, quadricycles, and boats. It also provides ORV accessories comprising winches, bumper/brushguards, plows, racks, wheels and tires, pull-behinds, cab systems, lighting and audio systems, cargo box accessories, and tracks; snowmobile accessories, which include covers, traction products, reverse kits, electric starters, tracks, bags, windshields, replacement parts, and lubricants; and motorcycle accessories, such as saddle bags, handlebars, backrests, exhausts, windshields, seats, oil, and various chrome accessories. In addition, the company offers light duty hauling and passenger vehicles; gear and apparel, such as helmets, goggles, jackets, gloves, boots, bibs, hats, and pants; and pontoon and deck boats. It provides its products through dealers and distributors, and online; and retail and e-commerce marketplaces. The company was formerly known as Polaris Industries Inc. Polaris Inc. was founded in 1945 and is headquartered in Medina, Minnesota. | F15: NYSE | G15: N | H15: Y | I15: Y | J15: Y | K15: N | L15: N | M15: N | N15: Y | O15: N | P15: Y | Q15: 4 | R15: 0.203 | S15: 0.061 | T15: 0.019 | U15: 0.1352 | V15: 0.04864192646 | W15: -0.0932 | X15: -0.1192 | Y15: -0.049 | Z15: -0.025 | AA15: -0.008
B16: Polestar Automotive Holding UK PLC | C16: PSNY | D16: ChatGPT | E16: Polestar Automotive Holding UK PLC engages in the research and development, marketing, commercialization, and sale of battery electric vehicles and related technology solutions. The company offers battery electric vehicles, including Polestar 2 (PS2), a fast-back sedan; Polestar 3 (PS3), an aero sport-utility vehicle; Polestar 4 (PS4), a sport utility vehicle; Polestar 5 (PS5), a sport grand-touring sedan; and Polestar 6 (PS6), a roadster. It also provides vehicle accessories; software and performance engineered kits; and carbon credits, as well as vehicle leasing. The company was founded in 2017 and is headquartered in Gothenburg, Sweden. | F16: NYSE | G16: N | H16: N | I16: N | J16: Y | K16: Y | L16: N | M16: N | N16: Y | O16: N | P16: N | Q16: 4 | R16: -0.327 | S16: -0.667 | T16: -0.672 | U16: 0.3421 | V16: 0.01778144136 | W16: 0.2482 | X16: -0.0169 | Y16: 0.114 | Z16: 0.511 | AA16: 0.481
B17: Stellantis N.V. | C17: STLAM | D17: Mergent, Proxy | E17: Stellantis N.V. engages in the design, engineering, manufacturing, distribution, and sale of automobiles and light commercial vehicles, engines, transmission systems, metallurgical products, mobility services, and production systems worldwide. It provides luxury and premium vehicles; global sport utility vehicles; American and European brand vehicles, as well as parts and accessories. The company also provides contract services; retail and dealer financing services; and leasing and rental services. It offers its products under the Abarth, Alfa Romeo, Chrysler, Citroën, DS, Dodge, FIAT, Jeep, Maserati, Ram, Opel, Lancia, Vauxhall, Peugeot, and Comau brand names through distributors and dealers. Stellantis N.V. was founded in 1899 and is based in Hoofddorp, the Netherlands. | F17: NYSE | G17: N | H17: Y | I17: N | J17: N | K17: N | L17: Y | M17: N | N17: Y | O17: N | P17: N | Q17: 4 | R17: 0.082 | S17: 0.015 | T17: -0.015 | U17: 0.0624 | V17: 0.0339579 | W17: -0.1707 | X17: -0.1229 | Y17: -0.039 | Z17: -0.028 | AA17: 0.015
B18: Subaru Corporation | C18: 7270 | D18: Seeking Alpha | E18: Subaru Corporation manufactures and sells automobiles and aerospace products in Japan, Rest of Asia, North America, Europe, and Internationally. It operates through three segments: Automotive, Aerospace, and Others. The company manufactures, sells, and repairs automobiles and related components, aircraft, space-related devices, and the parts; and rents and manages real estate properties. It also involved in the shipping, land freight, and warehousing of vehicles; leasing and rental of vehicles; credit and financing of vehicles; inspection, service, and maintenance of aircraft. In addition, the company engages in the leasing of production, tools such as molds, and network equipment and devices, as well as for real estate such as stores, company-owned houses and warehouses for the automotive business. The company was formerly known as Fuji Heavy Industries Ltd. and changed its name to Subaru Corporation in April 2017. Subaru Corporation was founded in 1917 and is headquartered in Tokyo, Japan. | F18: NYSE | G18: Y | H18: N | I18: Y | J18: N | K18: N | L18: Y | M18: N | N18: N | O18: N | P18: Y | Q18: 2 | R18: 0.204 | S18: 0.13 | T18: 0.081 | U18: 0.0878 | V18: 0.03198526273 | W18: 0.0201 | X18: 0.0933 | Y18: - | Z18: -0.016 | AA18: 0.018
B19: Tesla, Inc. | C19: TSLA | D19: Capital IQ, Mergent, Proxy, ChatGPT | E19: Tesla, Inc. designs, develops, manufactures, leases, and sells electric vehicles, and energy generation and storage systems in the United States, China, and internationally. The company operates in two segments, Automotive; and Energy Generation and Storage. The Automotive segment offers electric vehicles, as well as sells automotive regulatory credits; and non-warranty after-sales vehicle, used vehicles, body shop and parts, supercharging, retail merchandise, and vehicle insurance services. This segment also provides sedans and sport utility vehicles through direct and used vehicle sales, a network of Tesla Superchargers, and in-app upgrades; purchase financing and leasing services; services for electric vehicles through its company-owned service locations and Tesla mobile service technicians; and vehicle limited warranties and extended service plans. The Energy Generation and Storage segment engages in the design, manufacture, installation, sale, and leasing of solar energy generation and energy storage products, and related services to residential, commercial, and industrial customers and utilities through its website, stores, and galleries, as well as through a network of channel partners. This segment also provides services and repairs to its energy product customers, including under warranty; and various financing options to its residential customers. The company was formerly known as Tesla Motors, Inc. and changed its name to Tesla, Inc. in February 2017. Tesla, Inc. was incorporated in 2003 and is headquartered in Austin, Texas. | F19: NYSE | G19: N | H19: Y | I19: Y | J19: Y | K19: N | L19: Y | M19: Y | N19: Y | O19: Y | P19: Y | Q19: 7 | R19: 0.17 | S19: 0.113 | T19: 0.05 | U19: 0.0574 | V19: 0.06173601163 | W19: -0.0156 | X19: -0.0015 | Y19: 0.085 | Z19: -0.029 | AA19: 0.059
B20: THOR Industries, Inc. | C20: THO | D20: None | E20: THOR Industries, Inc. designs, manufactures, and sells recreational vehicles (RVs), and related parts and accessories in the United States, Germany, rest of Europe, Canada, and internationally. The company offers travel trailers; gasoline and diesel Class A, Class B, and Class C motorhomes; conventional travel trailers and fifth wheels; conventional motorhomes; luxury fifth wheels; and motorcaravans, campervans, urban vehicles, and caravans, as well as other RV-related products and services. It also provides aluminum extrusion and specialized component products to RV and other manufacturers. The company sells its products to independent and non-franchise dealers. THOR Industries, Inc. was founded in 1980 and is based in Elkhart, Indiana. | F20: NYSE | G20: N | H20: Y | I20: Y | J20: N | K20: N | L20: Y | M20: N | N20: N | O20: N | P20: Y | Q20: 3 | R20: 0.14 | S20: 0.06 | T20: 0.032 | U20: 0.0956 | V20: 0 | W20: -0.0462 | X20: -0.0719 | Y20: -0.163 | Z20: -0.01 | AA20: 0.023
B21: Toyota Motor Corporation | C21: 7203 | D21: Mergent | E21: Toyota Motor Corporation designs, manufactures, assembles, and sells passenger vehicles, minivans and commercial vehicles, and related parts and accessories in Japan, North America, Europe, Asia, Central and South America, Oceania, Africa, and the Middle East. It operates through Automotive, Financial Services, and All Other segments. The company offers subcompact and compact cars; mini-vehicles; mid-size, luxury, sports, and specialty cars; recreational and sport-utility vehicles; pickup trucks; minivans; trucks; and buses. It also develops and sells battery electric vehicles and batteries. In addition, the company provides financial services, such as retail financing and leasing, wholesale financing, insurance, and credit cards. Further, it operates GAZOO.com, a web portal for automobile information, as well as engages in telecommunications and other businesses. It offers vehicles under the Toyota and Lexus brand names. Toyota Motor Corporation was founded in 1933 and is headquartered in Toyota, Japan. | F21: NYSE | G21: Y | H21: Y | I21: Y | J21: Y | K21: N | L21: Y | M21: N | N21: Y | O21: N | P21: N | Q21: 6 | R21: 0.175 | S21: 0.142 | T21: 0.096 | U21: 0.0796 | V21: 0 | W21: 0.0445 | X21: 0.1116 | Y21: 0.149 | Z21: 0.035 | AA21: 0.034
B22: VinFast Auto Ltd. | C22: VFS | D22: Financial Times | E22: VinFast Auto Ltd. engages in the design and manufacture of electric vehicles (EV), e-scooters, and e-buses in Vietnam, Canada, and the United States. The company operates through three segments: namely Car, E-scooters and Ebus. It offers the design, development, manufacturing and sales of e-scooters and related battery lease and battery charging service for cars, e-scooters, and Ebus. The company also offers electric SUV, mini car EV, mid-size pickup electric truck, 7-seater MPV, E-bus, E-scooter, electric bike, and battery technology and solutions. VinFast Auto Ltd. is based in Hai Phong City, Vietnam. VinFast Auto Ltd. operates as a subsidiary of Vingroup Joint Stock Company. | F22: NYSE | G22: N | H22: Y | I22: Y | J22: Y | K22: N | L22: Y | M22: N | N22: N | O22: N | P22: N | Q22: 5 | R22: -0.463 | S22: -0.73 | T22: -0.904 | U22: 0.2777 | V22: 0.1477324118 | W22: 0.8603 | X22: 0.875 | Y22: - | Z22: 0.796 | AA22: 0.583
B23: Volkswagen AG | C23: VOW3 | D23: None | E23: Volkswagen AG manufactures and sells automobiles in Germany, other European countries, North America, South America, the Asia-Pacific, and internationally. It operates through four segments: Passenger Cars and Light Commercial Vehicles, Commercial Vehicles, Power Engineering, and Financial Services. The Passenger Cars and Light Commercial Vehicles segment engages in the development of vehicles, engines, motors, vehicle software, and batteries; produces and sells passenger cars and light commercial vehicles, and related parts; and offers motorcycles. The Commercial Vehicles segment develops vehicles, engines, motors, vehicle; develops, produces, and sells trucks and buses; and offers parts and related services. The Power Engineering segment offers large-bore diesel engines, turbomachinery, and propulsion components. The Financial Services segment provides dealership and customer financing, leasing, direct banking and insurance, fleet management, and mobility services. The company sells its products under the Volkswagen Passenger Cars, Škoda, SEAT/CUPRA, Volkswagen Commercial Vehicles, Audi, Lamborghini, Bentley, Ducati, Porsche, Scania, MAN, Volkswagen Truck & Bus, International commercial vehicles, TRATON, and Bugatti Rimac brands. Volkswagen AG was founded in 1937 and is headquartered in Wolfsburg, Germany. Volkswagen AG is a subsidiary of Porsche Automobil Holding SE | F23: NYSE | G23: Y | H23: N | I23: Y | J23: N | K23: Y | L23: Y | M23: N | N23: N | O23: Y | P23: Y | Q23: 4 | R23: 0.163 | S23: 0.082 | T23: 0.063 | U23: 0.0974 | V23: 0 | W23: -0.0019 | X23: 0.0343 | Y23: 0.087 | Z23: -0.004 | AA23: 0.008
B24: Winnebago Industries, Inc. | C24: WGO | D24: None | E24: Winnebago Industries, Inc. manufactures and sells recreation outdoor lifestyle products primarily for use in leisure travel and outdoor recreation activities. It operates through three segments: Towable RV, Motorhome RV, and Marine. The company provides towable products that are non-motorized vehicles to be towed by automobiles, pickup trucks, SUVs, or vans for use as temporary living quarters, such as conventional travel trailers, fifth wheels, folding camper trailers, truck campers, and park models under the Winnebago and Grand Design brand names. It also offers motorhome RV, a self-propelled mobile dwelling used primarily as temporary living quarters during vacation and camping trips, or to support active and mobile lifestyles under the Winnebago, Newmar, and Grand Design brand names. In addition, the company offers other specialty commercial vehicles for law enforcement command centers, mobile medical clinics, and mobile office spaces; commercial vehicles as bare shells to third-party up fitters, as well as manufactures and sells recreational boats under the Chris-Craft and Barletta brand names. Further, it is involved in the original equipment manufacturing of parts for other manufacturers and commercial vehicles. The company sells its products primarily through independent dealers in the United States, Canada, and internationally. Winnebago Industries, Inc. was incorporated in 1958 and is based in Eden Prairie, Minnesota. | F24: NYSE | G24: N | H24: Y | I24: Y | J24: N | K24: N | L24: N | M24: N | N24: N | O24: N | P24: Y | Q24: 2 | R24: 0.13 | S24: 0.042 | T24: 0.02 | U24: 0.1021 | V24: 0 | W24: -0.059 | X24: -0.1047 | Y24: -0.174 | Z24: 0.024 | AA24: 0.042
B25: XPeng Inc. | C25: XPEV | D25: Seeking Alpha, Mergent | E25: XPeng Inc. designs, develops, manufactures, and markets smart electric vehicles (EVs) in the People’s Republic of China. The company offers P7 and P7i, a four-door sports sedan; G9, a smart EV and a mid- to large-sized sport utility vehicle (SUV); G6, a smart EV and a coupe SUV; X9, Smart EV and a large seven-seater multi-purpose vehicle (MPV); MONA M03, an all-electric hatchback coupe; and P7+, smart EV of XPeng series. It also provides XOS Tianji, smart in-car operating system; Powertrain; and SEPA 2.0, a smart electric platform architecture. In addition, the company offers various services, including services embedded in a sales contract, supercharging, maintenance, technical support, technical research and development, and second-hand vehicle sales services; and insurance technology support, and automotive loan referral and auto financing services. XPeng Inc. was founded in 2015 and is headquartered in Guangzhou, the People’s Republic of China. | F25: NYSE | G25: N | H25: Y | I25: Y | J25: Y | K25: N | L25: Y | M25: N | N25: Y | O25: N | P25: N | Q25: 6 | R25: 0.16 | S25: -0.048 | T25: -0.086 | U25: 0.1331 | V25: 0.1298085753 | W25: 0.6637 | X25: 0.692 | Y25: 0.274 | Z25: 0.962 | AA25: 0.682
B26: Zhejiang Leapmotor Technology Co., Ltd. | C26: 9863 | D26: Capital IQ | E26: Zhejiang Leapmotor Technology Co., Ltd. engages in the research and development, production, and sale of new energy vehicles in Mainland China and internationally. The company offers C01, a smart electric sedan; C11, a smart electric SUV; T03, a smart battery electric vehicle; and C10, a globalized strategic model. It is also involved in the manufacture and sale of electric vehicles and components; providing electric vehicle charging operation and aftersales services; new energy vehicle retail; technical service and development; and warehousing and sorting. The company was incorporated in 2015 and is headquartered in Hangzhou, China. | F26: NYSE | G26: N | H26: N | I26: Y | J26: Y | K26: N | L26: Y | M26: N | N26: N | O26: N | P26: Y | Q26: 3 | R26: 0.127 | S26: -0.01 | T26: -0.022 | U26: 0.0869 | V26: 0.07503767701 | W26: 1.405 | X26: 0.9044 | Y26: 0.865 | Z26: 1.07 | AA26: 0.768
G27: =COUNTIF(G3:G26,"Y") -> 6
E28: Rivian Automotive, Inc., together with its subsidiaries, designs, develops, manufactures, and sells electric vehicles and accessories. The company offers consumer vehicles, including a two-row, five-passenger pickup truck under the R1T brand, a three-row, seven-passenger sport utility vehicle under the R1S name. It provides software and services, such as remarketing, vehicle repair and maintenance services, and vehicle electrical architecture and software development services. In addition, the company designs, develops, manufactures, and operates the Rivian Adventure Network Direct Current fast chargers, and offers access to Combined Charging Standard, as well as FleetOS, a proprietary, end-to-end centralized fleet management subscription platform. Further, it offers Rivian Commercial Van platform for Electric Delivery Van with collaboration with Amazon.com, Inc. It sells its products directly to customers in the consumer and commercial markets. Rivian Automotive, Inc. was founded in 2009 and is based in Irvine, California. | H28: Y | I28: Y | J28: Y | K28: Y | L28: Y | M28: Y | N28: Y | O28: Y | P28: N | Q28: 9 | R28: -0.043 | S28: -0.529 | T28: -0.699 | U28: 0.3615 | V28: 0.2941176471 | W28: 0.0273 | X28: 0.3145 | Y28: 1.156 | Z28: 0.067 | AA28: 0.186
Z29: 0.013 | AA29: 0.528

Sheet RIVN_Comps
B2: =RIVN_DCF!C2&"Valuation with Public Comparables" -> Rivian AutomotiveValuation with Public Comparables
B3: =RIVN_DCF!B8 -> Fiscal year ends in December USD in millions except per share data.
B4: Valuation for period ended
B5: Ticker | C5: =RIVN_DCF!C3 -> RIVN
B6: Valuation Date
B7: Company Name | C7: =RIVN_DCF!C2 -> Rivian Automotive
F8: Market Value | G8: Enterprise | I8: BV | J8: Price(Market)-
B9: Company | C9: Ticker | D9: Share price | F9: of Equity | G9: Value | H9: EV/Sales | I9: Equity | J9: to-Book
B10: =RIVN_DCF!C2 -> Rivian Automotive | C10: =C5 -> RIVN | D10: =INDIRECT(C10&"_LTM!$C$14") -> 15.23 | F10: =INDIRECT(C10&"_LTM!$C$15") -> 18670.7 | G10: =F10+SUM(INDIRECT(C10&"_LTM!$H$10:$H$12")) -> 16800.7 | H10: =G10/INDIRECT(C10&"_LTM!$H$6") -> 2.879297344 | I10: =INDIRECT(C10&"_LTM!$C$16") -> 5066 | J10: =F10/I10 -> 3.685491512
B12: Anhui Jianghuai Automobile Group Corp.,Ltd. | C12: 600418 | D12: =INDIRECT(C12&"_LTM!$C$14") -> 47.68 | F12: =INDIRECT(C12&"_LTM!$C$15") -> 104133.6 | G12: =F12+SUM(INDIRECT(C12&"_LTM!$H$10:$H$12")) -> 98576.8 | H12: =G12/INDIRECT(C12&"_LTM!$H$6") -> 2.629012621 | I12: =INDIRECT(C12&"_LTM!$C$16") -> 9929.26 | J12: =F12/I12 -> 10.48754892
B13: Li Auto Inc. | C13: LI | D13: =INDIRECT(C13&"_LTM!$C$14") -> 20 | F13: =INDIRECT(C13&"_LTM!$C$15") -> 20184.5 | G13: =F13+SUM(INDIRECT(C13&"_LTM!$H$10:$H$12")) -> 7613.6 | H13: =G13/INDIRECT(C13&"_LTM!$H$6") -> 0.3782036195 | I13: =INDIRECT(C13&"_LTM!$C$16") -> 73122.31 | J13: =F13/I13 -> 0.2760375048
B14: Lucid Group, Inc. | C14: LCID | D14: =INDIRECT(C14&"_LTM!$C$14") -> 17.28 | F14: =INDIRECT(C14&"_LTM!$C$15") -> 5601.6 | G14: 7998.8 | H14: =G14/INDIRECT(C14&"_LTM!$H$6") -> 7.506874513 | I14: =INDIRECT(C14&"_LTM!$C$16") -> 1800.4 | J14: 3.111308598
B15: NIO Inc. | C15: NIO | D15: =INDIRECT(C15&"_LTM!$C$14") -> 6.86 | F15: =INDIRECT(C15&"_LTM!$C$15") -> 16974.8 | G15: 19887.5 | H15: =G15/INDIRECT(C15&"_LTM!$H$6") -> 2.039561416 | I15: =INDIRECT(C15&"_LTM!$C$16") -> -1205.71 | J15: -14.07867564
B16: Polestar Automotive Holding UK PLC | C16: PSNY | D16: =INDIRECT(C16&"_LTM!$C$14") -> 0.75 | F16: =INDIRECT(C16&"_LTM!$C$15") -> 1742 | G16: 6669 | H16: =G16/INDIRECT(C16&"_LTM!$H$6") -> 2.617737339 | I16: =INDIRECT(C16&"_LTM!$C$16") -> -4266 | J16: -0.4083450539
B17: Tesla, Inc. | C17: TSLA | D17: =INDIRECT(C17&"_LTM!$C$14") -> 429.5 | F17: =INDIRECT(C17&"_LTM!$C$15") -> 1428505.8 | G17: 1401392.8 | H17: =G17/INDIRECT(C17&"_LTM!$H$6") -> 14.65386216 | I17: =INDIRECT(C17&"_LTM!$C$16") -> 79970 | J17: 17.86302113
B18: VinFast Auto Ltd. | C18: VFS | D18: =INDIRECT(C18&"_LTM!$C$14") -> 3.43 | F18: =INDIRECT(C18&"_LTM!$C$15") -> 8025.2 | G18: 16702.1 | H18: =G18/INDIRECT(C18&"_LTM!$H$6") -> 7.108155886 | I18: =INDIRECT(C18&"_LTM!$C$16") -> -6850.3 | J18: -1.171510737
B19: XPeng Inc. | C19: XPEV | D19: =INDIRECT(C19&"_LTM!$C$14") -> 22.43 | F19: =INDIRECT(C19&"_LTM!$C$15") -> 21391.4 | G19: 18862.5 | H19: =G19/INDIRECT(C19&"_LTM!$H$6") -> 2.227327651 | I19: =INDIRECT(C19&"_LTM!$C$16") -> 4261.2 | J19: 5.020041303
B20: Zhejiang Leapmotor Technology Co., Ltd. | C20: 9863 | D20: =INDIRECT(C20&"_LTM!$C$14") -> 57.8 | F20: =INDIRECT(C20&"_LTM!$C$15") -> 82175.5 | G20: 67253.5 | H20: =G20/INDIRECT(C20&"_LTM!$H$6") -> 1.294835128 | I20: =INDIRECT(C20&"_LTM!$C$16") -> 14203.48814 | J20: 5.78558585
G24: High | H24: =_xlfn.MAXIFS(H12:H20,H12:H20,">0") -> 14.65386216 | J24: =_xlfn.MAXIFS(J12:J20,J12:J20,">0") -> 17.86302113 | K24: =_xlfn.FORMULATEXT(J24) -> =MAXIFS(J12:J20,J12:J20,">0")
G25: Mean | H25: =AVERAGEIF(H12:H20,">0") -> 4.49506337 | J25: =AVERAGEIF(J12:J20,">0") -> 7.090590552 | K25: =_xlfn.FORMULATEXT(J25) -> =AVERAGEIF(J12:J20,">0")
G26: Median | H26: =MEDIAN(IF(H12:H20>0,H12:H20)) -> 2.617737339 | J26: =MEDIAN(IF(J12:J20>0,J12:J20)) -> 5.402813576 | K26: =_xlfn.FORMULATEXT(J26) -> {=MEDIAN(IF(J12:J20>0,J12:J20))}
G27: Low | H27: =_xlfn.MINIFS(H12:H20,H12:H20,">0") -> 0.3782036195 | J27: =_xlfn.MINIFS(J12:J20,J12:J20,">0") -> 0.2760375048 | K27: =_xlfn.FORMULATEXT(J27) -> =MINIFS(J12:J20,J12:J20,">0")
D30: Implied price per share | E30: Diluted shares outstanding | F30: Implied Equity Value | G30: Implied Enterprise Value | H30: Range of EV/Sales | J30: Range of Forward Price-to-Book
B31: =RIVN_DCF!C2 -> Rivian Automotive | D31: =F31/E31 -> 14.2386349 | E31: =RIVN_DCF!$I$103 -> 1196.814169 | F31: =G31-SUM(RIVN_LTM!$H$10:$H$12) -> 17041 | G31: =H31*RIVN_LTM!$H$6 -> 15171 | H31: 2.6
D32: =F32/E32 -> 23.50197778 | E32: =RIVN_DCF!$I$103 -> 1196.814169 | F32: =G32-SUM(RIVN_LTM!$H$10:$H$12) -> 28127.5 | G32: =H32*RIVN_LTM!$H$6 -> 26257.5 | H32: 4.5
D33: =F33/E33 -> 22.85768393 | E33: =RIVN_DCF!$I$103 -> 1196.814169 | F33: =J33*RIVN_LTM!$C$16 -> 27356.4 | J33: 5.4
D34: =F34/E34 -> 30.05362147 | E34: =RIVN_DCF!$I$103 -> 1196.814169 | F34: =J34*RIVN_LTM!$C$16 -> 35968.6 | J34: 7.1

Sheet RIVN_Comps_Legacy
B2: =RIVN_DCF!C2&"Valuation with Public Comparables" -> Rivian AutomotiveValuation with Public Comparables
B3: =RIVN_DCF!B8 -> Fiscal year ends in December USD in millions except per share data.
B4: Valuation for period ended
B5: Ticker | C5: =RIVN_DCF!C3 -> RIVN
B6: Valuation Date
B7: Company Name | C7: =RIVN_DCF!C2 -> Rivian Automotive
F8: Market Value | G8: Enterprise | I8: BV | J8: Price(Market)-
B9: Company | C9: Ticker | D9: Share price | F9: of Equity | G9: Value | H9: EV/Sales | I9: Equity | J9: to-Book
B10: =RIVN_DCF!C2 -> Rivian Automotive | C10: =C5 -> RIVN | D10: =INDIRECT(C10&"_LTM!$C$14") -> 15.23 | F10: =INDIRECT(C10&"_LTM!$C$15") -> 18670.7 | G10: =F10+SUM(INDIRECT(C10&"_LTM!$H$10:$H$12")) -> 16800.7 | H10: =G10/INDIRECT(C10&"_LTM!$H$6") -> 2.879297344 | I10: =INDIRECT(C10&"_LTM!$C$16") -> 5066 | J10: =F10/I10 -> 3.685491512
B12: Ford Motor Company | C12: F | D12: =INDIRECT(C12&"_LTM!$C$14") -> 13.21 | F12: =INDIRECT(C12&"_LTM!$C$15") -> 52635.2 | G12: =F12+SUM(INDIRECT(C12&"_LTM!$H$10:$H$12")) -> 184371.2 | H12: =G12/INDIRECT(C12&"_LTM!$H$6") -> 0.9724834905 | I12: =INDIRECT(C12&"_LTM!$C$16") -> 47392 | J12: =F12/I12 -> 1.110634706
B13: General Motors Company | C13: GM | D13: =INDIRECT(C13&"_LTM!$C$14") -> 70.75 | F13: =INDIRECT(C13&"_LTM!$C$15") -> 66322.4 | G13: =F13+SUM(INDIRECT(C13&"_LTM!$H$10:$H$12")) -> 180185.4 | H13: =G13/INDIRECT(C13&"_LTM!$H$6") -> 0.9613220583 | I13: =INDIRECT(C13&"_LTM!$C$16") -> 66374 | J13: =F13/I13 -> 0.9992225872
B14: Honda Motor Co., Ltd. | C14: 7267 | D14: =INDIRECT(C14&"_LTM!$C$14") -> 1511 | F14: =INDIRECT(C14&"_LTM!$C$15") -> 5881644 | G14: 14237343 | H14: =G14/INDIRECT(C14&"_LTM!$H$6") -> 0.6614687235 | I14: =INDIRECT(C14&"_LTM!$C$16") -> 11957763 | J14: 0.4918682533
B15: Subaru Corporation | C15: 7270 | D15: =INDIRECT(C15&"_LTM!$C$14") -> 3309 | F15: =INDIRECT(C15&"_LTM!$C$15") -> 2386831.6 | G15: 854820.6 | H15: =G15/INDIRECT(C15&"_LTM!$H$6") -> 0.1778011799 | I15: =INDIRECT(C15&"_LTM!$C$16") -> 2694131 | J15: 0.8859374693
B16: Toyota Motor Corporation | C16: 7203 | D16: =INDIRECT(C16&"_LTM!$C$14") -> 3118 | F16: =INDIRECT(C16&"_LTM!$C$15") -> 40638107.6 | G16: 64548947.6 | H16: =G16/INDIRECT(C16&"_LTM!$H$6") -> 1.307055552 | I16: =INDIRECT(C16&"_LTM!$C$16") -> 37492119 | J16: 1.083910664
B17: Volkswagen AG | C17: VOW3 | D17: =INDIRECT(C17&"_LTM!$C$14") -> 94.22 | F17: =INDIRECT(C17&"_LTM!$C$15") -> 47683.5 | G17: 258035.5 | H17: =G17/INDIRECT(C17&"_LTM!$H$6") -> 0.7914082675 | I17: =INDIRECT(C17&"_LTM!$C$16") -> 183290 | J17: 0.260153309
G19: High | H19: =_xlfn.MAXIFS(H12:H17,H12:H17,">0") -> 1.307055552 | J19: =_xlfn.MAXIFS(J12:J17,J12:J17,">0") -> 1.110634706
G20: Mean | H20: =AVERAGEIF(H12:H17,">0") -> 0.811923212 | J20: =AVERAGEIF(J12:J17,">0") -> 0.8052878315
G21: Median | H21: =MEDIAN(IF(H12:H17>0,H12:H17)) -> 0.8763651629 | J21: =MEDIAN(IF(J12:J17>0,J12:J17)) -> 0.9425800282
G22: Low | H22: =_xlfn.MINIFS(H12:H17,H12:H17,">0") -> 0.1778011799 | J22: =_xlfn.MINIFS(J12:J17,J12:J17,">0") -> 0.260153309
D25: Implied price per share | E25: Diluted shares outstanding | F25: Implied Equity Value | G25: Implied Enterprise Value | H25: Range of EV/Sales | J25: Range of Price-to-Book
B26: =RIVN_DCF!C2 -> Rivian Automotive | D26: =F26/E26 -> 2.537570225 | E26: =RIVN_DCF!$I$103 -> 1196.814169 | F26: =G26-SUM(RIVN_LTM!$H$10:$H$12) -> 3037 | G26: =H26*RIVN_LTM!$H$6 -> 1167 | H26: 0.2
D27: =F27/E27 -> 7.900558203 | E27: =RIVN_DCF!$I$103 -> 1196.814169 | F27: =G27-SUM(RIVN_LTM!$H$10:$H$12) -> 9455.5 | G27: =H27*RIVN_LTM!$H$6 -> 7585.5 | H27: 1.3
D28: =F28/E28 -> 1.26987133 | E28: =RIVN_DCF!$I$103 -> 1196.814169 | F28: =J28*RIVN_LTM!$C$16 -> 1519.8 | J28: 0.3
D29: =F29/E29 -> 4.656194875 | E29: =RIVN_DCF!$I$103 -> 1196.814169 | F29: =J29*RIVN_LTM!$C$16 -> 5572.6 | J29: 1.1

Sheet RIVN_DCF
B2: Company Name | C2: Rivian Automotive
B3: Ticker | C3: RIVN
B4: Share Price | C4: 14.68
B5: Valuation Date | C5: 2025-09-30
B7: =C2&" ("&C3&") DISCOUNTED CASH FLOWS MODEL" -> Rivian Automotive (RIVN) DISCOUNTED CASH FLOWS MODEL
B8: Fiscal year ends in December USD in millions except per share data.
A10: x | B10: FORECASTING CASH FLOWS
B12: Cost of Revenues: Software Service | F12: Historical | K12: Projected
F14: 2020 | G14: =F14+1 -> 2021 | H14: 2022 | I14: 2023 | J14: 2024 | K14: 2025 | L14: 2026 | M14: 2027 | N14: 2028 | O14: 2029 | P14: =O14+1 -> 2030 | Q14: =P14+1 -> 2031 | R14: =Q14+1 -> 2032 | S14: =R14+1 -> 2033 | T14: =S14+1 -> 2034 | U14: 2035 | V14: 2036 | W14: 2037
B15: Revenues: Automotive | F15: =INDEX(RIVN_IS!$A$14:$G$55,MATCH(RIVN_DCF!$B15,RIVN_IS!$A$14:$A$55,0),MATCH(RIVN_DCF!F$14,RIVN_IS!$A$14:$G$14,0)) -> - | G15: =INDEX(RIVN_IS!$A$14:$G$55,MATCH(RIVN_DCF!$B15,RIVN_IS!$A$14:$A$55,0),MATCH(RIVN_DCF!G$14,RIVN_IS!$A$14:$G$14,0)) -> 0 | H15: =INDEX(RIVN_IS!$A$14:$G$55,MATCH(RIVN_DCF!$B15,RIVN_IS!$A$14:$A$55,0),MATCH(RIVN_DCF!H$14,RIVN_IS!$A$14:$G$14,0)) -> 1554 | I15: =INDEX(RIVN_IS!$A$14:$G$55,MATCH(RIVN_DCF!$B15,RIVN_IS!$A$14:$A$55,0),MATCH(RIVN_DCF!I$14,RIVN_IS!$A$14:$G$14,0)) -> 4132 | J15: =INDEX(RIVN_IS!$A$14:$G$55,MATCH(RIVN_DCF!$B15,RIVN_IS!$A$14:$A$55,0),MATCH(RIVN_DCF!J$14,RIVN_IS!$A$14:$G$14,0)) -> 4486 | K15: =J15*(1+K37) -> 3647.492601 | L15: 5614.383986 | M15: 7999.013562 | N15: 12292.70203 | O15: 16150.97331 | P15: 20164.09354 | Q15: 23519.04929 | R15: 26970.66663 | S15: 30557.76529 | T15: 34621.94807 | U15: 38084.14288 | V15: 41130.87431 | W15: 43187.41802
B16: Revenues: Software Service | F16: =INDEX(RIVN_IS!$A$14:$G$55,MATCH(RIVN_DCF!$B16,RIVN_IS!$A$14:$A$55,0),MATCH(RIVN_DCF!F$14,RIVN_IS!$A$14:$G$14,0)) -> - | G16: =INDEX(RIVN_IS!$A$14:$G$55,MATCH(RIVN_DCF!$B16,RIVN_IS!$A$14:$A$55,0),MATCH(RIVN_DCF!G$14,RIVN_IS!$A$14:$G$14,0)) -> - | H16: =INDEX(RIVN_IS!$A$14:$G$55,MATCH(RIVN_DCF!$B16,RIVN_IS!$A$14:$A$55,0),MATCH(RIVN_DCF!H$14,RIVN_IS!$A$14:$G$14,0)) -> 104 | I16: =INDEX(RIVN_IS!$A$14:$G$55,MATCH(RIVN_DCF!$B16,RIVN_IS!$A$14:$A$55,0),MATCH(RIVN_DCF!I$14,RIVN_IS!$A$14:$G$14,0)) -> 302 | J16: =INDEX(RIVN_IS!$A$14:$G$55,MATCH(RIVN_DCF!$B16,RIVN_IS!$A$14:$A$55,0),MATCH(RIVN_DCF!J$14,RIVN_IS!$A$14:$G$14,0)) -> 484 | K16: =J16*(1+K38) -> 1388 | L16: 2082 | M16: 3123 | N16: 4684.5 | O16: 6558.3 | P16: 8525.79 | Q16: 10657.2375 | R16: 13321.54688 | S16: 16651.93359 | T16: 20814.91699 | U16: 24977.90039 | V16: 29973.48047 | W16: 35968.17656
B17: Total Revenues | F17: =INDEX(RIVN_IS!$A$14:$G$55,MATCH(RIVN_DCF!$B17,RIVN_IS!$A$14:$A$55,0),MATCH(RIVN_DCF!F$14,RIVN_IS!$A$14:$G$14,0)) -> 0 | G17: =INDEX(RIVN_IS!$A$14:$G$55,MATCH(RIVN_DCF!$B17,RIVN_IS!$A$14:$A$55,0),MATCH(RIVN_DCF!G$14,RIVN_IS!$A$14:$G$14,0)) -> 55 | H17: =INDEX(RIVN_IS!$A$14:$G$55,MATCH(RIVN_DCF!$B17,RIVN_IS!$A$14:$A$55,0),MATCH(RIVN_DCF!H$14,RIVN_IS!$A$14:$G$14,0)) -> 1658 | I17: =INDEX(RIVN_IS!$A$14:$G$55,MATCH(RIVN_DCF!$B17,RIVN_IS!$A$14:$A$55,0),MATCH(RIVN_DCF!I$14,RIVN_IS!$A$14:$G$14,0)) -> 4434 | J17: =INDEX(RIVN_IS!$A$14:$G$55,MATCH(RIVN_DCF!$B17,RIVN_IS!$A$14:$A$55,0),MATCH(RIVN_DCF!J$14,RIVN_IS!$A$14:$G$14,0)) -> 4970 | K17: =K16+K15 -> 5035.492601 | L17: =L16+L15 -> 7696.383986 | M17: 11122.01356 | N17: 16977.20203 | O17: 22709.27331 | P17: 28689.88354 | Q17: 34176.28679 | R17: 40292.2135 | S17: 47209.69888 | T17: 55436.86506 | U17: 63062.04327 | V17: 71104.35478 | W17: 79155.59459
B18: Cost of Revenues: Automotive | F18: =INDEX(RIVN_IS!$A$14:$G$55,MATCH(RIVN_DCF!$B18,RIVN_IS!$A$14:$A$55,0),MATCH(RIVN_DCF!F$14,RIVN_IS!$A$14:$G$14,0)) -> 0 | G18: =INDEX(RIVN_IS!$A$14:$G$55,MATCH(RIVN_DCF!$B18,RIVN_IS!$A$14:$A$55,0),MATCH(RIVN_DCF!G$14,RIVN_IS!$A$14:$G$14,0)) -> 520 | H18: =INDEX(RIVN_IS!$A$14:$G$55,MATCH(RIVN_DCF!$B18,RIVN_IS!$A$14:$A$55,0),MATCH(RIVN_DCF!H$14,RIVN_IS!$A$14:$G$14,0)) -> 4666 | I18: =INDEX(RIVN_IS!$A$14:$G$55,MATCH(RIVN_DCF!$B18,RIVN_IS!$A$14:$A$55,0),MATCH(RIVN_DCF!I$14,RIVN_IS!$A$14:$G$14,0)) -> 6150 | J18: =INDEX(RIVN_IS!$A$14:$G$55,MATCH(RIVN_DCF!$B18,RIVN_IS!$A$14:$A$55,0),MATCH(RIVN_DCF!J$14,RIVN_IS!$A$14:$G$14,0)) -> 5693 | K18: =K15*K40 -> 4012.241861 | L18: 5052.945587 | M18: 6799.161527 | N18: 10448.79672 | O18: 12920.77864 | P18: 16131.27483 | Q18: 18815.23943 | R18: 21576.5333 | S18: 24446.21223 | T18: 27697.55846 | U18: 30467.3143 | V18: 32904.69945 | W18: 34549.93442
B19: Cost of Revenues: Software Service | F19: =INDEX(RIVN_IS!$A$14:$G$55,MATCH(RIVN_DCF!$B19,RIVN_IS!$A$14:$A$55,0),MATCH(RIVN_DCF!F$14,RIVN_IS!$A$14:$G$14,0)) -> 0 | G19: =INDEX(RIVN_IS!$A$14:$G$55,MATCH(RIVN_DCF!$B19,RIVN_IS!$A$14:$A$55,0),MATCH(RIVN_DCF!G$14,RIVN_IS!$A$14:$G$14,0)) -> 0 | H19: =INDEX(RIVN_IS!$A$14:$G$55,MATCH(RIVN_DCF!$B19,RIVN_IS!$A$14:$A$55,0),MATCH(RIVN_DCF!H$14,RIVN_IS!$A$14:$G$14,0)) -> 115 | I19: =INDEX(RIVN_IS!$A$14:$G$55,MATCH(RIVN_DCF!$B19,RIVN_IS!$A$14:$A$55,0),MATCH(RIVN_DCF!I$14,RIVN_IS!$A$14:$G$14,0)) -> 314 | J19: =INDEX(RIVN_IS!$A$14:$G$55,MATCH(RIVN_DCF!$B19,RIVN_IS!$A$14:$A$55,0),MATCH(RIVN_DCF!J$14,RIVN_IS!$A$14:$G$14,0)) -> 477 | K19: =K16*K41 -> 1110.4 | L19: 1457.4 | M19: 2186.1 | N19: 3044.925 | O19: 3934.98 | P19: 5115.474 | Q19: 6394.3425 | R19: 7992.928125 | S19: 9991.160156 | T19: 12488.9502 | U19: 14986.74023 | V19: 17984.08828 | W19: 21580.90594
B20: Gross Profit | F20: =F17-F18-F19 -> 0 | G20: -465 | H20: -3123 | I20: -2030 | J20: -1200 | K20: -87.14926012 | L20: 1186.038399 | M20: 2136.752034 | N20: 3483.480304 | O20: 5853.514661 | P20: 7443.134708 | Q20: 8966.704858 | R20: 10722.75208 | S20: 12772.32649 | T20: 15250.35641 | U20: 17607.98873 | V20: 20215.56705 | W20: 23024.75423
B22: Selling, General and Administrative | F22: =INDEX(RIVN_IS!$A$14:$G$55,MATCH(RIVN_DCF!$B22,RIVN_IS!$A$14:$A$55,0),MATCH(RIVN_DCF!F$14,RIVN_IS!$A$14:$G$14,0)) -> 255 | G22: =INDEX(RIVN_IS!$A$14:$G$55,MATCH(RIVN_DCF!$B22,RIVN_IS!$A$14:$A$55,0),MATCH(RIVN_DCF!G$14,RIVN_IS!$A$14:$G$14,0)) -> 1242 | H22: =INDEX(RIVN_IS!$A$14:$G$55,MATCH(RIVN_DCF!$B22,RIVN_IS!$A$14:$A$55,0),MATCH(RIVN_DCF!H$14,RIVN_IS!$A$14:$G$14,0)) -> 1789 | I22: =INDEX(RIVN_IS!$A$14:$G$55,MATCH(RIVN_DCF!$B22,RIVN_IS!$A$14:$A$55,0),MATCH(RIVN_DCF!I$14,RIVN_IS!$A$14:$G$14,0)) -> 1714 | J22: =INDEX(RIVN_IS!$A$14:$G$55,MATCH(RIVN_DCF!$B22,RIVN_IS!$A$14:$A$55,0),MATCH(RIVN_DCF!J$14,RIVN_IS!$A$14:$G$14,0)) -> 1876 | K22: =K17*K42 -> 1913.487188 | L22: 2308.915196 | M22: 2780.50339 | N22: 3395.440405 | O22: 3406.390996 | P22: 3944.858987 | Q22: 4272.035848 | R22: 4532.874019 | S22: 4720.969888 | T22: 4850.725693 | U22: 4729.653245 | V22: 4444.022173 | W22: 3957.779729
B23: Research and Development | F23: =INDEX(RIVN_IS!$A$14:$G$55,MATCH(RIVN_DCF!$B23,RIVN_IS!$A$14:$A$55,0),MATCH(RIVN_DCF!F$14,RIVN_IS!$A$14:$G$14,0)) -> 766 | G23: =INDEX(RIVN_IS!$A$14:$G$55,MATCH(RIVN_DCF!$B23,RIVN_IS!$A$14:$A$55,0),MATCH(RIVN_DCF!G$14,RIVN_IS!$A$14:$G$14,0)) -> 1850 | H23: =INDEX(RIVN_IS!$A$14:$G$55,MATCH(RIVN_DCF!$B23,RIVN_IS!$A$14:$A$55,0),MATCH(RIVN_DCF!H$14,RIVN_IS!$A$14:$G$14,0)) -> 1944 | I23: =INDEX(RIVN_IS!$A$14:$G$55,MATCH(RIVN_DCF!$B23,RIVN_IS!$A$14:$A$55,0),MATCH(RIVN_DCF!I$14,RIVN_IS!$A$14:$G$14,0)) -> 1995 | J23: =INDEX(RIVN_IS!$A$14:$G$55,MATCH(RIVN_DCF!$B23,RIVN_IS!$A$14:$A$55,0),MATCH(RIVN_DCF!J$14,RIVN_IS!$A$14:$G$14,0)) -> 1613 | K23: =K17*K43 -> 1611.357632 | L23: 1924.095997 | M23: 2224.402712 | N23: 3395.440405 | O23: 2270.927331 | P23: 2725.538936 | Q23: 3075.865811 | R23: 3424.838148 | S23: 3776.77591 | T23: 4157.76488 | U23: 4414.343029 | V23: 4621.78306 | W23: 4749.335675
B24: EBIT | F24: =F20-F22-F23 -> -1021 | G24: =G20-G22-G23 -> -3557 | H24: -6856 | I24: -5739 | J24: -4689 | K24: -3611.994081 | L24: -3046.972794 | M24: =M20-M22-M23 -> -2868.154068 | N24: =N20-N22-N23 -> -3307.400506 | O24: =O20-O22-O23 -> 176.1963347 | P24: =P20-P22-P23 -> 772.7367849 | Q24: =Q20-Q22-Q23 -> 1618.803198 | R24: =R20-R22-R23 -> 2765.039909 | S24: =S20-S22-S23 -> 4274.580696 | T24: =T20-T22-T23 -> 6241.865838 | U24: 8463.992458 | V24: 11149.76182 | W24: 14317.63883
B25: NOL carryforward balance | I25: 12650 | J25: =14552+739 -> 15291 | K25: =IF(K24<0,J25-K24*0.9,J25-MIN(0.8*K24,J25)) -> 18541.79467 | L25: =IF(L24<0,K25-L24*0.9,K25-MIN(0.8*L24,K25)) -> 21284.07019 | M25: 23865.40885 | N25: 26842.0693 | O25: 26701.11224 | P25: 26082.92281 | Q25: 24787.88025 | R25: 22575.84832 | S25: 19156.18377 | T25: 14162.6911 | U25: 7391.497129 | V25: 0 | W25: 0
B26: Taxes | C26: 0.25 | K26: =IF(K24<0,0,IF(J25>K24,K24*0.2*$C$26,(K24-J25)*$C$26)) -> 0 | L26: =IF(L24<0,0,IF(K25>L24,L24*0.2*$C$26,(L24-K25)*$C$26)) -> 0 | M26: 0 | N26: 0 | O26: 8.809816736 | P26: 38.63683925 | Q26: 80.94015991 | R26: 138.2519954 | S26: 213.7290348 | T26: 312.0932919 | U26: 423.1996229 | V26: 939.5661714 | W26: =IF(W24<0,0,IF(V25>W24,W24*0.2*$C$26,(W24-V25)*$C$26)) -> 3579.409706
B27: Tax-effected EBIT | F27: =F24-F26 -> -1021 | G27: =G24-G26 -> -3557 | H27: -6856 | I27: -5739 | J27: =J24-J26 -> -4689 | K27: =K24-K26 -> -3611.994081 | L27: =L24-L26 -> -3046.972794 | M27: =M24-M26 -> -2868.154068 | N27: -3307.400506 | O27: 167.386518 | P27: 734.0999457 | Q27: 1537.863038 | R27: 2626.787913 | S27: 4060.851662 | T27: 5929.772546 | U27: 8040.792835 | V27: 10210.19564 | W27: 10738.22912
B29: Depreciation and amortization | F29: =INDEX(RIVN_IS!$A$14:$G$55,MATCH(RIVN_DCF!$B29,RIVN_IS!$A$14:$A$55,0),MATCH(RIVN_DCF!F$14,RIVN_IS!$A$14:$G$14,0)) -> 29 | G29: =INDEX(RIVN_IS!$A$14:$G$55,MATCH(RIVN_DCF!$B29,RIVN_IS!$A$14:$A$55,0),MATCH(RIVN_DCF!G$14,RIVN_IS!$A$14:$G$14,0)) -> 197 | H29: =INDEX(RIVN_IS!$A$14:$G$55,MATCH(RIVN_DCF!$B29,RIVN_IS!$A$14:$A$55,0),MATCH(RIVN_DCF!H$14,RIVN_IS!$A$14:$G$14,0)) -> 652 | I29: =INDEX(RIVN_IS!$A$14:$G$55,MATCH(RIVN_DCF!$B29,RIVN_IS!$A$14:$A$55,0),MATCH(RIVN_DCF!I$14,RIVN_IS!$A$14:$G$14,0)) -> 937 | J29: =INDEX(RIVN_IS!$A$14:$G$55,MATCH(RIVN_DCF!$B29,RIVN_IS!$A$14:$A$55,0),MATCH(RIVN_DCF!J$14,RIVN_IS!$A$14:$G$14,0)) -> 1031 | K29: =-K30*K45 -> 1699.478753 | L29: =-L30*L45 -> 2078.023676 | M29: =-M30*M45 -> 3336.604068 | N29: 3734.984446 | O29: 3548.323954 | P29: 4130.89495 | Q29: 4517.67791 | R29: 4869.691741 | S29: 5193.066877 | T29: 5522.031481 | U29: 5655.877006 | V29: 5705.013465 | W29: 5639.836114
B30: Capex | F30: =INDEX(RIVN_IS!$A$14:$G$55,MATCH(RIVN_DCF!$B30,RIVN_IS!$A$14:$A$55,0),MATCH(RIVN_DCF!F$14,RIVN_IS!$A$14:$G$14,0)) -> -914 | G30: =INDEX(RIVN_IS!$A$14:$G$55,MATCH(RIVN_DCF!$B30,RIVN_IS!$A$14:$A$55,0),MATCH(RIVN_DCF!G$14,RIVN_IS!$A$14:$G$14,0)) -> -1794 | H30: =INDEX(RIVN_IS!$A$14:$G$55,MATCH(RIVN_DCF!$B30,RIVN_IS!$A$14:$A$55,0),MATCH(RIVN_DCF!H$14,RIVN_IS!$A$14:$G$14,0)) -> -1369 | I30: =INDEX(RIVN_IS!$A$14:$G$55,MATCH(RIVN_DCF!$B30,RIVN_IS!$A$14:$A$55,0),MATCH(RIVN_DCF!I$14,RIVN_IS!$A$14:$G$14,0)) -> -1026 | J30: =INDEX(RIVN_IS!$A$14:$G$55,MATCH(RIVN_DCF!$B30,RIVN_IS!$A$14:$A$55,0),MATCH(RIVN_DCF!J$14,RIVN_IS!$A$14:$G$14,0)) -> -1141 | K30: =-K44*K17 -> -1888.309725 | L30: -2308.915196 | M30: -3336.604068 | N30: -3395.440405 | O30: -2838.659163 | P30: -3406.92367 | Q30: -3844.832264 | R30: -4281.047684 | S30: -4720.969888 | T30: -5197.2061 | U30: -5517.928786 | V30: -5777.228826 | W30: -5936.669594
B31: Change in Net Working Capital | G31: =-G83 -> 313 | H31: -47 | I31: -1340 | J31: -186 | K31: -23.32389018 | L31: -399.1337077 | M31: =-M83 -> -513.8444363 | N31: -878.2782696 | O31: -733.6480625 | P31: -704.477681 | Q31: -572.132191 | R31: -591.6112645 | S31: -621.6248048 | T31: -697.5599496 | U31: =-U83 -> -539.2594391 | V31: -498.5659744 | W31: =-W83 -> -410.0997877
B32: Unlevered free cash flows | F32: =SUM(F27:F31) -> -1906 | G32: -4841 | H32: -7620 | I32: -7168 | J32: -4985 | K32: -3824.148944 | L32: =SUM(L27:L31) -> -3676.998021 | M32: -3381.998505 | N32: -3846.134736 | O32: 143.4032463 | P32: 753.5935446 | Q32: 1638.576493 | R32: 2623.820705 | S32: 3911.323846 | T32: 5557.037978 | U32: 7639.481615 | V32: 9639.414309 | W32: 10031.29585
F34: Historical | K34: Projected
F35: =F14 -> 2020 | G35: =F35+1 -> 2021 | H35: 2022 | I35: 2023 | J35: 2024 | K35: 2025 | L35: 2026 | M35: 2027 | N35: 2028 | O35: 2029 | P35: =O35+1 -> 2030 | Q35: =P35+1 -> 2031 | R35: =Q35+1 -> 2032 | S35: =R35+1 -> 2033 | T35: =S35+1 -> 2034 | U35: 2035 | V35: 2036 | W35: 2037
B36: Assumptions
B37: Automotive Growth | G37: =IFERROR(G15/F15-1,0) -> 0 | H37: 0 | I37: 1.658944659 | J37: 0.08567279768 | K37: -0.1869164955 | L37: 0.5392447909 | M37: 0.4247357468 | N37: 0.5367772452 | O37: 0.3138668188 | P37: 0.2484754423 | Q37: 0.1663826712 | R37: 0.14675837 | S37: 0.133 | T37: 0.133 | U37: 0.1 | V37: 0.08 | W37: 0.05 | Y37: Step
B38: Software Services Growth | G38: 0 | H38: 0 | I38: 1.903846154 | J38: 0.6026490066 | K38: 1.867768595 | L38: 0.5 | M38: 0.5 | N38: 0.5 | O38: 0.4 | P38: 0.3 | Q38: 0.25 | R38: 0.25 | S38: 0.25 | T38: 0.25 | U38: 0.2 | V38: 0.2 | W38: 0.2 | Y38: Step
B39: Total Revenue Growth | G39: 0 | H39: 29.14545455 | I39: 1.674306393 | J39: 0.1208840776 | K39: 0.01317758575 | L39: 0.5284272256 | M39: 0.4450959803 | N39: 0.5264503978 | Y39: Step
B40: COGS-Automotive (as a % of Automotive) | F40: =IFERROR(F18/F15,0) -> 0 | G40: 0 | H40: 3.002574003 | I40: 1.488383349 | J40: 1.269059296 | K40: 1.1 | L40: 0.9 | M40: 0.85 | N40: 0.85 | O40: 0.8 | P40: 0.8 | Q40: 0.8 | R40: 0.8 | S40: 0.8 | T40: 0.8 | U40: 0.8 | V40: 0.8 | W40: 0.8 | Y40: Step
B41: COGS-Software Services (as a % of Software) | F41: 0 | G41: 0 | H41: 1.105769231 | I41: 1.039735099 | J41: 0.9855371901 | K41: 0.8 | L41: 0.7 | M41: 0.7 | N41: 0.65 | O41: 0.6 | P41: 0.6 | Q41: 0.6 | R41: 0.6 | S41: 0.6 | T41: 0.6 | U41: 0.6 | V41: 0.6 | W41: 0.6 | Y41: Step
B42: SGA (as a % of total revenue) | F42: =IFERROR(F22/F17,0) -> 0 | G42: =IFERROR(G22/G17,0) -> 22.58181818 | H42: =IFERROR(H22/H17,0) -> 1.079010856 | I42: =IFERROR(I22/I17,0) -> 0.3865584123 | J42: =IFERROR(J22/J17,0) -> 0.3774647887 | K42: 0.38 | L42: 0.3 | M42: 0.25 | N42: 0.2 | O42: 0.15 | P42: =O42+$AA42 -> 0.1375 | Q42: 0.125 | R42: 0.1125 | S42: 0.1 | T42: 0.0875 | U42: 0.075 | V42: 0.0625 | W42: 0.05 | Y42: Step | Z42: 0.05 | AA42: =(Z42-O42)/($W$35-$O$35) -> -0.0125
B43: R&D (as a % of total revenue) | F43: =IFERROR(F23/F17,0) -> 0 | G43: =IFERROR(G23/G17,0) -> 33.63636364 | H43: =IFERROR(H23/H17,0) -> 1.172496984 | I43: =IFERROR(I23/I17,0) -> 0.449932341 | J43: =IFERROR(J23/J17,0) -> 0.3245472837 | K43: 0.32 | L43: 0.25 | M43: 0.2 | N43: 0.2 | O43: 0.1 | P43: 0.095 | Q43: 0.09 | R43: 0.085 | S43: 0.08 | T43: 0.075 | U43: 0.07 | V43: 0.065 | W43: 0.06 | Y43: Step | Z43: 0.06 | AA43: =(Z43-O43)/($W$35-$O$35) -> -0.005
B44: Capex (as a % of total revenue) | F44: =IFERROR(-F30/F17,0) -> 0 | G44: =IFERROR(-G30/G17,0) -> 32.61818182 | H44: =IFERROR(-H30/H17,0) -> 0.8256936068 | I44: =IFERROR(-I30/I17,0) -> 0.2313937754 | J44: =IFERROR(-J30/J17,0) -> 0.2295774648 | K44: 0.375 | L44: 0.3 | M44: 0.3 | N44: 0.2 | O44: 0.125 | P44: 0.11875 | Q44: 0.1125 | R44: 0.10625 | S44: 0.1 | T44: 0.09375 | U44: 0.0875 | V44: 0.08125 | W44: 0.075 | Y44: Step | Z44: 0.075 | AA44: =(Z44-O44)/($W$35-$O$35) -> -0.00625
B45: Depreciation and amortization (as % of capex) | F45: =-F29/F30 -> 0.03172866521 | G45: =-G29/G30 -> 0.1098104794 | H45: =-H29/H30 -> 0.4762600438 | I45: =-I29/I30 -> 0.9132553606 | J45: =-J29/J30 -> 0.9035933392 | K45: 0.9 | L45: 0.9 | M45: 1 | N45: 1.1 | O45: 1.25 | P45: 1.2125 | Q45: 1.175 | R45: 1.1375 | S45: 1.1 | T45: 1.0625 | U45: 1.025 | V45: 0.9875 | W45: 0.95 | Y45: Step | Z45: 0.95 | AA45: =(Z45-O45)/($W$35-$O$35) -> -0.0375
B46: Gross margin
A48: x | B48: TERMINAL VALUE AND EQUITY VALUE PER SHARE
F50: Terminal Value - Perpetuity Growth | K50: Terminal Value - Exit Multiple | P50: Option Drag
F51: Unlevered FCF in terminal year | H51: =W32 -> 10031.29585 | K51: Terminal year EBITDA | N51: =W24+W29 -> 19957.47494 | P51: Implied Equity Value (Using PG) | S51: =H60-H62 -> 47877.45926
F52: Terminal growth rate | H52: 0.02 | K52: Terminal year EBITDA multiple | N52: 9.2 | P52: Basic Shares | S52: =I95 -> 1131.4
F53: Terminal value | H53: =(H51*(1+H52))/(H54-H52) -> 135980.5559 | K53: Terminal value | N53: =N52*N51 -> 183608.7694 | P53: Value of Options | S53: =Option_Value!E30 -> 1793.891332
F54: WACC - current | H54: =F129 -> 0.09524547684 | K54: WACC - current | N54: =F129 -> 0.09524547684 | P54: Implied Equity Value per Share | S54: =(S51-S53)/(S52+I102) -> 38.64774231
F55: PV of Terminal Value | H55: =H53/(1+H54)^(W14-J14) -> 41670.40528 | K55: PV of Terminal Value | N55: =-PV(N54,W14-J14,,N53) -> 56265.77848
P56: Treasury Outstanding Options
F57: PV of Unlevered Free Cash Flows | H57: =NPV(H54,K32:W32) -> 3937.206155 | K57: PV of Unlevered Free Cash Flows | N57: =NPV(N54,K32:W32) -> 3937.206155 | P57: Implied Equity Value | S57: =H60-H62 -> 47877.45926
F58: Total Enterprise Value | H58: =H57+H55 -> 45607.61144 | K58: Total Enterprise Value | N58: =N57+N55 -> 60202.98464 | P58: Diluted Shares Outstanding | S58: =N103 -> 1252.4
F59: Net debt + Preferred stock + NCI | H59: =RIVN_BS!G40+RIVN_BS!G42+RIVN_BS!G43-RIVN_BS!G19-RIVN_BS!G20 -> -2780 | K59: Net debt + Preferred stock + NCI | N59: =RIVN_BS!G40+RIVN_BS!G42+RIVN_BS!G43-RIVN_BS!G19-RIVN_BS!G20 -> -2780 | P59: Total Proceeds | S59: =N100 -> 816
F60: Implied Equity Value | H60: =H58-H59 -> 48387.61144 | K60: Implied Equity Value | N60: =N58-N59 -> 62982.98464 | P60: Implied Equity Value per Share | S60: =(S57+S59)/S58 -> 38.88011758
F61: Diluted Shares Outstanding | H61: =I103 -> 1196.814169 | K61: Diluted Shares Outstanding | N61: =I103 -> 1196.814169
F62: Value of Warrants & Convertible debt | H62: =Convertible_Debt!C11+Convertible_Debt!C22+Warrant_Value!E30 -> 510.1521755 | K62: Value of Warrants & Convertible debt | N62: =Convertible_Debt!C11+Convertible_Debt!C22+Warrant_Value!E30 -> 510.1521755
F63: Implied Equity Value per Share | H63: =(H60-H62)/H61 -> 40.00408794 | K63: Implied Equity Value per Share | N63: =(N60-N62)/N61 -> 52.19927545
A67: x | B67: WORKING CAPITAL SCHEDULE
F70: Historical | K70: Projected
F71: =F14 -> 2020 | G71: =F71+1 -> 2021 | H71: 2022 | I71: 2023 | J71: 2024 | K71: 2025 | L71: 2026 | M71: 2027 | N71: 2028 | O71: 2029 | P71: =O71+1 -> 2030 | Q71: =P71+1 -> 2031 | R71: =Q71+1 -> 2032 | S71: =R71+1 -> 2033 | T71: =S71+1 -> 2034 | U71: 2035 | V71: 2036 | W71: 2037
B72: Total Current Assets | F72: =INDEX(RIVN_BS!$A$14:$G$54,MATCH(RIVN_DCF!$B72,RIVN_BS!$A$14:$A$54,0),MATCH(RIVN_DCF!F$71,RIVN_BS!$A$14:$G$14,)) -> 3016 | G72: =INDEX(RIVN_BS!$A$14:$G$54,MATCH(RIVN_DCF!$B72,RIVN_BS!$A$14:$A$54,0),MATCH(RIVN_DCF!G$71,RIVN_BS!$A$14:$G$14,)) -> 18559 | H72: =INDEX(RIVN_BS!$A$14:$G$54,MATCH(RIVN_DCF!$B72,RIVN_BS!$A$14:$A$54,0),MATCH(RIVN_DCF!H$71,RIVN_BS!$A$14:$G$14,)) -> 13130 | I72: =INDEX(RIVN_BS!$A$14:$G$54,MATCH(RIVN_DCF!$B72,RIVN_BS!$A$14:$A$54,0),MATCH(RIVN_DCF!I$71,RIVN_BS!$A$14:$G$14,)) -> 12313 | J72: =INDEX(RIVN_BS!$A$14:$G$54,MATCH(RIVN_DCF!$B72,RIVN_BS!$A$14:$A$54,0),MATCH(RIVN_DCF!J$71,RIVN_BS!$A$14:$G$14,)) -> 10583
B73: Cash and Cash Equivalents | F73: =INDEX(RIVN_BS!$A$14:$G$54,MATCH(RIVN_DCF!$B73,RIVN_BS!$A$14:$A$54,0),MATCH(RIVN_DCF!F$71,RIVN_BS!$A$14:$G$14,)) -> 2979 | G73: =INDEX(RIVN_BS!$A$14:$G$54,MATCH(RIVN_DCF!$B73,RIVN_BS!$A$14:$A$54,0),MATCH(RIVN_DCF!G$71,RIVN_BS!$A$14:$G$14,)) -> 18133 | H73: =INDEX(RIVN_BS!$A$14:$G$54,MATCH(RIVN_DCF!$B73,RIVN_BS!$A$14:$A$54,0),MATCH(RIVN_DCF!H$71,RIVN_BS!$A$14:$G$14,)) -> 11568 | I73: =INDEX(RIVN_BS!$A$14:$G$54,MATCH(RIVN_DCF!$B73,RIVN_BS!$A$14:$A$54,0),MATCH(RIVN_DCF!I$71,RIVN_BS!$A$14:$G$14,)) -> 7857 | J73: =INDEX(RIVN_BS!$A$14:$G$54,MATCH(RIVN_DCF!$B73,RIVN_BS!$A$14:$A$54,0),MATCH(RIVN_DCF!J$71,RIVN_BS!$A$14:$G$14,)) -> 5294
B74: Short-term Investments | F74: =INDEX(RIVN_BS!$A$14:$G$54,MATCH(RIVN_DCF!$B74,RIVN_BS!$A$14:$A$54,0),MATCH(RIVN_DCF!F$71,RIVN_BS!$A$14:$G$14,)) -> 0 | G74: =INDEX(RIVN_BS!$A$14:$G$54,MATCH(RIVN_DCF!$B74,RIVN_BS!$A$14:$A$54,0),MATCH(RIVN_DCF!G$71,RIVN_BS!$A$14:$G$14,)) -> 0 | H74: =INDEX(RIVN_BS!$A$14:$G$54,MATCH(RIVN_DCF!$B74,RIVN_BS!$A$14:$A$54,0),MATCH(RIVN_DCF!H$71,RIVN_BS!$A$14:$G$14,)) -> 0 | I74: =INDEX(RIVN_BS!$A$14:$G$54,MATCH(RIVN_DCF!$B74,RIVN_BS!$A$14:$A$54,0),MATCH(RIVN_DCF!I$71,RIVN_BS!$A$14:$G$14,)) -> 1511 | J74: =INDEX(RIVN_BS!$A$14:$G$54,MATCH(RIVN_DCF!$B74,RIVN_BS!$A$14:$A$54,0),MATCH(RIVN_DCF!J$71,RIVN_BS!$A$14:$G$14,)) -> 2406
B75: Total non-cash current assets | F75: =F72-F73-F74 -> 37 | G75: =G72-G73-G74 -> 426 | H75: 1562 | I75: 2945 | J75: 2883
B77: Total Current Liabilities | F77: =INDEX(RIVN_BS!$A$14:$G$54,MATCH(RIVN_DCF!$B77,RIVN_BS!$A$14:$A$54,0),MATCH(RIVN_DCF!F$71,RIVN_BS!$A$14:$G$14,)) -> 611 | G77: =INDEX(RIVN_BS!$A$14:$G$54,MATCH(RIVN_DCF!$B77,RIVN_BS!$A$14:$A$54,0),MATCH(RIVN_DCF!G$71,RIVN_BS!$A$14:$G$14,)) -> 1313 | H77: =INDEX(RIVN_BS!$A$14:$G$54,MATCH(RIVN_DCF!$B77,RIVN_BS!$A$14:$A$54,0),MATCH(RIVN_DCF!H$71,RIVN_BS!$A$14:$G$14,)) -> 2424 | I77: =INDEX(RIVN_BS!$A$14:$G$54,MATCH(RIVN_DCF!$B77,RIVN_BS!$A$14:$A$54,0),MATCH(RIVN_DCF!I$71,RIVN_BS!$A$14:$G$14,)) -> 2487 | J77: =INDEX(RIVN_BS!$A$14:$G$54,MATCH(RIVN_DCF!$B77,RIVN_BS!$A$14:$A$54,0),MATCH(RIVN_DCF!J$71,RIVN_BS!$A$14:$G$14,)) -> 2251
B78: Current Portion of Long-term Debt | F78: =INDEX(RIVN_BS!$A$14:$G$54,MATCH(RIVN_DCF!$B78,RIVN_BS!$A$14:$A$54,0),MATCH(RIVN_DCF!F$71,RIVN_BS!$A$14:$G$14,)) -> 28 | G78: =INDEX(RIVN_BS!$A$14:$G$54,MATCH(RIVN_DCF!$B78,RIVN_BS!$A$14:$A$54,0),MATCH(RIVN_DCF!G$71,RIVN_BS!$A$14:$G$14,)) -> 0 | H78: =INDEX(RIVN_BS!$A$14:$G$54,MATCH(RIVN_DCF!$B78,RIVN_BS!$A$14:$A$54,0),MATCH(RIVN_DCF!H$71,RIVN_BS!$A$14:$G$14,)) -> 0 | I78: =INDEX(RIVN_BS!$A$14:$G$54,MATCH(RIVN_DCF!$B78,RIVN_BS!$A$14:$A$54,0),MATCH(RIVN_DCF!I$71,RIVN_BS!$A$14:$G$14,)) -> 0 | J78: =INDEX(RIVN_BS!$A$14:$G$54,MATCH(RIVN_DCF!$B78,RIVN_BS!$A$14:$A$54,0),MATCH(RIVN_DCF!J$71,RIVN_BS!$A$14:$G$14,)) -> 0
B79: Current portion of lease liabilities | F79: =INDEX(RIVN_BS!$A$14:$G$54,MATCH(RIVN_DCF!$B79,RIVN_BS!$A$14:$A$54,0),MATCH(RIVN_DCF!F$71,RIVN_BS!$A$14:$G$14,)) -> 18 | G79: =INDEX(RIVN_BS!$A$14:$G$54,MATCH(RIVN_DCF!$B79,RIVN_BS!$A$14:$A$54,0),MATCH(RIVN_DCF!G$71,RIVN_BS!$A$14:$G$14,)) -> 46 | H79: =INDEX(RIVN_BS!$A$14:$G$54,MATCH(RIVN_DCF!$B79,RIVN_BS!$A$14:$A$54,0),MATCH(RIVN_DCF!H$71,RIVN_BS!$A$14:$G$14,)) -> 68 | I79: =INDEX(RIVN_BS!$A$14:$G$54,MATCH(RIVN_DCF!$B79,RIVN_BS!$A$14:$A$54,0),MATCH(RIVN_DCF!I$71,RIVN_BS!$A$14:$G$14,)) -> 88 | J79: =INDEX(RIVN_BS!$A$14:$G$54,MATCH(RIVN_DCF!$B79,RIVN_BS!$A$14:$A$54,0),MATCH(RIVN_DCF!J$71,RIVN_BS!$A$14:$G$14,)) -> 100
B80: Total non-debt current liabilities | F80: =F77-F78-F79 -> 565 | G80: =G77-G78-G79 -> 1267 | H80: 2356 | I80: 2399 | J80: 2151
B82: Non-cash Net Working Capital | F82: =F75-F80 -> -528 | G82: =G75-G80 -> -841 | H82: -794 | I82: 546 | J82: 732 | K82: =K88*K17 -> 755.3238902 | L82: 1154.457598 | M82: 1668.302034 | N82: 2546.580304 | O82: 3280.228366 | P82: 3984.706047 | Q82: 4556.838238 | R82: 5148.449503 | S82: 5770.074308 | T82: 6467.634257 | U82: 7006.893696 | V82: 7505.459671 | W82: 7915.559459
B83: Change in NWC | G83: =G82-F82 -> -313 | H83: =H82-G82 -> 47 | I83: 1340 | J83: 186 | K83: =K82-J82 -> 23.32389018 | L83: =L82-K82 -> 399.1337077 | M83: 513.8444363 | N83: 878.2782696 | O83: 733.6480625 | P83: 704.477681 | Q83: 572.132191 | R83: 591.6112645 | S83: 621.6248048 | T83: 697.5599496 | U83: 539.2594391 | V83: 498.5659744 | W83: 410.0997877
F86: Historical | K86: Projected
F87: =F71 -> 2020 | G87: =F87+1 -> 2021 | H87: 2022 | I87: 2023 | J87: 2024 | K87: 2025 | L87: 2026 | M87: 2027 | N87: 2028 | O87: 2029 | P87: =O87+1 -> 2030 | Q87: =P87+1 -> 2031 | R87: =Q87+1 -> 2032 | S87: =R87+1 -> 2033 | T87: =S87+1 -> 2034 | U87: 2035 | V87: 2036 | W87: 2037
B88: Non-cash NWC as a % of Sale | F88: =IFERROR(F82/F17,"") ->  | G88: =IFERROR(G82/G17,"") -> -15.29090909 | H88: =IFERROR(H82/H17,"") -> -0.4788902292 | I88: =IFERROR(I82/I17,"") -> 0.1231393775 | J88: =IFERROR(J82/J17,"") -> 0.1472837022 | K88: 0.15 | L88: 0.15 | M88: 0.15 | N88: 0.15 | O88: =N88+$AA$88 -> 0.1444444444 | P88: 0.1388888889 | Q88: 0.1333333333 | R88: 0.1277777778 | S88: 0.1222222222 | T88: 0.1166666667 | U88: 0.1111111111 | V88: 0.1055555556 | W88: 0.1 | Y88: Step | Z88: 0.1 | AA88: =(Z88-N88)/(W87-N87) -> -0.005555555556
A91: x | B91: DILUTED SHARES
F94: Treasury with a Twist- All Outstanding Options | K94: Treasury Method- All Outstanding Options
B95: Class A Shares | C95: 1123 | F95: Basic share count | I95: =C95+C96*(1+C97) -> 1131.4 | K95: Basic share count | N95: =C95+C96*(1+C97) -> 1131.4
B96: Class B Shares | C96: 8 | F96: Outstanding options | I96: 60 | K96: Oustanding options | N96: 60
B97: Voting Premium | C97: 0.05 | F97: Exercise price | I97: 13.6 | K97: Exercise price | N97: 13.6
F98: Current share price | I98: =C4 -> 14.68
F99: In-the-money options | I99: =IF(I97<I98,I96,0) -> 60
F100: Total proceeds | I100: =I97*I96 -> 816 | K100: Total proceeds | N100: =N96*N97 -> 816
F101: Total shares repurchased | I101: =I100/I98 -> 55.58583106
F102: Unvested RSUs | I102: 61 | K102: Unvested RSUs | N102: 61
F103: Diluted shares outstanding | I103: =I95+I96-I101+I102 -> 1196.814169 | K103: Diluted shares outstanding | N103: =N95+N102+N96 -> 1252.4
A106: x | B106: WACC
F108: Current
B109: Percent of Capital
B110: Total debt | F110: =RIVN_BS!G40+RIVN_BS!G43+RIVN_BS!G42-Convertible_Debt!C3-Convertible_Debt!C14+Convertible_Debt!C10+Convertible_Debt!C21 -> 4551.544807
B111: Share price | F111: =C4 -> 14.68
B112: Shares outstanding | F112: =I103 -> 1196.814169
B113: Market value of equity | F113: =F112*F111+Convertible_Debt!C11+Convertible_Debt!C22 -> 17664.24469
B115: Weight of debt | F115: =F110/(F113+F110) -> 0.2048788231
B116: Weight of equity | F116: =F113/(F110+F113) -> 0.7951211769
B118: Cost of debt
B119: Default Spread | F119: 0.03
B120: Pre-tax cost of debt | F120: =F119+F124 -> 0.0716
B121: Marginal tax rate | F121: =C26 -> 0.25
B123: Cost of equity
B124: Risk-free rate | F124: 0.0416
B125: Market risk premium (Rm - Rf) | F125: 0.0581
B126: Beta | F126: =D147 -> 1.107581708
B127: Cost of equity | F127: =F124+F125*F126 -> 0.1059504972
B129: Weighted average cost of capital | F129: =F115*F120*(1-F121)+F116*F127 -> 0.09524547684
A131: x | B131: BOTTOM UP BETA
E134: MV | F134: Book Value | G134: Debt/ | H134: Reg | I134: Unlevered | K134: Marginal
B135: Company | C135: Ticker | E135: Equity | F135: Debt | G135: Equity | H135: Beta | I135: Beta | K135: Tax Rate
B136: Tesla, Inc. | C136: TSLA | E136: 1440089.6 | F136: 13134 | G136: =F136/E136 -> 0.00912026585 | H136: 2.09 | I136: =H136/(1+G136*(1-K136)) -> 2.075801107 | K136: 0.25
B137: General Motors Company | C137: GM | E137: 54516 | F137: 135362 | G137: =F137/E137 -> 2.482977475 | H137: 1.34 | I137: =H137/(1+G137*(1-K137)) -> 0.4681659217 | K137: =$K$136 -> 0.25
B138: Lucid Group, Inc. | C138: LCID | E138: 6762.6 | F138: 2507.64 | G138: 0.3708100435 | H138: 0.82 | I138: 0.6415735602 | K138: =$K$136 -> 0.25
B139: Ford Motor Company | C139: F | E139: 47439.9 | F139: 159326 | G139: 3.358480941 | H139: 1.54 | I139: 0.4376416485 | K139: 0.25
B140: THOR Industries, Inc. | C140: THOR | E140: 5318.6 | F140: 967.04 | G140: 0.1818222841 | H140: 1.35 | I140: 1.187996784 | K140: 0.25
B141: Winnebago Industries, Inc. | C141: WGO | E141: 842.6 | F141: 580.9 | G141: 0.6894137194 | H141: 1.15 | I141: 0.7580450216 | K141: 0.25
B143: Average unlevered beta | D143: =AVERAGE(I136:I141) -> 0.928204007
B144: Average unlevered beta (Full industry) | D144: 1.39
B145: =C3&" Debt/Equity ratio" -> RIVN Debt/Equity ratio | D145: =F110/F113 -> 0.2576699364
B146: =C3&" Tax Rate" -> RIVN Tax Rate | D146: =C26 -> 0.25
B147: =C3&" Levered Beta" -> RIVN Levered Beta | D147: =D143*(1+D145*(1-D146)) -> 1.107581708
A149: x | B149: SENSITIVITY ANALYSIS
F151: =H63 -> 40.00408794
E152: =E153-$C$153 -> 0.86 | F152: 53.4172206
B153: Beta Step | C153: 0.05 | E153: 0.91 | F153: 50.2864853
E154: 0.96 | F154: 47.3910803
E155: 1.01 | F155: 44.70743492
E156: =E157-$C$153 -> 1.06 | F156: 42.21497246
D157: Beta | E157: 1.11 | F157: 39.89565103
E158: =E157+$C$153 -> 1.16 | F158: 37.73358629
E159: =E158+$C$153 -> 1.21 | F159: 35.71473957
E160: 1.26 | F160: 33.82665856
E161: 1.31 | F161: 32.05826048
E162: 1.36 | F162: 30.39964975
E163: 1.41 | F163: 28.84196418
B166: Exit Multiple Step | C166: 1
D168: =E168-$C$166 -> 5.2 | E168: 6.2 | F168: 7.2 | G168: =H168-$C$166 -> 8.2 | H168: 9.2 | I168: =H168+$C$166 -> 10.2 | J168: =I168+$C$166 -> 11.2 | K168: 12.2 | L168: 13.2 | M168: 14.2 | N168: 15.2 | O168: 16.2 | P168: 17.2 | Q168: 18.2 | R168: 19.2 | S168: 20.2
C169: =N63 -> 52.19927545 | D169: 31.75885739 | E169: 36.86896191 | F169: 41.97906642 | G169: 47.08917093 | H169: 52.19927545 | I169: 57.30937996 | J169: 62.41948448 | K169: 67.52958899 | L169: 72.63969351 | M169: 77.74979802 | N169: 82.85990253 | O169: 87.97000705 | P169: 93.08011156 | Q169: 98.19021608 | R169: 103.3003206 | S169: 108.4104251
B172: WACC Step | C172: 0.01
B173: Terminal Growth Rate Step | C173: 0.005
C175: =H63 -> 40.00408794 | D175: =E175-$C$172 -> 0.055 | E175: 0.065 | F175: 0.075 | G175: =H175-$C$172 -> 0.085 | H175: 0.095 | I175: =H175+$C$172 -> 0.105 | J175: =I175+$C$172 -> 0.115 | K175: =J175+$C$172 -> 0.125 | L175: =K175+$C$172 -> 0.135 | M175: =L175+$C$172 -> 0.145
C176: 0.005 | D176: 94.17236509 | E176: 70.68547389 | F176: 54.47956535 | G176: 42.77623169 | H176: 34.03651322 | I176: 27.34068542 | J176: 22.10640098 | K176: 17.94780594 | L176: 14.59971497 | M176: 11.87431192
C177: =C176+$C$173 -> 0.01 | D177: 103.8721864 | E177: 76.59122834 | F177: 58.30857192 | G177: 45.3746735 | H177: 35.86218241 | I177: 28.65902177 | J177: 23.07976708 | K177: 18.67982949 | L177: 15.15886749 | M177: 12.30715594
C178: =C177+$C$173 -> 0.015 | D178: 115.9969086 | E178: 83.67808248 | F178: 62.77569856 | G178: 48.34427719 | H178: 37.91601967 | I178: 30.12380276 | J178: 24.15043581 | K178: 19.47836963 | L178: 15.76458781 | M178: 12.77326994
C179: 0.02 | D179: 131.5857763 | E179: 92.339736 | F179: 68.05497708 | G179: 51.77069421 | H179: 40.24365722 | I179: 31.76087014 | J179: 25.33376937 | K179: 20.35292746 | L179: 16.42294882 | M179: 13.27664525
C180: 0.025 | D180: 152.3708647 | E180: 103.1667389 | F180: 74.39005218 | G180: 55.76812656 | H180: 42.90376503 | I180: 33.60252606 | J180: 26.64854374 | K180: 21.31490423 | L180: 17.14112749 | M180: 13.82193836
C181: 0.03 | D181: 181.4699109 | E181: 117.0870989 | F181: 82.13285545 | G181: 60.49230435 | H181: 45.97306537 | I181: 35.68968652 | J181: 28.1179527 | K181: 22.37810138 | L181: 17.9276678 | M181: 14.41461554
C182: 0.035 | D182: 225.1183919 | E182: 135.6474972 | F182: 91.81128479 | G182: 66.16124997 | H182: 49.55385466 | I182: 38.0749578 | J182: 29.77098843 | K182: 23.55938725 | L182: 18.79282241 | M182: 15.06113682
C183: 0.04 | D183: 297.8657581 | E183: 161.6319613 | F183: 104.2548948 | G183: 73.08988494 | H183: 53.78562814 | I183: 40.82713271 | J183: 31.64437429 | K183: 24.87959916 | L183: 19.74900238 | M183: 15.76919264
C184: 0.045 | D184: 443.3603705 | E184: 200.6085496 | F184: 120.846278 | G184: 81.7505921 | H184: 58.8636793 | I184: 44.03793504 | J184: 33.78532595 | K184: 26.36478363 | L184: 20.81137666 | M184: 16.54801146
C185: 0.05 | D185: 879.8440521 | E185: 265.569404 | F185: 144.0741026 | G185: 92.88568817 | H185: 65.07009906 | I185: 47.8324427 | J185: 36.25558699 | K185: 28.04793285 | L185: 21.99868328 | M185: 17.40876443

Sheet Scenario Summary
B2: Scenario Summary
D3: Optimistic_Growth | E3: Moderate Growth | F3: Low_Growth
E4: Modified by David Moore on 10/28/2025 | F4: Created by David Moore on 10/28/2025 Modified by David Moore on 10/28/2025
B5: Changing Cells:
B6: Automotive Revenue 2026 | D6: 0.5392447909 | E6: 0.282 | F6: 0.2
B7: Automotive Revenue 2027 | D7: 0.4247357468 | E7: 0.268 | F7: 0.15
B8: Automotive Revenue 2028 | D8: 0.5367772452 | E8: 0.399 | F8: 0.2
B9: Automotive Revenue 2029 | D9: 0.3138668188 | E9: 0.207 | F9: 0.15
B10: Automotive Revenue 2030 | D10: 0.2484754423 | E10: 0.214 | F10: 0.15
B11: Automotive Revenue 2031 | D11: 0.1663826712 | E11: 0.124 | F11: 0.15
B12: Automotive Revenue 2032 | D12: 0.14675837 | E12: 0.125 | F12: 0.1
B13: Automotive Revenue 2033 | D13: 0.133 | E13: 0.125 | F13: 0.1
B14: Automotive Revenue 2034 | D14: 0.133 | E14: 0.125 | F14: 0.1
B15: Software/Services Revenue 2026 | D15: 0.5 | E15: 0.5 | F15: 0.25
B16: Software/Services Revenue 2027 | D16: 0.5 | E16: 0.4 | F16: 0.25
B17: Software/Services Revenue 2028 | D17: 0.5 | E17: 0.3 | F17: 0.25
B18: Software/Services Revenue 2029 | D18: 0.4 | E18: 0.2 | F18: 0.2
B19: Software/Services Revenue 2030 | D19: 0.3 | E19: 0.2 | F19: 0.2
B20: Software/Services Revenue 2031 | D20: 0.25 | E20: 0.2 | F20: 0.2
B21: Software/Services Revenue 2032 | D21: 0.25 | E21: 0.2 | F21: 0.2
B22: Software/Services Revenue 2033 | D22: 0.25 | E22: 0.2 | F22: 0.2
B23: Software/Services Revenue 2034 | D23: 0.25 | E23: 0.2 | F23: 0.2
B24: SGA Margin | D24: 0.05 | E24: 0.075 | F24: 0.1
B25: R&D Margin | D25: 0.06 | E25: 0.08 | F25: 0.075
B26: CAPEX Margin | D26: 0.075 | E26: 0.09 | F26: 0.075
B27: D&A Margin | D27: 0.95 | E27: 0.9 | F27: 0.95
B28: Default Spread | D28: 0.03 | E28: 0.0442 | F28: 0.0442
B29: Result Cells:
B30: Implied Equity Value per Shared (PG) | D30: 40.24854356 | E30: 16.16134347 | F30: 8.945370583
B31: Implied Equity Value per Shared (EM) | D31: 52.62553392 | E31: 21.65256987 | F31: 11.8782893
B32: Notes: Current Values column represents values of changing cells at
B33: time Scenario Summary Report was created. Changing cells for each
B34: scenario are highlighted in gray.

Sheet RIVN_Forecast
B2: Key Metrics (Annual)
B3: Dollars in millions | D3: Actual | H3: Projected
D4: 2021 | E4: 2022 | F4: 2023 | G4: 2024 | H4: 2025 | I4: 2026 | J4: 2027 | K4: 2028 | L4: 2029 | M4: 2030 | N4: 2031 | O4: 2032 | P4: 2033 | Q4: 2034
B5: Production | D5: 1015 | E5: 24337 | F5: 57232 | G5: 49476
B6: Delivery | D6: 920 | E6: 20332 | F6: 50122 | G6: 51579 | H6: 44000 | I6: =I7+I9+I11 -> 81800 | J6: =J7+J9+J11 -> 121070 | K6: =K7+K9+K11+K16 -> 162154.5 | L6: 190160.555 | M6: 216226.0143 | N6: 244748.6157 | O6: 269223.4772 | P6: 296145.825 | Q6: 325760.4075
B7: R1 | F7: =F6-F9 -> 43332 | G7: =G6-G9 -> 40361 | H7: =H6-H9 -> 32000 | I7: 35000 | J7: =I7*(1+J8) -> 39200 | K7: 43904 | L7: 49172.48 | M7: 54089.728 | N7: 59498.7008 | O7: 65448.57088 | P7: 71993.42797 | Q7: 79192.77076
B8: R1 Growth | J8: 0.12 | K8: 0.12 | L8: 0.12 | M8: 0.1 | N8: 0.1 | O8: 0.1 | P8: 0.1 | Q8: 0.1
B9: RCV or EDV | F9: =SUM(G58:J58) -> 6790 | G9: =SUM(K58:N58) -> 11218 | H9: 12000 | I9: =H9*(1+I10) -> 13800 | J9: 15870 | K9: 18250.5 | L9: 20988.075 | M9: 24136.28625 | N9: 26549.91487 | O9: 29204.90636 | P9: 32125.397 | Q9: 35337.9367
B10: RCV Growth | G10: =G9/F9-1 -> 0.6521354934 | H10: =H9/G9-1 -> 0.06970939561 | I10: 0.15 | J10: 0.15 | K10: 0.15 | L10: 0.15 | M10: 0.15 | N10: 0.1 | O10: 0.1 | P10: 0.1 | Q10: 0.1
B11: R2 | I11: 33000 | J11: 66000 | K11: 100000 | L11: =K11*(1+L12) -> 120000 | M11: 138000 | N11: 158700 | O11: 174570 | P11: 192027 | Q11: 211229.7
B12: R2 Growth | L12: 0.2 | M12: 0.15 | N12: 0.15 | O12: 0.1 | P12: 0.1 | Q12: 0.1
B13: R3 | K13: 33000 | L13: 66000 | M13: 100000 | N13: =M13*(1+N14) -> 115000 | O13: =N13*(1+O14) -> 132250 | P13: =O13*(1+P14) -> 145475 | Q13: =P13*(1+Q14) -> 160022.5
M14: 0.2 | N14: 0.15 | O14: 0.15 | P14: 0.1 | Q14: 0.1
B15: Price Increases | C15: 0.03
B20: Rev per R1 | G20: =C91/1000000 -> 0.086 | H20: =G20 -> 0.086 | I20: =H20*(1+$C$15) -> 0.08858 | J20: 0.0912374 | K20: 0.093974522 | L20: 0.09679375766 | M20: 0.09969757039 | N20: 0.1026884975 | O20: 0.1057691524 | P20: 0.108942227 | Q20: 0.1122104938
B21: Rev per RCV | G21: =C92/1000000 -> 0.0607910501 | H21: =G21 -> 0.0607910501 | I21: =H21*(1+$C$15) -> 0.0626147816 | J21: 0.06449322505 | K21: 0.0664280218 | L21: 0.06842086245 | M21: 0.07047348833 | N21: 0.07258769298 | O21: 0.07476532377 | P21: 0.07700828348 | Q21: 0.07931853198
B22: Rev Per R2 | I22: 0.05 | J22: =I22*(1+$C$15) -> 0.0515 | K22: 0.053045 | L22: 0.05463635 | M22: 0.0562754405 | N22: 0.05796370372 | O22: 0.05970261483 | P22: 0.06149369327 | Q22: 0.06333850407
B23: Rev per R3 | K23: 0.05 | L23: =K23*(1+$C$15) -> 0.0515 | M23: =L23*(1+$C$15) -> 0.053045 | N23: 0.05463635 | O23: 0.0562754405 | P23: =O23*(1+$C$15) -> 0.05796370372 | Q23: 0.05970261483
H25: =H26/G26-1 -> -0.1869164955 | I25: =I26/H26-1 -> 0.5392447909 | J25: 0.4247357468 | K25: 0.5367772452 | L25: 0.3138668188 | M25: 0.2484754423 | N25: 0.1663826712 | O25: 0.14675837 | P25: 0.133 | Q25: 0.133
B26: Revenues: Automotive | D26: 0 | E26: 1554 | F26: 4132 | G26: 4486 | H26: =H9*H21+(H6-H9)*H20+H44 -> 3647.492601 | I26: =I7*I20+I9*I21+I11*I22 -> 5614.383986 | J26: =J7*J20+J9*J21+J11*J22 -> 7999.013562 | K26: =K7*K20+K9*K21+K11*K22+K13*K23 -> 12292.70203 | L26: 16150.97331 | M26: 20164.09354 | N26: 23519.04929 | O26: 26970.66663 | P26: 30557.76529 | Q26: 34621.94807
B27: Revenues: Software Service | D27: - | E27: 104 | F27: 302 | G27: 484 | H27: =694*2 -> 1388 | I27: =H27*(1+I33) -> 2082 | J27: 3123 | K27: 4684.5 | L27: 6558.3 | M27: 8525.79 | N27: 10657.2375 | O27: =N27*(1+O33) -> 13321.54688 | P27: 16651.93359 | Q27: 20814.91699
B28: Total Revenues | D28: 55 | E28: 1658 | F28: 4434 | G28: 4970 | H28: =H27+H26 -> 5035.492601 | I28: 7696.383986 | J28: 11122.01356 | K28: 16977.20203 | L28: 22709.27331 | M28: 28689.88354 | N28: 34176.28679 | O28: =O27+O26 -> 40292.2135 | P28: 47209.69888 | Q28: 55436.86506
B30: % Automotive | E30: =E26/E$28 -> 0.9372738239 | F30: =F26/F$28 -> 0.9318899414 | G30: 0.9026156942 | H30: 0.7243566598 | I30: 0.7294833517 | J30: 0.7192055213 | K30: 0.7240711401 | L30: 0.7112060826 | M30: 0.7028293967 | N30: =N26/N$28 -> 0.6881686543 | O30: 0.6693766433 | P30: 0.6472772759 | Q30: 0.6245293278
B31: % Software | E31: =E27/E$28 -> 0.06272617612 | F31: =F27/F$28 -> 0.06811005864 | G31: 0.09738430584 | H31: 0.2756433402 | I31: 0.2705166483 | J31: 0.2807944787 | K31: 0.2759288599 | L31: 0.2887939174 | M31: 0.2971706033 | N31: =N27/N$28 -> 0.3118313457 | O31: 0.3306233567 | P31: 0.3527227241 | Q31: 0.3754706722
B33: Software | F33: =F27/E27-1 -> 1.903846154 | G33: =G27/F27-1 -> 0.6026490066 | H33: =H27/G27-1 -> 1.867768595 | I33: 0.5 | J33: 0.5 | K33: 0.5 | L33: 0.4 | M33: 0.3 | N33: 0.25 | O33: 0.25 | P33: 0.25 | Q33: 0.25
B34: Non VW growth | H34: =(H27-349*2)/G27-1 -> 0.4256198347
B36: Revenue/Vehicle | D36: =D28/D6*1000000 -> 59782.6087 | E36: =(E26-E44)/E6*1000000 -> 76431.24139 | F36: =(F26-F44)/F6*1000000 -> 80982.40294 | G36: 80517.26478 | H36: =(H26-H44)/H6*1000000 -> 79124.83184 | I36: =(I26-I44)/I6*1000000 -> 68635.50105 | J36: 66069.32817 | K36: 75808.57778 | L36: 84933.35174 | M36: 93254.70671 | N36: 96094.71834 | O36: =(O26-O44)/O6*1000000 -> 100179.4751 | P36: 103184.8593 | Q36: 106280.4051
B39: Guidance (at beginning of year)
B40: Production | E40: 25000 | F40: 57000 | G40: 47000-49000
B41: Delivery | G41: 50500-52000
E43: 2022 | F43: 2023 | G43: 2024 | H43: 2025
B44: Regulatory credits | E44: 0 | F44: 73 | G44: 333 | H44: 166 | I44: 0 | J44: 0 | K44: 0
B46: Revenue Projection (CAPIQ) | H46: 5285.1 | I46: 7022.88 | J46: 11307.93 | K46: 20094.37 | L46: 28320.94 | M46: 37384.86 | N46: 42189.2 | O46: 49914.9 | P46: 56179 | Q46: 59490.85
B47: Growth (%) | I47: =I46/H46-1 -> 0.3288074019 | J47: =J46/I46-1 -> 0.6101556626 | K47: 0.7770157757 | L47: 0.4093967614 | M47: 0.3200430494 | N47: 0.1285103114 | O47: 0.1831203246 | P47: 0.1254955935 | Q47: 0.05895174353
B48: EBITDA | H48: -2130.59 | I48: -1760.91 | J48: -785.29 | K48: 762.93 | L48: 1777.95
B50: Quarterly
C51: 2022Q1 | D51: 2022Q2 | E51: 2022Q3 | F51: 2022Q4 | G51: 2023Q1 | H51: 2023Q2 | I51: 2023Q3 | J51: 2023Q4 | K51: 2024Q1 | L51: 2024Q2 | M51: 2024Q3 | N51: 2024Q4 | O51: 2025Q1 | P51: 2025Q2
B52: Production | C52: 2553 | D52: 4401 | E52: 7363 | F52: 10020 | G52: 9395 | H52: 13992 | I52: 16304 | J52: 17541 | K52: 13980 | L52: 9612 | M52: 13157 | N52: 12727 | O52: 14611 | P52: 5979
B53: Delivery | C53: 1227 | D53: 4467 | E53: 6584 | F53: 8054 | G53: 7946 | H53: 12640 | I53: 15564 | J53: 13972 | K53: 13588 | L53: 13790 | M53: 10018 | N53: 14183 | O53: 8640 | P53: 10661
B54: Y-o-Y | G54: =G52/C52-1 -> 2.679984332 | H54: =H52/D52-1 -> 2.179277437 | I54: 1.214314817 | J54: 0.7505988024 | K54: 0.4880255455 | L54: -0.3130360206 | M54: -0.1930201178 | N54: -0.2744427342 | O54: 0.04513590844 | P54: -0.3779650437
B55: Y-o-Y | G55: =G53/C53-1 -> 5.47595762 | H55: =H53/D53-1 -> 1.829639579 | I55: 1.363912515 | J55: 0.7347901664 | K55: 0.7100427888 | L55: 0.09098101266 | M55: -0.3563351324 | N55: 0.01510163184 | O55: -0.3641448337 | P55: -0.2269035533
B57: Estimated split of R1S and R1T and RSV (generated by ChatGPT)
B58: RCV | C58: 0 | D58: 0 | E58: 0 | F58: 0 | G58: 397 | H58: 1264 | I58: 2335 | J58: 2794 | K58: 2718 | L58: 3034 | M58: 2204 | N58: 3262 | O58: 2074 | P58: 2665
B59: R1S | C59: 25 | D59: 223 | E59: 527 | F59: 966 | G59: 3774 | H59: 5460 | I59: 5953 | J59: 5589 | K59: 5652 | L59: 5378 | M59: 3751 | N59: 5460 | O59: 3283 | P59: 3998
B60: R1T | C60: 1202 | D60: 4244 | E60: 6057 | F60: 7088 | G60: 3775 | H60: 5916 | I60: 7276 | J60: 5589 | K60: 5218 | L60: 5378 | M60: 4063 | N60: 5461 | O60: 3283 | P60: 3998
B62: Guidance for 2025
B63: As of | C63: 2024Q4 | D63: 2025Q1 | E63: 2025Q2
B64: Delivery | C64: 46000-51000 | D64: 40000-46000 | E64: 40000-46000
B65: EBITDA | C65: (1700)-(1900) | D65: (1700)-(1900) | E65: (2000-2520)
B66: Capex | C66: 1600-1700 | D66: 1800-1900 | E66: 1800-1900
B69: Normal Factory | C69: 2025 | D69: 2026 | E69: 2027 | F69: 2028 | G69: 2029
B70: Annual Production | C70: 150000 | D70: 215000 | E70: 215000 | F70: 215000 | G70: 215000
B71: R1 | C71: 85000 | D71: 85000 | E71: 85000 | F71: 85000 | G71: 85000
B72: RCV | C72: 65000 | D72: 65000 | E72: 65000 | F72: 65000 | G72: 65000
B73: R2 | D73: 155000 | E73: 155000 | F73: 155000 | G73: 155000
D74: **Does not total as these are up to.
B76: Georgia Factory ***R2 and R3 models
B77: Phase 1 | F77: 200000
B78: Phase 2 | G78: 400000
B80: Total capacity | C80: =C78+C77+C70 -> 150000 | D80: 215000 | E80: 215000 | F80: =F78+F77+F70 -> 415000 | G80: 615000
B82: RCV orders | C82: Ordered | D82: Delivered | E82: Remaining
B83: Amazon | C83: 100000 | D83: 20000 | E83: 80000
B84: Hello Fresh/Factor | C84: 70
B85: AT&T | C85: Pilot program
B90: Average Price
B91: R1 | C91: 86000
B92: RCV | C92: =(G26-G44-G20*(G6-G9))/G9*1000000 -> 60791.0501
B93: R2 | C93: 50000
B95: Midsize SUV Models sold in 2024
D96: 2024 | E96: RS2 Market | F96: Projected
C97: Tesla Model Y | D97: 313699 | E97: 0.05 | F97: =E97*D97 -> 15684.95
C98: Toyota RAV4 | D98: 248295 | E98: 0.01 | F98: =E98*D98 -> 2482.95
C99: Honda CR-V | D99: 196204 | E99: 0.01 | F99: 1962.04
C100: Nissan Rogue | D100: 141160 | E100: 0.01 | F100: 1411.6
C101: Chevrolet Equinox | D101: 107468 | E101: 0.01 | F101: 1074.68
C102: Jeep Grand Cherokee | D102: 106751 | E102: 0.01 | F102: 1067.51
C103: Ford Explorer | D103: 104803 | E103: 0.01 | F103: 1048.03
C104: Subaru Forester | D104: 92849 | E104: 0.01 | F104: 928.49
C105: Hyundai Tucson | D105: 92146 | E105: 0.01 | F105: 921.46
C106: Chevrolet Trax | D106: 90463 | E106: 0.01 | F106: 904.63
C107: Subaru Outback | D107: 81703 | E107: 0.01 | F107: 817.03
C108: Kia Sportage | D108: 79853 | E108: 0.01 | F108: 798.53
C109: Subaru Crosstrek | D109: 79500 | E109: 0.01 | F109: 795
C110: Jeep Wrangler | D110: 77204 | E110: 0.01 | F110: 772.04
C111: Honda HR-V | D111: 76263 | E111: 0.01 | F111: 762.63
C112: Ford Escape | D112: 74538 | E112: 0.01 | F112: 745.38
C113: Mazda CX-5 | D113: 70214 | E113: 0.01 | F113: 702.14
D114: =SUM(D97:D113) -> 2033113 | F114: =SUM(F97:F113) -> 32879.09

Sheet RIVN_Forecast_Scenario
B2: Key Metrics (Annual)
B3: Dollars in millions | D3: Actual | H3: Projected
D4: 2021 | E4: 2022 | F4: 2023 | G4: 2024 | H4: 2025 | I4: 2026 | J4: 2027 | K4: 2028 | L4: 2029 | M4: 2030 | N4: 2031 | O4: 2032 | P4: 2033 | Q4: 2034
B5: Production | D5: 1015 | E5: 24337 | F5: 57232 | G5: 49476
B6: Delivery | D6: 920 | E6: 20332 | F6: 50122 | G6: 51579 | H6: 44000 | I6: =I7+I9+I11 -> 63200 | J6: =J7+J9+J11 -> 82320 | K6: =K7+K9+K11+K16 -> 106796 | L6: 116659.12 | M6: 127443.2336 | N6: 139235.2147 | O6: 152130.2065 | P6: 166232.4151 | Q6: 181655.9797
B7: R1 | F7: =F6-F9 -> 43332 | G7: =G6-G9 -> 40361 | H7: =H6-H9 -> 32000 | I7: 35000 | J7: =I7*(1+J8) -> 37800 | K7: 40824 | L7: 44089.92 | M7: 47617.1136 | N7: 51426.48269 | O7: 55540.6013 | P7: 59983.84941 | Q7: 64782.55736
B8: R1 Growth | J8: 0.08 | K8: 0.08 | L8: 0.08 | M8: 0.08 | N8: 0.08 | O8: 0.08 | P8: 0.08 | Q8: 0.08
B9: RCV or EDV | F9: =SUM(G58:J58) -> 6790 | G9: =SUM(K58:N58) -> 11218 | H9: 12000 | I9: =H9*(1+I10) -> 13200 | J9: 14520 | K9: 15972 | L9: 17569.2 | M9: 19326.12 | N9: 21258.732 | O9: 23384.6052 | P9: 25723.06572 | Q9: 28295.37229
B10: RCV Growth | G10: =G9/F9-1 -> 0.6521354934 | H10: =H9/G9-1 -> 0.06970939561 | I10: 0.1 | J10: 0.1 | K10: 0.1 | L10: 0.1 | M10: 0.1 | N10: 0.1 | O10: 0.1 | P10: 0.1 | Q10: 0.1
B11: R2 | I11: 15000 | J11: 30000 | K11: 50000 | L11: =K11*(1+L12) -> 55000 | M11: 60500 | N11: 66550 | O11: 73205 | P11: 80525.5 | Q11: 88578.05
B12: R2 Growth | L12: 0.1 | M12: 0.1 | N12: 0.1 | O12: 0.1 | P12: 0.1 | Q12: 0.1
B13: R3 | K13: 15000 | L13: 30000 | M13: 50000 | N13: =M13*(1+N14) -> 55000 | O13: =N13*(1+O14) -> 60500 | P13: =O13*(1+P14) -> 66550 | Q13: =P13*(1+Q14) -> 73205
M14: 0.1 | N14: 0.1 | O14: 0.1 | P14: 0.1 | Q14: 0.1
B15: Price Increases | C15: 0.03
B20: Rev per R1 | G20: =C91/1000000 -> 0.086 | H20: =G20 -> 0.086 | I20: =H20*(1+$C$15) -> 0.08858 | J20: 0.0912374 | K20: 0.093974522 | L20: 0.09679375766 | M20: 0.09969757039 | N20: 0.1026884975 | O20: 0.1057691524 | P20: 0.108942227 | Q20: 0.1122104938
B21: Rev per RCV | G21: =C92/1000000 -> 0.0607910501 | H21: =G21 -> 0.0607910501 | I21: 0.0626147816 | J21: 0.06449322505 | K21: 0.0664280218 | L21: 0.06842086245 | M21: 0.07047348833 | N21: 0.07258769298 | O21: 0.07476532377 | P21: 0.07700828348 | Q21: 0.07931853198
B22: Rev Per R2 | I22: 0.05 | J22: 0.0515 | K22: 0.053045 | L22: 0.05463635 | M22: 0.0562754405 | N22: 0.05796370372 | O22: 0.05970261483 | P22: 0.06149369327 | Q22: 0.06333850407
B23: Rev per R3 | K23: 0.05 | L23: =K23*(1+$C$15) -> 0.0515 | M23: 0.053045 | N23: 0.05463635 | O23: 0.0562754405 | P23: 0.05796370372 | Q23: 0.05970261483
H25: =H26/G26-1 -> -0.1869164955 | I25: =I26/H26-1 -> 0.2822000285 | J25: 0.2680029463 | K25: 0.399553602 | L25: 0.2072464462 | M25: 0.2142249428 | N25: 0.1249617821 | O25: 0.1250515401 | P25: 0.1251409229 | Q25: 0.1252299179
B26: Revenues: Automotive | D26: 0 | E26: 1554 | F26: 4132 | G26: 4486 | H26: =H9*H21+(H6-H9)*H20+H44 -> 3647.492601 | I26: =I7*I20+I9*I21+I11*I22 -> 4676.815117 | J26: =J7*J20+J9*J21+J11*J22 -> 5930.215348 | K26: =K7*K20+K9*K21+K11*K22+K13*K23 -> 8299.65425 | L26: 10019.7281 | M26: 12166.20378 | N26: 13686.51428 | O26: 15398.03397 | P26: 17324.95816 | Q26: 19494.56124
B27: Revenues: Software Service | D27: - | E27: 104 | F27: 302 | G27: 484 | H27: =694*2 -> 1388 | I27: =H27*(1+I33) -> 2082 | J27: 2914.8 | K27: 3789.24 | L27: 4547.088 | M27: 5456.5056 | N27: 6547.80672 | O27: 7857.368064 | P27: 9428.841677 | Q27: 11314.61001
B28: Total Revenues | D28: 55 | E28: 1658 | F28: 4434 | G28: 4970 | H28: =H27+H26 -> 5035.492601 | I28: 6758.815117 | J28: 8845.015348 | K28: 12088.89425 | L28: 14566.8161 | M28: 17622.70938 | N28: 20234.321 | O28: 23255.40204 | P28: 26753.79983 | Q28: 30809.17125
B30: % Automotive | E30: =E26/E$28 -> 0.9372738239 | F30: =F26/F$28 -> 0.9318899414 | G30: 0.9026156942 | H30: 0.7243566598 | I30: 0.6919578411 | J30: 0.6704584576 | K30: 0.6865519772 | L30: 0.6878461313 | M30: 0.690370789 | N30: 0.6764009665 | O30: 0.6621271887 | P30: 0.6475699999 | Q30: 0.6327518868
B31: % Software | E31: =E27/E$28 -> 0.06272617612 | F31: 0.06811005864 | G31: 0.09738430584 | H31: 0.2756433402 | I31: 0.3080421589 | J31: 0.3295415424 | K31: 0.3134480228 | L31: 0.3121538687 | M31: 0.309629211 | N31: 0.3235990335 | O31: 0.3378728113 | P31: 0.3524300001 | Q31: 0.3672481132
B33: Software | F33: =F27/E27-1 -> 1.903846154 | G33: =G27/F27-1 -> 0.6026490066 | H33: =H27/G27-1 -> 1.867768595 | I33: 0.5 | J33: 0.4 | K33: 0.3 | L33: 0.2 | M33: 0.2 | N33: 0.2 | O33: 0.2 | P33: 0.2 | Q33: 0.2
B34: Non VW growth | H34: =(H27-349*2)/G27-1 -> 0.4256198347
B36: Revenue/Vehicle | D36: =D28/D6*1000000 -> 59782.6087 | E36: =(E26-E44)/E6*1000000 -> 76431.24139 | F36: =(F26-F44)/F6*1000000 -> 80982.40294 | G36: 80517.26478 | H36: =(H26-H44)/H6*1000000 -> 79124.83184 | I36: =(I26-I44)/I6*1000000 -> 74000.2392 | J36: 72038.57322 | K36: 77715.02912 | L36: 85888.93949 | M36: 95463.70909 | N36: 98297.79279 | O36: 101216.1511 | P36: 104221.2985 | Q36: 107315.8246
B39: Guidance (at beginning of year)
B40: Production | E40: 25000 | F40: 57000 | G40: 47000-49000
B41: Delivery | G41: 50500-52000
E43: 2022 | F43: 2023 | G43: 2024 | H43: 2025
B44: Regulatory credits | E44: 0 | F44: 73 | G44: 333 | H44: 166 | I44: 0 | J44: 0 | K44: 0
B46: Revenue Projection (CAPIQ) | H46: 5285.1 | I46: 7022.88 | J46: 11307.93 | K46: 20094.37 | L46: 28320.94 | M46: 37384.86 | N46: 42189.2 | O46: 49914.9 | P46: 56179 | Q46: 59490.85
B47: Growth (%) | I47: =I46/H46-1 -> 0.3288074019 | J47: =J46/I46-1 -> 0.6101556626 | K47: 0.7770157757 | L47: 0.4093967614 | M47: 0.3200430494 | N47: 0.1285103114 | O47: 0.1831203246 | P47: 0.1254955935 | Q47: 0.05895174353
B48: EBITDA | H48: -2130.59 | I48: -1760.91 | J48: -785.29 | K48: 762.93 | L48: 1777.95
B50: Quarterly
C51: 2022Q1 | D51: 2022Q2 | E51: 2022Q3 | F51: 2022Q4 | G51: 2023Q1 | H51: 2023Q2 | I51: 2023Q3 | J51: 2023Q4 | K51: 2024Q1 | L51: 2024Q2 | M51: 2024Q3 | N51: 2024Q4 | O51: 2025Q1 | P51: 2025Q2
B52: Production | C52: 2553 | D52: 4401 | E52: 7363 | F52: 10020 | G52: 9395 | H52: 13992 | I52: 16304 | J52: 17541 | K52: 13980 | L52: 9612 | M52: 13157 | N52: 12727 | O52: 14611 | P52: 5979
B53: Delivery | C53: 1227 | D53: 4467 | E53: 6584 | F53: 8054 | G53: 7946 | H53: 12640 | I53: 15564 | J53: 13972 | K53: 13588 | L53: 13790 | M53: 10018 | N53: 14183 | O53: 8640 | P53: 10661
B54: Y-o-Y | G54: =G52/C52-1 -> 2.679984332 | H54: =H52/D52-1 -> 2.179277437 | I54: 1.214314817 | J54: 0.7505988024 | K54: 0.4880255455 | L54: -0.3130360206 | M54: -0.1930201178 | N54: -0.2744427342 | O54: 0.04513590844 | P54: -0.3779650437
B55: Y-o-Y | G55: =G53/C53-1 -> 5.47595762 | H55: 1.829639579 | I55: 1.363912515 | J55: 0.7347901664 | K55: 0.7100427888 | L55: 0.09098101266 | M55: -0.3563351324 | N55: 0.01510163184 | O55: -0.3641448337 | P55: -0.2269035533
B57: Estimated split of R1S and R1T and RSV (generated by ChatGPT)
B58: RCV | C58: 0 | D58: 0 | E58: 0 | F58: 0 | G58: 397 | H58: 1264 | I58: 2335 | J58: 2794 | K58: 2718 | L58: 3034 | M58: 2204 | N58: 3262 | O58: 2074 | P58: 2665
B59: R1S | C59: 25 | D59: 223 | E59: 527 | F59: 966 | G59: 3774 | H59: 5460 | I59: 5953 | J59: 5589 | K59: 5652 | L59: 5378 | M59: 3751 | N59: 5460 | O59: 3283 | P59: 3998
B60: R1T | C60: 1202 | D60: 4244 | E60: 6057 | F60: 7088 | G60: 3775 | H60: 5916 | I60: 7276 | J60: 5589 | K60: 5218 | L60: 5378 | M60: 4063 | N60: 5461 | O60: 3283 | P60: 3998
B62: Guidance for 2025
B63: As of | C63: 2024Q4 | D63: 2025Q1 | E63: 2025Q2
B64: Delivery | C64: 46000-51000 | D64: 40000-46000 | E64: 40000-46000
B65: EBITDA | C65: (1700)-(1900) | D65: (1700)-(1900) | E65: (2000-2520)
B66: Capex | C66: 1600-1700 | D66: 1800-1900 | E66: 1800-1900
B69: Normal Factory | C69: 2025 | D69: 2026 | E69: 2027 | F69: 2028 | G69: 2029
B70: Annual Production | C70: 150000 | D70: 215000 | E70: 215000 | F70: 215000 | G70: 215000
B71: R1 | C71: 85000 | D71: 85000 | E71: 85000 | F71: 85000 | G71: 85000
B72: RCV | C72: 65000 | D72: 65000 | E72: 65000 | F72: 65000 | G72: 65000
B73: R2 | D73: 155000 | E73: 155000 | F73: 155000 | G73: 155000
D74: **Does not total as these are up to.
B76: Georgia Factory ***R2 and R3 models
B77: Phase 1 | F77: 200000
B78: Phase 2 | G78: 400000
B80: Total capacity | C80: =C78+C77+C70 -> 150000 | D80: 215000 | E80: 215000 | F80: =F78+F77+F70 -> 415000 | G80: 615000
B82: RCV orders | C82: Ordered | D82: Delivered | E82: Remaining
B83: Amazon | C83: 100000 | D83: 20000 | E83: 80000
B84: Hello Fresh/Factor | C84: 70
B85: AT&T | C85: Pilot program
B90: Average Price
B91: R1 | C91: 86000
B92: RCV | C92: =(G26-G44-G20*(G6-G9))/G9*1000000 -> 60791.0501
B93: R2 | C93: 50000
B95: Midsize SUV Models sold in 2024
D96: 2024 | E96: RS2 Market | F96: Projected
C97: Tesla Model Y | D97: 313699 | E97: 0.05 | F97: =E97*D97 -> 15684.95
C98: Toyota RAV4 | D98: 248295 | E98: 0.01 | F98: =E98*D98 -> 2482.95
C99: Honda CR-V | D99: 196204 | E99: 0.01 | F99: 1962.04
C100: Nissan Rogue | D100: 141160 | E100: 0.01 | F100: 1411.6
C101: Chevrolet Equinox | D101: 107468 | E101: 0.01 | F101: 1074.68
C102: Jeep Grand Cherokee | D102: 106751 | E102: 0.01 | F102: 1067.51
C103: Ford Explorer | D103: 104803 | E103: 0.01 | F103: 1048.03
C104: Subaru Forester | D104: 92849 | E104: 0.01 | F104: 928.49
C105: Hyundai Tucson | D105: 92146 | E105: 0.01 | F105: 921.46
C106: Chevrolet Trax | D106: 90463 | E106: 0.01 | F106: 904.63
C107: Subaru Outback | D107: 81703 | E107: 0.01 | F107: 817.03
C108: Kia Sportage | D108: 79853 | E108: 0.01 | F108: 798.53
C109: Subaru Crosstrek | D109: 79500 | E109: 0.01 | F109: 795
C110: Jeep Wrangler | D110: 77204 | E110: 0.01 | F110: 772.04
C111: Honda HR-V | D111: 76263 | E111: 0.01 | F111: 762.63
C112: Ford Escape | D112: 74538 | E112: 0.01 | F112: 745.38
C113: Mazda CX-5 | D113: 70214 | E113: 0.01 | F113: 702.14
D114: =SUM(D97:D113) -> 2033113 | F114: =SUM(F97:F113) -> 32879.09

Sheet Option_Value
B2: Valuing Options or Warrants
B3: Enter the current stock price = | E3: =RIVN_DCF!S54 -> 38.64774231
B4: Enter the strike price on the option = | E4: 13.6
B5: Enter the expiration of the option = | E5: 5.2
B6: Enter the standard deviation in stock prices = | E6: 0.625 | F6: (volatility)
B7: Enter the annualized dividend yield on stock = | E7: 0
B8: Enter the treasury bond rate = | E8: =RIVN_DCF!F124 -> 0.0416
B9: Enter the number of options outstanding = | E9: 60
B10: Enter the number of shares outstanding = | E10: =RIVN_DCF!F112 -> 1196.814169
B12: Circuit Breaker | C12: OFF
B14: Do not input any numbers below this line
B15: VALUING WARRANTS WHEN THERE IS DILUTION
B16: Stock Price= | D16: =E3 -> 38.64774231 | E16: # Warrants issued= | G16: =E9 -> 60
B17: Strike Price= | D17: =E4 -> 13.6 | E17: # Shares outstanding= | G17: =E10 -> 1196.814169
B18: Adjusted S = | D18: =(D16*G17+D29*G16)/(G17+G16) -> 38.23004078 | E18: T.Bond rate= | G18: =E8 -> 0.0416
B19: Adjusted K = | D19: =D17 -> 13.6 | E19: Variance= | G19: =E6^2 -> 0.390625
B20: Expiration (in years) = | D20: =E5 -> 5.2 | E20: Annualized dividend yield= | G20: =E7 -> 0
E21: Div. Adj. interest rate= | G21: =G18-G20 -> 0.0416
B23: d1 = | C23: =(LN(D18/D19)+(G21+(G19/2))*D20)/(((G19)^(0.5))*(D20^0.5)) -> 1.589577724
B24: N (d1) = | C24: =NORMSDIST(C23) -> 0.9440349892
B26: d2 = | C26: =C23-((G19^0.5)*(D20^(0.5))) -> 0.1643584427
B27: N (d2) = | C27: =NORMSDIST(C26) -> 0.5652755117
B29: Value per option = | D29: =IF(C12="OFF",((EXP((0-G20)*D20))*D18*C24-D19*(EXP((0-G18)*D20))*C27),0) -> 29.89818887
B30: Value of all options outstanding = | E30: =D29*E9 -> 1793.891332

Sheet Warrant_Value
B2: Valuing Options or Warrants
B3: Enter the current stock price = | E3: =RIVN_DCF!H63 -> 40.00408794
B4: Enter the strike price on the option = | E4: 6.84
B5: Enter the expiration of the option = | E5: 4
B6: Enter the standard deviation in stock prices = | E6: 0.625 | F6: (volatility)
B7: Enter the annualized dividend yield on stock = | E7: 0
B8: Enter the treasury bond rate = | E8: =RIVN_DCF!F124 -> 0.0416
B9: Enter the number of options outstanding = | E9: 12
B10: Enter the number of shares outstanding = | E10: =RIVN_DCF!F112 -> 1196.814169
B12: Circuit Breaker | C12: OFF
B14: Do not input any numbers below this line
B15: VALUING WARRANTS WHEN THERE IS DILUTION
B16: Stock Price= | D16: =E3 -> 40.00408794 | E16: # Warrants issued= | G16: =E9 -> 12
B17: Strike Price= | D17: =E4 -> 6.84 | E17: # Shares outstanding= | G17: =E10 -> 1196.814169
B18: Adjusted S = | D18: =(D16*G17+D29*G16)/(G17+G16) -> 39.95039104 | E18: T.Bond rate= | G18: =E8 -> 0.0416
B19: Adjusted K = | D19: =D17 -> 6.84 | E19: Variance= | G19: =E6^2 -> 0.390625
B20: Expiration (in years) = | D20: =E5 -> 4 | E20: Annualized dividend yield= | G20: =E7 -> 0
E21: Div. Adj. interest rate= | G21: =G18-G20 -> 0.0416
B23: d1 = | C23: =(LN(D18/D19)+(G21+(G19/2))*D20)/(((G19)^(0.5))*(D20^0.5)) -> 2.170000583
B24: N (d1) = | C24: =NORMSDIST(C23) -> 0.9849965991
B26: d2 = | C26: =C23-((G19^0.5)*(D20^(0.5))) -> 0.920000583
B27: N (d2) = | C27: =NORMSDIST(C26) -> 0.8212137727
B29: Value per option = | D29: =IF(C12="OFF",((EXP((0-G20)*D20))*D18*C24-D19*(EXP((0-G18)*D20))*C27),0) -> 34.59495684
B30: Value of all options outstanding = | E30: =D29*E9 -> 415.139482

Sheet Convertible_Debt
B2: 2029 Green Convertible Debt
B3: Face Value | C3: 1500
B4: Coupon Rate | C4: 0.04625
B5: Last trade price | C5: 98.25
B6: Market Value of Debt | C6: =C3*C5/100 -> 1473.75
B7: Cost of debt | C7: =RIVN_DCF!F120 -> 0.0716
B8: Time to Maturity | C8: 3.5
B9: Frequency | C9: 2
B10: Value of straight debt | C10: =-PV(C7/C9,C8*C9,C3*C4/C9,C3) -> 1384.09352
B11: Value of Equity Portion | C11: =C6-C10 -> 89.6564805
B13: 2030 Green Convertible Debt
B14: Face Value | C14: 1725
B15: Coupon Rate | C15: 0.03625
B16: Last trade price | C16: 85.67
B17: Market Value of Debt | C17: =C14*C16/100 -> 1477.8075
B18: Cost of debt | C18: =RIVN_DCF!F120 -> 0.0716
B19: Time to Maturity | C19: 5
B20: Frequency | C20: 2
B21: Value of straight debt | C21: =-PV(C18/C20,C19*C20,C14*C15/C20,C14) -> 1472.451287
B22: Value of Equity Portion | C22: =C17-C21 -> 5.356213

Sheet RIVN_IS
A5: Rivian Automotive, Inc. (NasdaqGS:RIVN) > Financials > Income Statement
B7: Template: | C7: As Presented | E7: Restatement: | F7: Latest Filings
B8: Period Type: | C8: Annual | E8: Order: | F8: Latest on Right
B9: Currency: | C9: Reported Currency | E9: Conversion: | F9: Historical
B10: Units: | C10: S&P Capital IQ (Default) | E10: Decimals: | F10: Capital IQ (Default)
B11: Source: | C11: Capital IQ & Proprietary Data
A14: Income Statement | B14: 2019 | C14: 2020 | D14: 2021 | E14: 2022 | F14: 2023 | G14: 2024
A15: For the Fiscal Period Ending | B15: 12 months Dec-31-2019 | C15: 12 months Dec-31-2020 | D15: 12 months Dec-31-2021 | E15: 12 months Dec-31-2022 | F15: 12 months Dec-31-2023 | G15: 12 months Dec-31-2024
A16: Currency | B16: USD | C16: USD | D16: USD | E16: USD | F16: USD | G16: USD
A17: Units | B17: Millions | C17: Millions | D17: Millions | E17: Millions | F17: Millions | G17: Millions
A18: Revenues
A19: Revenues: Automotive | B19: - | C19: - | E19: 1554 | F19: 4132 | G19: 4486
A20: Revenues: Software Service | B20: - | C20: - | D20: - | E20: 104 | F20: 302 | G20: 484
A21: Revenues | B21: - | C21: - | D21: 55 | E21: - | F21: - | G21: -
A22: Total Revenues | D22: =D21 -> 55 | E22: 1658 | F22: 4434 | G22: 4970
A24: Expenses | B24: =0*(-1) -> 0 | C24: 0 | D24: 0 | E24: 0 | F24: 0 | G24: 0
A25: Cost of Revenues | B25: =0*(-1) -> 0 | C25: 0 | D25: =-520*(-1) -> 520 | E25: =0*(-1) -> 0 | F25: =0*(-1) -> 0 | G25: =0*(-1) -> 0
A26: Cost of Revenues: Software Service | B26: 0 | C26: 0 | D26: =0*(-1) -> 0 | E26: =-115*(-1) -> 115 | F26: =-314*(-1) -> 314 | G26: =-477*(-1) -> 477
A27: Cost of Revenues: Automotive | B27: 0 | C27: 0 | D27: =-520*(-1) -> 520 | E27: =-4666*(-1) -> 4666 | F27: =-6150*(-1) -> 6150 | G27: =-5693*(-1) -> 5693
A28: Selling, General and Administrative | B28: =-108*(-1) -> 108 | C28: =-255*(-1) -> 255 | D28: =-1242*(-1) -> 1242 | E28: =-1789*(-1) -> 1789 | F28: =-1714*(-1) -> 1714 | G28: =-1876*(-1) -> 1876
A29: Research and Development | B29: =-301*(-1) -> 301 | C29: =-766*(-1) -> 766 | D29: =-1850*(-1) -> 1850 | E29: =-1944*(-1) -> 1944 | F29: =-1995*(-1) -> 1995 | G29: =-1613*(-1) -> 1613
A30: Other Expenses | B30: - | C30: - | D30: =-663*(-1) -> 663 | E30: - | F30: - | G30: -
A31: Interest Expense | B31: =-34*(-1) -> 34 | C31: =-8*(-1) -> 8 | D31: =-29*(-1) -> 29 | E31: =-103*(-1) -> 103 | F31: =-220*(-1) -> 220 | G31: =-318*(-1) -> 318
A32: Interest Income | B32: 18 | C32: 10 | D32: 3 | E32: 193 | F32: 522 | G32: 385
A33: Other Income/expense-net | B33: -1 | C33: 1 | D33: -1 | E33: 18 | F33: 6 | G33: -7
A34: Loss on Convertible Notes, Net | B34: - | C34: - | D34: -441 | E34: - | F34: - | G34: -112
A35: Earnings before Taxes | B35: -426 | C35: -1018 | D35: -4688 | E35: -6748 | F35: -5431 | G35: -4741
A37: Taxes and Other Expenses
A38: Provision for Income Tax | B38: - | C38: - | D38: - | E38: -4 | F38: -1 | G38: -5
A39: Minority Interest (After Tax) | B39: - | C39: - | D39: - | E39: - | F39: - | G39: -1
A40: Net Income (Loss) | B40: -426 | C40: -1018 | D40: -4688 | E40: -6752 | F40: -5432 | G40: -4747
A42: Charges on Net Income
A43: Premiums on Preferred Stock Redemption | B43: - | C43: -1 | D43: - | E43: - | F43: - | G43: -
A44: Net Income Available to Common Shareholders | B44: -426 | C44: -1019 | D44: - | E44: - | F44: - | G44: -
A46: Supplementary Info
A47: Gross Profit/loss | B47: - | C47: - | D47: -465 | E47: -3123 | F47: -2030 | G47: -1200
A48: Operating Income (Loss) | B48: -409 | C48: -1021 | D48: -4220 | E48: -6856 | F48: -5739 | G48: -4689
A49: Basic EPS - Continuing Operations | B49: -4.35 | C49: -10.09 | D49: -22.98 | E49: -7.4 | F49: -5.74 | G49: -4.69
A50: Diluted EPS - Continuing Operations | B50: -4.35 | C50: -10.09 | D50: -22.98 | E50: -7.4 | F50: -5.74 | G50: -4.69
A52: Note: For multiple class companies, per share items are primary class equivalent, and for foreign companies listed as primary ADRs, per share items are ADR-equivalent.
A54: Depreciation and amortization | B54: 7 | C54: 29 | D54: 197 | E54: 652 | F54: 937 | G54: 1031
A55: Capex | B55: -199 | C55: -914 | D55: -1794 | E55: -1369 | F55: -1026 | G55: -1141

Sheet RIVN_BS
A5: Rivian Automotive, Inc. (NasdaqGS:RIVN) > Financials > Balance Sheet
B7: Template: | C7: As Presented | E7: Restatement: | F7: Latest Filings
B8: Period Type: | C8: Annual | E8: Order: | F8: Latest on Right
B9: Currency: | C9: Reported Currency | E9: Conversion: | F9: Historical
B10: Units: | C10: S&P Capital IQ (Default) | E10: Decimals: | F10: Capital IQ (Default)
B11: Source: | C11: Capital IQ & Proprietary Data
A14: Balance Sheet | B14: 2019 | C14: 2020 | D14: 2021 | E14: 2022 | F14: 2023 | G14: 2024
A15: Balance Sheet as of: | B15: 2019-12-31 | C15: 2020-12-31 | D15: 2021-12-31 | E15: 2022-12-31 | F15: 2023-12-31 | G15: 2024-12-31
A16: Currency | B16: USD | C16: USD | D16: USD | E16: USD | F16: USD | G16: USD
A17: Units | B17: Millions | C17: Millions | D17: Millions | E17: Millions | F17: Millions | G17: Millions
A18: Current Assets
A19: Cash and Cash Equivalents | B19: 2264 | C19: 2979 | D19: 18133 | E19: 11568 | F19: 7857 | G19: 5294
A20: Short-term Investments | F20: 1511 | G20: 2406
A21: Accounts Receivable, Net | B21: - | C21: 6 | D21: 26 | E21: 102 | F21: 161 | G21: 443
A22: Inventory | D22: 274 | E22: 1348 | F22: 2620 | G22: 2248
A23: Other Current Assets | B23: 29 | C23: 31 | D23: 126 | E23: 112 | F23: 164 | G23: 192
A24: Total Current Assets | B24: 2293 | C24: 3016 | D24: 18559 | E24: 13130 | F24: 12313 | G24: 10583
A26: Non Current Assets
A27: Operating Lease Assets – Net | C27: 80 | D27: 228 | E27: 330 | F27: 356 | G27: 416
A28: Property, Plant and Equipment, Net | B28: 313 | C28: 1445 | D28: 3183 | E28: 3758 | F28: 3874 | G28: 3965
A29: Other Non-current Assets | B29: 27 | C29: 61 | D29: 324 | E29: 658 | F29: 235 | G29: 446
A30: Total Assets | B30: 2633 | C30: 4602 | D30: 22294 | E30: 17876 | F30: 16778 | G30: 15410
A32: Current Liabilities
A33: Accounts Payable | B33: 27 | C33: 90 | D33: 483 | E33: 1000 | F33: 981 | G33: 499
A34: Accrued Liabilities | B34: 137 | C34: 443 | D34: 667 | E34: 1154 | F34: 1145 | G34: 835
A35: Current Portion of Long-term Debt | C35: 28
A36: Customer Deposits | B36: 18 | C36: 28
A37: Current portion of lease liabilities and other Current liabilities | B37: 3 | C37: 22 | D37: 163 | E37: 270
A38: Current portion of deferred revenues, lease liabilities, and other liabilities | B38: - | C38: - | D38: - | E38: - | F38: 361 | G38: 917
A39: Total Current Liabilities | B39: 185 | C39: 611 | D39: 1313 | E39: 2424 | F39: 2487 | G39: 2251
A40: Current portion of lease liabilities | C40: 18 | D40: 46 | E40: 68 | F40: 88 | G40: 100
A41: Non Current Liabilities
A42: Noncurrent Portion of Long-term Debt | B42: 71 | C42: 47 | D42: 1226 | E42: 1231 | F42: 4431 | G42: 4441
A43: Non Current Lease Liabilities | B43: - | C43: 83 | D43: 218 | E43: 311 | F43: 324 | G43: 379
A44: Minority Interest | B44: - | C44: - | D44: - | E44: - | F44: - | G44: 4
A45: Preferred Stock Convertible | B45: 2750 | C45: 5244 | D45: - | E45: - | F45: - | G45: -
A46: Other Non-current Liabilities | B46: 2 | C46: 1 | D46: 23 | E46: 111 | F46: 395 | G46: 1777
A48: Shareholders' Equity
A49: Common Stock - Par Value | B49: - | C49: - | D49: 1 | E49: 1 | F49: 1 | G49: 1
A50: Additional Paid in Capital | B50: 293 | C50: 302 | D50: 25887 | E50: 26926 | F50: 27695 | G50: 29866
A51: Accumulated Deficit | B51: -668 | C51: -1686 | D51: -6374 | E51: -13126 | F51: -18558 | G51: -23305
A52: Accumulated Other Comprehensive Income (Loss) | B52: - | C52: - | D52: - | E52: -2 | F52: 3 | G52: -4
A53: Total Shareholders Equity | B53: -375 | C53: -1384 | D53: 19514 | E53: 13799 | F53: 9141 | G53: 6558
A54: Total Liabilities & Shareholders Equity | B54: 2633 | C54: 4602 | D54: 22294 | E54: 17876 | F54: 16778 | G54: 15410
A56: Note: For multiple class companies, total share counts are primary class equivalent, and for foreign companies listed as primary ADRs, total share counts are ADR-equivalent.

Sheet RIVN_CFS
A5: Rivian Automotive, Inc. (NasdaqGS:RIVN) > Financials > Cash Flow
B7: Template: | C7: As Presented | E7: Restatement: | F7: Latest Filings
B8: Period Type: | C8: Annual | E8: Order: | F8: Latest on Right
B9: Currency: | C9: Reported Currency | E9: Conversion: | F9: Historical
B10: Units: | C10: S&P Capital IQ (Default) | E10: Decimals: | F10: Capital IQ (Default)
B11: Source: | C11: Capital IQ & Proprietary Data
A14: Cash Flow
A15: For the Fiscal Period Ending | B15: 12 months Dec-31-2019 | C15: 12 months Dec-31-2020 | D15: 12 months Dec-31-2021 | E15: 12 months Dec-31-2022 | F15: 12 months Dec-31-2023 | G15: 12 months Dec-31-2024
A16: Currency | B16: USD | C16: USD | D16: USD | E16: USD | F16: USD | G16: USD
A17: Units | B17: Millions | C17: Millions | D17: Millions | E17: Millions | F17: Millions | G17: Millions
A18: Operating Activities
A19: Net Income | B19: -426 | C19: -1018 | D19: -4688 | E19: -6752 | F19: -5432 | G19: -4746
A20: Depreciation and Amortization | B20: 7 | C20: 29 | D20: 197 | E20: 652 | F20: 937 | G20: 1031
A21: Stock Based Compenation Expense | B21: - | C21: - | D21: 570 | E21: 987 | F21: 821 | G21: 692
A22: Inventory LCNRV write-downs and losses on firm purchase Commitments | B22: - | C22: - | D22: 95 | E22: 920 | F22: 107 | G22: -
A23: Other Non-current Assets | B23: -5 | C23: -8 | D23: -8 | E23: - | F23: - | G23: -
A24: Other Non-current Liabilities | B24: -14 | C24: -1 | D24: 18 | E24: - | F24: - | G24: -
A25: Other Expenses | B25: - | C25: - | D25: 643 | E25: - | F25: - | G25: -
A26: Other Non-cash Activities | B26: 37 | C26: 41 | D26: 36 | E26: 82 | F26: 115 | G26: 28
A27: Loss on Convertible Notes, Net | B27: - | C27: - | D27: 441 | E27: - | F27: - | G27: 112
A28: Accounts Receivable | B28: -16 | C28: 11 | D28: -20 | E28: -76 | F28: -59 | G28: -282
A29: Inventory | B29: - | C29: - | D29: -369 | E29: -1657 | F29: -1604 | G29: 307
A30: Accounts Payable and Accrued Liabilities | B30: 43 | C30: 121 | D30: 461 | E30: 623 | F30: 105 | G30: -572
A31: Deferred Revenue | B31: - | C31: - | D31: - | E31: 61 | F31: 149 | G31: 1619
A32: Other Liabilities | B32: 15 | C32: 11 | D32: 83 | E32: 144 | F32: 141 | G32: 316
A33: Customer Deposits | B33: 14 | C33: - | D33: - | E33: - | F33: - | G33: -
A34: Other Current Assets | B34: -8 | C34: -34 | D34: -81 | E34: -36 | F34: -146 | G34: -221
A35: Cash Flow from Operating Activities | B35: -353 | C35: -848 | D35: -2622 | E35: -5052 | F35: -4866 | G35: -1716
A37: Investing Activities
A38: Capital Expenditures | B38: -199 | C38: -914 | D38: -1794 | E38: -1369 | F38: -1026 | G38: -1141
A39: Purchases of Short-term Investment | B39: - | C39: - | D39: - | E39: - | F39: -2410 | G39: -4392
A40: Maturities of Short-term Investments | B40: - | C40: - | D40: - | E40: - | F40: 925 | G40: 3553
A41: Cash Flow from Investing Activities | B41: -199 | C41: -914 | D41: -1794 | E41: -1369 | F41: -2511 | G41: -1980
A43: Financing Activities
A44: Proceeds from Issuance of Convertible Notes | B44: - | C44: - | D44: 2500 | E44: - | F44: 3195 | G44: 1000
A45: Proceeds from Issuance of Long - Term Debt, Net of Discount and Debt Issuance Costs | B45: 61 | C45: - | D45: 1226 | E45: - | F45: - | G45: -
A46: Proceeds from Issuances of Capital Stock | B46: 2750 | C46: 2506 | D46: 2658 | E46: 102 | F46: 61 | G46: 64
A47: Proceeds from Share Issuance Upon Initial Public Offering, Net of Underwriting Discounts and Commissions and Offering Costs | B47: - | C47: - | D47: 13530 | E47: - | F47: - | G47: -
A48: Other Financing Activities | B48: - | C48: - | D48: -86 | E48: -3 | F48: -18 | G48: -7
A49: Purchase of Capped Call Option | B49: - | C49: - | D49: - | E49: - | F49: -108 | G49: -
A50: Principal Payments and Other Financing Activities | B50: - | C50: -6 | D50: - | E50: - | F50: - | G50: -
A51: Proceeds from funding of 50% interest in Rivian and VW Group Technology, LLC | B51: - | C51: - | D51: - | E51: - | F51: - | G51: 79
A52: Cash Flow from Financing Activities | B52: 2811 | C52: 2500 | D52: 19828 | E52: 99 | F52: 3130 | G52: 1136
A54: Other Adjustments
A55: Foreign Exchange Rate Effect on Cash and Cash Equivalents | B55: - | C55: - | D55: - | E55: -2 | F55: 5 | G55: -3
A56: Cash Flow Net Changes in Cash | B56: 2259 | C56: 738 | D56: 15412 | E56: -6324 | F56: -4242 | G56: -2563

Sheet RIVN_LTM
B2: LTM Calculations For | C2: RIVN
C4: Fiscal year ended | E4: 9-Months Ended | H4: LTM
C5: 2024-12-31 | E5: 2025-09-30 | F5: 2024-09-30 | H5: 2025-09-30
B6: Revenues | C6: 4970 | E6: 4101 | F6: 3236 | H6: =E6+C6-F6 -> 5835
H8: As of
H9: 2025-09-30
B10: Net debt | H10: =5200-7088 -> -1888
B11: Preferred stock | H11: 0
B12: Non-controlling Interest | H12: 18
B14: Share Price | C14: 15.23
B15: Market Value of Equity | C15: 18670.7
B16: Book Value of Equity | C16: 5066

Sheet 600418_LTM
B2: LTM Calculations For | C2: 600418
C4: Fiscal year ended | E4: 9-Months Ended | H4: LTM
C5: 2024-12-31 | E5: 2025-09-30 | F5: 2024-09-30 | H5: 2025-09-30
B6: Revenues | C6: 38835 | E6: 30931.91 | F6: 32271.16 | H6: =E6+C6-F6 -> 37495.75
H8: As of
H9: 2025-09-30
B10: Net debt | H10: =7758.2-14249.4 -> -6491.2
B11: Preferred stock | H11: 0
B12: Non-controlling Interest | H12: 934.4
B14: Share Price | C14: 47.68
B15: Market Value of Equity | C15: 104133.6
B16: Book Value of Equity | C16: 9929.26

Sheet F_LTM
B2: LTM Calculations For | C2: F
C4: Fiscal year ended | E4: 9-Months Ended | H4: LTM
C5: 2024-12-31 | E5: 2025-09-30 | F5: 2024-09-30 | H5: 2025-09-30
B6: Revenues | C6: 184992 | E6: 141377 | F6: 136781 | H6: =E6+C6-F6 -> 189588
H8: As of
H9: 2025-09-30
B10: Net debt | H10: =164382-32671 -> 131711
B11: Preferred stock | H11: 0
B12: Non-controlling Interest | H12: 25
B14: Share Price | C14: 13.21
B15: Market Value of Equity | C15: 52635.2
B16: Book Value of Equity | C16: 47392

Sheet GM_LTM
B2: LTM Calculations For | C2: GM
C4: Fiscal year ended | E4: 9-Months Ended | H4: LTM
C5: 2024-12-31 | E5: 2025-09-30 | F5: 2024-09-30 | H5: 2025-09-30
B6: Revenues | C6: 187442 | E6: 139733 | F6: 139740 | H6: =E6+C6-F6 -> 187435
H8: As of
H9: 2025-09-30
B10: Net debt | H10: =133683-21902 -> 111781
B11: Preferred stock | H11: 0
B12: Non-controlling Interest | H12: 2082
B14: Share Price | C14: 70.75
B15: Market Value of Equity | C15: 66322.4
B16: Book Value of Equity | C16: 66374

Sheet 7267_LTM
B2: LTM Calculations For | C2: 7267
C4: Fiscal year ended | E4: 6-Months Ended | H4: LTM
C5: 2025-03-31 | E5: 2025-09-30 | F5: 2024-09-30 | H5: 2025-09-30
B6: Revenues | C6: 21688767 | E6: 10632680 | F6: 10797613 | H6: =E6+C6-F6 -> 21523834
H8: As of
H9: 2025-09-30
B10: Net debt | H10: =12916391-4842312 -> 8074079
B11: Preferred stock | H11: 0
B12: Non-controlling Interest | H12: 281620
B14: Share Price | C14: 1511
B15: Market Value of Equity | C15: 5881644
B16: Book Value of Equity | C16: 11957763

Sheet LI_LTM
B2: LTM Calculations For | C2: LI
C4: Fiscal year ended | E4: 6-Months Ended | H4: LTM
C5: 2024-12-31 | E5: 2025-06-30 | F5: 2024-06-30 | H5: 2025-06-30
B6: Revenues | C6: =144459.95*0.140461275 -> 20291.02876 | E6: =56172.43*0.140461275 -> 7890.051138 | F6: =57312.06*0.140461275 -> 8050.12502 | H6: =E6+C6-F6 -> 20130.95488
H8: As of
H9: 2025-06-30
B10: Net debt | H10: =2376-15018 -> -12642
B11: Preferred stock | H11: 0
B12: Non-controlling Interest | H12: 71.1
B14: Share Price | C14: 20
B15: Market Value of Equity | C15: 20184.5
B16: Book Value of Equity | C16: 73122.31

Sheet LCID_LTM
B2: LTM Calculations For | C2: LCID
C4: Fiscal year ended | E4: 9-Months Ended | H4: LTM
C5: 2024-12-31 | E5: 2025-09-30 | F5: 2024-09-30 | H5: 2025-09-30
B6: Revenues | C6: 807.83 | E6: 831.06 | F6: 573.36 | H6: =E6+C6-F6 -> 1065.53
H8: As of
H9: 2025-09-30
B10: Net debt | H10: =2813.5-2337 -> 476.5
B11: Preferred stock | H11: 1920.7
B12: Non-controlling Interest | H12: 0
B14: Share Price | C14: 17.28
B15: Market Value of Equity | C15: 5601.6
B16: Book Value of Equity | C16: 1800.4

Sheet NIO_LTM
B2: LTM Calculations For | C2: NIO
C4: Fiscal year ended | E4: 6-Months Ended | H4: LTM
C5: 2024-12-31 | E5: 2025-06-30 | F5: 2024-06-30 | H5: 2025-06-30
B6: Revenues | C6: =65731.56*0.140461275 -> 9232.738725 | E6: =31043.39*0.140461275 -> 4360.39414 | F6: =27354.6*0.140461275 -> 3842.261993 | H6: =E6+C6-F6 -> 9750.870872
H8: As of
H9: 2025-06-30
B10: Net debt | H10: =4349.3-2535.2 -> 1814.1
B11: Preferred stock | H11: 0
B12: Non-controlling Interest | H12: 1098.6
B14: Share Price | C14: 6.86
B15: Market Value of Equity | C15: 16974.8
B16: Book Value of Equity | C16: -1205.71

Sheet PSNY_LTM
B2: LTM Calculations For | C2: PSNY
C4: Fiscal year ended | E4: 6-Months Ended | H4: LTM
C5: 2024-12-31 | E5: 2025-06-30 | F5: 2024-06-30 | H5: 2025-06-30
B6: Revenues | C6: 2034.26 | E6: 1422.61 | F6: 909.25 | H6: =E6+C6-F6 -> 2547.62
H8: As of
H9: 2025-06-30
B10: Net debt | H10: =5645.6-718.6 -> 4927
B11: Preferred stock | H11: 0
B12: Non-controlling Interest | H12: 0
B14: Share Price | C14: 0.75
B15: Market Value of Equity | C15: 1742
B16: Book Value of Equity | C16: -4266

Sheet STLAM_LTM
B2: LTM Calculations For | C2: STLAM
C4: Fiscal year ended | E4: 6-Months Ended | H4: LTM
C5: 2024-12-31 | E5: 2025-06-30 | F5: 2024-06-30 | H5: 2025-06-30
B6: Revenues | C6: 156878 | E6: 74261 | F6: 85071 | H6: =E6+C6-F6 -> 146068
H8: As of
H9: 2025-06-30
B10: Net debt | H10: =40849-30971 -> 9878
B11: Preferred stock | H11: 0
B12: Non-controlling Interest | H12: 406
B14: Share Price | C14: 8.71
B15: Market Value of Equity | C15: 25160.8
B16: Book Value of Equity | C16: 73117

Sheet 7270_LTM
B2: LTM Calculations For | C2: 7270
C4: Fiscal year ended | E4: 3-Months Ended | H4: LTM
C5: 2025-03-31 | E5: 2025-06-30 | F5: 2024-06-30 | H5: 2025-06-30
B6: Revenues | C6: 1214104 | E6: 4685763 | F6: 1092134 | H6: =E6+C6-F6 -> 4807733
H8: As of
H9: 2025-06-30
B10: Net debt | H10: =391000-1924216 -> -1533216
B11: Preferred stock | H11: 0
B12: Non-controlling Interest | H12: 1205
B14: Share Price | C14: 3309
B15: Market Value of Equity | C15: 2386831.6
B16: Book Value of Equity | C16: 2694131

Sheet TSLA_LTM
B2: LTM Calculations For | C2: TSLA
C4: Fiscal year ended | E4: 9-Months Ended | H4: LTM
C5: 2024-12-31 | E5: 2025-09-30 | F5: 2024-09-30 | H5: 2025-09-30
B6: Revenues | C6: 97690 | E6: 69926 | F6: 71983 | H6: =E6+C6-F6 -> 95633
H8: As of
H9: 2025-09-30
B10: Net debt | H10: =13788-41647 -> -27859
B11: Preferred stock | H11: 0
B12: Non-controlling Interest | H12: 746
B14: Share Price | C14: 429.5
B15: Market Value of Equity | C15: 1428505.8
B16: Book Value of Equity | C16: 79970

Sheet 7203_LTM
B2: LTM Calculations For | C2: 7203
C4: Fiscal year ended | E4: 6-Months Ended | H4: LTM
C5: 2025-03-31 | E5: 2025-09-30 | F5: 2024-09-30 | H5: 2025-09-30
B6: Revenues | C6: 48036704 | E6: 24630753 | F6: 23282450 | H6: =E6+C6-F6 -> 49385007
H8: As of
H9: 2025-09-30
B10: Net debt | H10: =39864277-16918272 -> 22946005
B11: Preferred stock | H11: 0
B12: Non-controlling Interest | H12: 964835
B14: Share Price | C14: 3118
B15: Market Value of Equity | C15: 40638107.6
B16: Book Value of Equity | C16: 37492119

Sheet VFS_LTM
B2: LTM Calculations For | C2: VFS
C4: Fiscal year ended | E4: 6-Months Ended | H4: LTM
C5: 2024-12-31 | E5: 2025-06-30 | F5: 2024-06-30 | H5: 2025-06-30
B6: Revenues | C6: =44019015*0.000038059 -> 1675.319692 | E6: =32915685*0.000038059 -> 1252.738055 | F6: =15196102*0.000038059 -> 578.348446 | H6: =E6+C6-F6 -> 2349.709301
H8: As of
H9: 2025-06-30
B10: Net debt | H10: =6261.1-619.8 -> 5641.3
B11: Preferred stock | H11: 0
B12: Non-controlling Interest | H12: 3035.6
B14: Share Price | C14: 3.43
B15: Market Value of Equity | C15: 8025.2
B16: Book Value of Equity | C16: -6850.3

Sheet VOW3_LTM
B2: LTM Calculations For | C2: VOW3
C4: Fiscal year ended | E4: 9-Months Ended | H4: LTM
C5: 2024-12-31 | E5: 2025-09-30 | F5: 2024-09-30 | H5: 2025-09-30
B6: Revenues | C6: 324656 | E6: 238669 | F6: 237279 | H6: =E6+C6-F6 -> 326046
H8: As of
H9: 2025-09-30
B10: Net debt | H10: =257271-61334 -> 195937
B11: Preferred stock | H11: 0
B12: Non-controlling Interest | H12: 14415
B14: Share Price | C14: 94.22
B15: Market Value of Equity | C15: 47683.5
B16: Book Value of Equity | C16: 183290

Sheet XPEV_LTM
B2: LTM Calculations For | C2: XPEV
C4: Fiscal year ended | E4: 6-Months Ended | H4: LTM
C5: 2024-12-31 | E5: 2025-06-30 | F5: 2024-06-30 | H5: 2025-06-30
B6: Revenues | C6: =40866.31*0.140461275 -> 5740.134007 | E6: =34085.03*0.140461275 -> 4787.626772 | F6: =14659.5*0.140461275 -> 2059.092061 | H6: =E6+C6-F6 -> 8468.668718
H8: As of
H9: 2025-06-30
B10: Net debt | H10: =2380.2-4909.1 -> -2528.9
B11: Preferred stock | H11: 0
B12: Non-controlling Interest | H12: 0
B14: Share Price | C14: 22.43
B15: Market Value of Equity | C15: 21391.4
B16: Book Value of Equity | C16: 4261.2

Sheet 9863_LTM
B2: LTM Calculations For | C2: 9863
C4: Fiscal year ended | E4: 6-Months Ended | H4: LTM
C5: 2024-12-31 | E5: 2025-06-30 | F5: 2024-06-30 | H5: 2025-06-30
B6: Revenues | C6: =32164.18*1.091898194 -> 35120.01005 | E6: =24249.6*1.091898194 -> 26478.09445 | F6: =8845.41*1.091898194 -> 9658.287204 | H6: =E6+C6-F6 -> 51939.81729
H8: As of
H9: 2025-06-30
B10: Net debt | H10: =3314-18236 -> -14922
B11: Preferred stock | H11: 0
B12: Non-controlling Interest | H12: 0
B14: Share Price | C14: 57.8
B15: Market Value of Equity | C15: 82175.5
B16: Book Value of Equity | C16: =13008.07*1.091898194 -> 14203.48814
